{"text_format":"1","workbook":"xlsx","n_sheets":9,"sheets":["Vejledning","Basisoplysninger","Energiforbrug og CO2-udledning","Screeningsliste energi","Screeningsliste CO2","Handlingsplan","Energiforbrug ifm. certifikat","Definitioner","Hjælpedata"],"not_rendered":{"charts":0,"images":1,"macros":1,"external_links":0,"defined_names":16,"comments":3,"pivot_tables":0},"unopened":[],"bounds":{"document_bytes":16777216,"sheet_cells":100000,"rows_first":2000,"rows_last":500,"rows_between":2000,"halvings":0,"cell_chars":16384,"cell_head_chars":4096},"cells_cut":0,"cells_raw":0,"read":"whole","date_system":"1900"}

{"sheet":"Vejledning","index":0,"n_rows":55,"n_cols":3,"rows_kept":55,"cut":false,"hidden":false,"merged":[[54,2,57,5],[47,2,47,5],[48,2,51,5],[42,2,45,5],[19,2,19,5],[53,2,53,5],[14,2,14,5],[8,2,8,5],[34,2,34,5],[41,2,41,5],[29,2,29,5],[9,2,12,5],[15,2,17,5],[20,2,23,5],[30,2,32,5],[24,2,27,5],[35,2,38,5]]}
[]
[]
[]
[null,null,"Retningslinjer for korrekt indberetning"]
[null,null,"Der kan løbende komme justeringer til indberetningskemaet, brugere opfordres til altid at hente skemaet på www.ens.dk/eek"]
[]
[null,null,"Har du spørgsmål til udfyldelse af blanketten, er du velkommen til at kontakte Energistyrelsen på eek@ens.dk eller på tlf: +45 33926688"]
[null,null,"Link til vejledning "]
[null,null,"Generelt for alle faner"]
[null,null,"Det er vigtigt at alle felter udfyldes. Du må ikke tilføje nye celler eller indsætte ikke-anmodede oplysninger. \n- De felter, der skal udfyldes, er blågrønne. \n- Visse celler udfyldes automatisk. Disse er felter er lyseblå og skal IKKE udfyldes af brugeren"]
[]
[]
[]
[]
[null,null,"Basisoplysninger"]
[null,null,"Her indføres oplysninger om virksomheden og den udførende virksomhed\n- Angiv hvad der indberettes  \n- Angiv om virksomheden indberetter et energi- eller miljøledelsescertifikat\n- Angiv hvorvidt virksomheden er en del af en større koncern\n- Angiv energiforbrug, samlet energibesparelse, CO2-udledning og samlet CO2-reduktion\n"]
[]
[]
[]
[null,null,"Energiforbrug og CO2-udledning"]
[null,null,"Her oplyses energiforbruget for det indeværende år i MWh. \n- Udfyld ét skema pr. P-nummer. Husk at angive p-nummer i skemaet\n- Hvis virksomhederne har flere end 5 enheder/P-numre, skal det samlede energiforbrug angives.\n- Læs definitioner hvis der er tvivl om hvordan visse celler udfyldes\n .\n\n\n"]
[]
[]
[]
[null,null,"CO2-udledning for hver kategori bliver udfyldt automatisk. \n- Dette skema udfyldes automatisk på baggrund af indtastning af energiforbrug\n- Der skal udfyldes dato  for perioden energiforbruget er målt over\n- Der skal manuelt udfyldes samlet ikke energirelateret CO2-udledning \n - Hvis virksomheden har flere p-numre skal der udfyldes antal af p-numre (skal være det samme som i nuværende energiforbrug)\n- Ikke-energirelateret CO2-udledning skal manuelt indtastes med tilhørende kategori"]
[]
[]
[]
[]
[null,null,"Screeningsliste energi"]
[null,null,"Besparelsesprojekter med henblik på energibesparelse \n- Energi opgøres i MWh\n- Udfyld felterne der er blågrønne\n- De lyseblå udfyldes automatisk\n "]
[]
[]
[]
[null,null,"Screeningsliste CO2"]
[null,null,"Besparelsesprojekter med henblik på CO2-reduktion \n- Energi opgøres i MWh\n- Udfyld felterne der er blågrønne\n- De lyseblå felter udfyldes automatisk"]
[]
[]
[]
[]
[]
[null,null,"Handlindsplan"]
[null,null,"Liste der inkluderer de tiltag som er en del af handlingsplanen\n- Projektnavnet skrives helt korrekt ind i det blågrønne felt, og så kopierer arket informationerne om det givne projekt.\n- Virksomheden skal angive om det valgte projekt gennemføres.\n- De lyseblå celler henter selv data fra screeningslisterne og skal derfor ikke udfyldes"]
[]
[]
[]
[]
[null,null,"Energiforbrug ifm. Certifikat"]
[null,null,"Oversigt over energiforbrug for indberetning af energi- eller miljøledelsescertifikater \n- Den fane er skjult indtil man indtaster at man indberetter enten energiledelses- eller miljøledelsescertifikat\n- Denne fane skal kun udfyldes hvis der indberettes energi- eller miljøledelsescertifikater "]
[]
[]
[]
[]
[null,null,"Definitioner"]
[null,null,"Liste over uddybende definitioner af energiarter og slutanvendelser"]

{"sheet":"Basisoplysninger","index":1,"n_rows":27,"n_cols":18,"rows_kept":27,"cut":false,"hidden":false,"merged":[[3,7,3,8],[5,7,5,8],[7,7,7,8]]}
[null,"Stamdata"]
[null,"Link til vejledning"]
[null,"CVR",null,"Branchekode",null,"Region",null,"Udførende virksomhed",null,null,"Virksomhedsnavn ",null,"Dato for udførelse (DD-MM-ÅÅÅÅ)"]
[null,null,null,null,null,null,null,null,null,null,null,null,null,null," ","Fuldt energiforbrug [MWh]","Indberettet energiforbrug [MWh]","Kommentarer"]
[null,"Tilknyttede CVR",null,"Branchekode",null,"Region",null,"E-mail",null,null,"E-mail",null,"Senest godkendte indberetning af energisyn eller energiledelse",null,"Energifoprbrug "]
[null,null,null,null,null,null,null,null,null,null,null,null,null,null,"Samlet energibesparelse"]
[null,null,null,null,null,null,null,"Tlf nummer",null,null,"Tlf nummer",null,"Senest godkendte indberetning af klimasyn",null,null,"Fuld CO2-udledning [ton]","Indberettet CO2-udlednning [ton]"]
[null,null,null,null,null,null,null,null,null,null,null,null,null,null,"CO2 udledning i perioden"]
[null,null,null,null,null,null,null,null,null,null,null,null,null,null,"Samlet CO2 reduktion"]
[null,null,null,null,null,null,null,"Indberettes der miljø eller energiledelsescertifikat "]
[null,null,null,null,null,null,null,null,{"$f":"IF(H11=\"Ja\",\"- Udfyld Energiforbrug ifm. Certifikat arket.\n- Fanerne Screeningsliste CO2, Screeningsliste energi skal udfyldes i forbindelse med handlingsplanen\n- Energiforbrug og CO2-udledning skal udfyldes i forbindelse med klimasyn\",IF(H11=\"Nej\",\"Udylf alle ark\",IF(H11=\"\",\"\",\"\")))","v":""}]
[]
[]
[null,null,null,null,null,null,null,"(sæt kryds)"]
[null,null,null,null,null,null,null,null,"Godkendt i Godkendelsesordningen"]
[null,null,null,null,null,null,null,null,"Godkendt energikonsulent, flerfamiliehuse"]
[null,null,null,null,null,null,null,null,"Intern konsulent, der er godkendt i godkendelsesordningen"]
[]
[null,null,null,null,null,null,null,"Hvad indberettes"]
[null,null,null,null,null,null,null,null,"Energisyn"]
[null,null,null,null,null,null,null,null,"Klimasyn"]
[null,null,null,null,null,null,null,null,"Energi- og klimasyn"]
[null,null,null,null,null,null,null,null,"Energiforbrug ifm. Certifikat "]
[]
[null,null,null,null,null,null,null,"Er virksomheden en del af en koncern"]
[null,null,null,null,null,null,null,null,"Ja"]
[null,null,null,null,null,null,null,null,"Nej "]

{"sheet":"Energiforbrug og CO2-udledning","index":2,"n_rows":32,"n_cols":51,"rows_kept":32,"cut":false,"hidden":false,"merged":[[6,43,6,44],[8,32,14,32],[15,32,16,32],[17,32,18,32],[19,32,28,32],[6,35,6,42],[4,4,4,5],[4,7,4,8],[16,0,17,0],[16,28,29,30],[9,0,15,0],[20,0,29,0],[18,0,19,0],[6,11,6,12],[6,28,6,30],[6,3,6,9],[6,15,6,22],[6,23,6,25]]}
["Energiforbrug og CO2-udledning ",null,null,null,null,null,null,null,null,null,null,null,null,null,null,null,null,null,null,null,null,null,null,null,null,null,null,null,null,null,null,null,"CO2-udledning ved klimasyn "]
[null,null,null,null,null,null,null,null,null,null,null,null,null,null,null,null,null,null,null,null,null,null,null,null,null,null,null,null,null,null,null,null,null,null,null,null,null,null,null,null,null,null,"Type ","Ikke energirelaterede CO2-udledninger [ton CO2]"]
["Totalt energiforbrug samt CO2-udledning de seneste 12 måneder"]
[null,null,null,"Måleperiode for indtastet energiforbrug:"]
["Nr. P-enhed:",1,null,"Startdato: ",null,null,"Slutdato:"]
[]
["Nr. P-enhed:",1,"I alt","OLIEPRODUKTER",null,null,null,null,null,null,null,"GAS",null,"KUL-KOKS","AFFALD","VEDVARENDE ENERGI",null,null,null,null,null,null,null,"VARMEPUMPER",null,null,null,null,"TEMPERATUR, ANDEL AF TOTAL PROCESVARMEFORBRUG",null,null,null,"Nr. P-enhed:",1,"I alt","OLIEPRODUKTER",null,null,null,null,null,null,null,"GAS",null,"KUL-KOKS","AFFALD",null,null,"Energiart","ton CO2 pr. MWh"]
["Nr. P-enhed:","<Indtast P-nummer>","MWh","LPG","Benzin og LVN","Gas & Dieselolie","Petroleum","Diesel","Fuelolie og Spildolie","Petrokoks","JP1 og JP4","Ledningsgas","Raffinaderigas ","Kul & koks","Affald, ikke bionedbrydeligt","Affald, bionedbrydeligt","Halm","Skovflis","Træpiller","Træaffald og brænde","Biogas","Solvarme","Bioolie","Varmepumpe - omgivelsesvarme","El til varmepumper","Overskudsvarme fra varmepumper","Elektricitet i alt","Fjernvarme","<100oC","100-200oC",">200oC",null,"Nr. P-enhed:",{"$f":"B8","v":"<Indtast P-nummer>"},"ton CO2","LPG","Benzin og LVN","Gas & Dieselolie","Petroleum","Diesel","Fuelolie og Spildolie","Petrokoks","JP1 og JP4","Ledningsgas","Raffinaderigas ","Kul & koks","Affald, ikke bionedbrydeligt",null,null,"Affald, ikke bionedbrydeligt",0.33998400000000001]
["Intern energiforsyning","Konverterings- og nettab",{"$f":"SUM(D9:AB9)","v":0},null,null,null,null,null,null,null,null,null,null,null,null,null,null,null,null,null,null,null,null,null,null,null,null,null,null,null,null,null,"Procesvarme","Opvarmning/kogning ",{"$f":"SUM(AJ9:AU9)","v":0},{"$f":"IFERROR(IF(D10=\"\",\"-\",D10*VLOOKUP(AJ$8,Tabel492[#All],2,FALSE)),\"-\")","v":"-"},{"$f":"IFERROR(IF(E10=\"\",\"-\",E10*VLOOKUP(AK$8,Tabel492[],2,FALSE)),\"-\")","v":"-"},{"$f":"IFERROR(IF(F10=\"\",\"-\",F10*VLOOKUP(AL$8,Tabel492[],2,FALSE)),\"-\")","v":"-"},{"$f":"IFERROR(IF(G10=\"\",\"-\",G10*VLOOKUP(AM$8,Tabel492[],2,FALSE)),\"-\")","v":"-"},{"$f":"IFERROR(IF(H10=\"\",\"-\",H10*VLOOKUP(AN$8,Tabel492[],2,FALSE)),\"-\")","v":"-"},{"$f":"IFERROR(IF(I10=\"\",\"-\",I10*VLOOKUP(AO$8,Tabel492[],2,FALSE)),\"-\")","v":"-"},{"$f":"IFERROR(IF(J10=\"\",\"-\",J10*VLOOKUP(AP$8,Tabel492[],2,FALSE)),\"-\")","v":"-"},{"$f":"IFERROR(IF(K10=\"\",\"-\",K10*VLOOKUP(AQ$8,Tabel492[],2,FALSE)),\"-\")","v":"-"},{"$f":"IFERROR(IF(L10=\"\",\"-\",L10*VLOOKUP(AR$8,Tabel492[],2,FALSE)),\"-\")","v":"-"},{"$f":"IFERROR(IF(M10=\"\",\"-\",M10*VLOOKUP(AS$8,Tabel492[],2,FALSE)),\"-\")","v":"-"},{"$f":"IFERROR(IF(N10=\"\",\"-\",N10*VLOOKUP(AT$8,Tabel492[],2,FALSE)),\"-\")","v":"-"},{"$f":"IFERROR(IF(O10=\"\",\"-\",O10*VLOOKUP(AU$8,Tabel492[],2,FALSE)),\"-\")","v":"-"},null,null,"Benzin og LVN",0.26279999999999998]
["Procesvarme","Opvarmning/kogning ",{"$f":"SUM(D10:X10,AA10:AB10)","v":0},null,null,null,null,null,null,null,null,null,null,null,null,null,null,null,null,null,null,null,null,null,null,null,null,null,null,null,null,null,null,"Tørring ",0,{"$f":"IFERROR(IF(D11=\"\",\"-\",D11*VLOOKUP(AJ$8,Tabel492[#All],2,FALSE)),\"-\")","v":"-"},{"$f":"IFERROR(IF(E11=\"\",\"-\",E11*VLOOKUP(AK$8,Tabel492[],2,FALSE)),\"-\")","v":"-"},{"$f":"IFERROR(IF(F11=\"\",\"-\",F11*VLOOKUP(AL$8,Tabel492[],2,FALSE)),\"-\")","v":"-"},{"$f":"IFERROR(IF(G11=\"\",\"-\",G11*VLOOKUP(AM$8,Tabel492[],2,FALSE)),\"-\")","v":"-"},{"$f":"IFERROR(IF(H11=\"\",\"-\",H11*VLOOKUP(AN$8,Tabel492[],2,FALSE)),\"-\")","v":"-"},{"$f":"IFERROR(IF(I11=\"\",\"-\",I11*VLOOKUP(AO$8,Tabel492[],2,FALSE)),\"-\")","v":"-"},{"$f":"IFERROR(IF(J11=\"\",\"-\",J11*VLOOKUP(AP$8,Tabel492[],2,FALSE)),\"-\")","v":"-"},{"$f":"IFERROR(IF(K11=\"\",\"-\",K11*VLOOKUP(AQ$8,Tabel492[],2,FALSE)),\"-\")","v":"-"},{"$f":"IFERROR(IF(L11=\"\",\"-\",L11*VLOOKUP(AR$8,Tabel492[],2,FALSE)),\"-\")","v":"-"},{"$f":"IFERROR(IF(M11=\"\",\"-\",M11*VLOOKUP(AS$8,Tabel492[],2,FALSE)),\"-\")","v":"-"},{"$f":"IFERROR(IF(N11=\"\",\"-\",N11*VLOOKUP(AT$8,Tabel492[],2,FALSE)),\"-\")","v":"-"},{"$f":"IFERROR(IF(O11=\"\",\"-\",O11*VLOOKUP(AU$8,Tabel492[],2,FALSE)),\"-\")","v":"-"},null,null,"Diesel",0.26700000000000002]
[null,"Tørring ",{"$f":"SUM(D11:X11,AA11:AB11)","v":0},null,null,null,null,null,null,null,null,null,null,null,null,null,null,null,null,null,null,null,null,null,null,null,null,null,null,null,null,null,null,"Inddampning ",0,{"$f":"IFERROR(IF(D12=\"\",\"-\",D12*VLOOKUP(AJ$8,Tabel492[#All],2,FALSE)),\"-\")","v":"-"},{"$f":"IFERROR(IF(E12=\"\",\"-\",E12*VLOOKUP(AK$8,Tabel492[],2,FALSE)),\"-\")","v":"-"},{"$f":"IFERROR(IF(F12=\"\",\"-\",F12*VLOOKUP(AL$8,Tabel492[],2,FALSE)),\"-\")","v":"-"},{"$f":"IFERROR(IF(G12=\"\",\"-\",G12*VLOOKUP(AM$8,Tabel492[],2,FALSE)),\"-\")","v":"-"},{"$f":"IFERROR(IF(H12=\"\",\"-\",H12*VLOOKUP(AN$8,Tabel492[],2,FALSE)),\"-\")","v":"-"},{"$f":"IFERROR(IF(I12=\"\",\"-\",I12*VLOOKUP(AO$8,Tabel492[],2,FALSE)),\"-\")","v":"-"},{"$f":"IFERROR(IF(J12=\"\",\"-\",J12*VLOOKUP(AP$8,Tabel492[],2,FALSE)),\"-\")","v":"-"},{"$f":"IFERROR(IF(K12=\"\",\"-\",K12*VLOOKUP(AQ$8,Tabel492[],2,FALSE)),\"-\")","v":"-"},{"$f":"IFERROR(IF(L12=\"\",\"-\",L12*VLOOKUP(AR$8,Tabel492[],2,FALSE)),\"-\")","v":"-"},{"$f":"IFERROR(IF(M12=\"\",\"-\",M12*VLOOKUP(AS$8,Tabel492[],2,FALSE)),\"-\")","v":"-"},{"$f":"IFERROR(IF(N12=\"\",\"-\",N12*VLOOKUP(AT$8,Tabel492[],2,FALSE)),\"-\")","v":"-"},{"$f":"IFERROR(IF(O12=\"\",\"-\",O12*VLOOKUP(AU$8,Tabel492[],2,FALSE)),\"-\")","v":"-"},null,null,"Fuelolie og Spildolie",0.28242]
[null,"Inddampning ",{"$f":"SUM(D12:X12,AA12:AB12)","v":0},null,null,null,null,null,null,null,null,null,null,null,null,null,null,null,null,null,null,null,null,null,null,null,null,null,null,null,null,null,null,"Destillation ",0,{"$f":"IFERROR(IF(D13=\"\",\"-\",D13*VLOOKUP(AJ$8,Tabel492[#All],2,FALSE)),\"-\")","v":"-"},{"$f":"IFERROR(IF(E13=\"\",\"-\",E13*VLOOKUP(AK$8,Tabel492[],2,FALSE)),\"-\")","v":"-"},{"$f":"IFERROR(IF(F13=\"\",\"-\",F13*VLOOKUP(AL$8,Tabel492[],2,FALSE)),\"-\")","v":"-"},{"$f":"IFERROR(IF(G13=\"\",\"-\",G13*VLOOKUP(AM$8,Tabel492[],2,FALSE)),\"-\")","v":"-"},{"$f":"IFERROR(IF(H13=\"\",\"-\",H13*VLOOKUP(AN$8,Tabel492[],2,FALSE)),\"-\")","v":"-"},{"$f":"IFERROR(IF(I13=\"\",\"-\",I13*VLOOKUP(AO$8,Tabel492[],2,FALSE)),\"-\")","v":"-"},{"$f":"IFERROR(IF(J13=\"\",\"-\",J13*VLOOKUP(AP$8,Tabel492[],2,FALSE)),\"-\")","v":"-"},{"$f":"IFERROR(IF(K13=\"\",\"-\",K13*VLOOKUP(AQ$8,Tabel492[],2,FALSE)),\"-\")","v":"-"},{"$f":"IFERROR(IF(L13=\"\",\"-\",L13*VLOOKUP(AR$8,Tabel492[],2,FALSE)),\"-\")","v":"-"},{"$f":"IFERROR(IF(M13=\"\",\"-\",M13*VLOOKUP(AS$8,Tabel492[],2,FALSE)),\"-\")","v":"-"},{"$f":"IFERROR(IF(N13=\"\",\"-\",N13*VLOOKUP(AT$8,Tabel492[],2,FALSE)),\"-\")","v":"-"},{"$f":"IFERROR(IF(O13=\"\",\"-\",O13*VLOOKUP(AU$8,Tabel492[],2,FALSE)),\"-\")","v":"-"},null,null,"Gas & Dieselolie",0.26676]
[null,"Destillation ",0,null,null,null,null,null,null,null,null,null,null,null,null,null,null,null,null,null,null,null,null,null,null,null,null,null,null,null,null,null,null,"Brænding/sintring",0,{"$f":"IFERROR(IF(D14=\"\",\"-\",D14*VLOOKUP(AJ$8,Tabel492[#All],2,FALSE)),\"-\")","v":"-"},{"$f":"IFERROR(IF(E14=\"\",\"-\",E14*VLOOKUP(AK$8,Tabel492[],2,FALSE)),\"-\")","v":"-"},{"$f":"IFERROR(IF(F14=\"\",\"-\",F14*VLOOKUP(AL$8,Tabel492[],2,FALSE)),\"-\")","v":"-"},{"$f":"IFERROR(IF(G14=\"\",\"-\",G14*VLOOKUP(AM$8,Tabel492[],2,FALSE)),\"-\")","v":"-"},{"$f":"IFERROR(IF(H14=\"\",\"-\",H14*VLOOKUP(AN$8,Tabel492[],2,FALSE)),\"-\")","v":"-"},{"$f":"IFERROR(IF(I14=\"\",\"-\",I14*VLOOKUP(AO$8,Tabel492[],2,FALSE)),\"-\")","v":"-"},{"$f":"IFERROR(IF(J14=\"\",\"-\",J14*VLOOKUP(AP$8,Tabel492[],2,FALSE)),\"-\")","v":"-"},{"$f":"IFERROR(IF(K14=\"\",\"-\",K14*VLOOKUP(AQ$8,Tabel492[],2,FALSE)),\"-\")","v":"-"},{"$f":"IFERROR(IF(L14=\"\",\"-\",L14*VLOOKUP(AR$8,Tabel492[],2,FALSE)),\"-\")","v":"-"},{"$f":"IFERROR(IF(M14=\"\",\"-\",M14*VLOOKUP(AS$8,Tabel492[],2,FALSE)),\"-\")","v":"-"},{"$f":"IFERROR(IF(N14=\"\",\"-\",N14*VLOOKUP(AT$8,Tabel492[],2,FALSE)),\"-\")","v":"-"},{"$f":"IFERROR(IF(O14=\"\",\"-\",O14*VLOOKUP(AU$8,Tabel492[],2,FALSE)),\"-\")","v":"-"},null,null,"JP1 og JP4",0.25919999999999999]
[null,"Brænding/sintring",0,null,null,null,null,null,null,null,null,null,null,null,null,null,null,null,null,null,null,null,null,null,null,null,null,null,null,null,null,null,null,"Smeltning/støbning ",0,{"$f":"IFERROR(IF(D15=\"\",\"-\",D15*VLOOKUP(AJ$8,Tabel492[#All],2,FALSE)),\"-\")","v":"-"},{"$f":"IFERROR(IF(E15=\"\",\"-\",E15*VLOOKUP(AK$8,Tabel492[],2,FALSE)),\"-\")","v":"-"},{"$f":"IFERROR(IF(F15=\"\",\"-\",F15*VLOOKUP(AL$8,Tabel492[],2,FALSE)),\"-\")","v":"-"},{"$f":"IFERROR(IF(G15=\"\",\"-\",G15*VLOOKUP(AM$8,Tabel492[],2,FALSE)),\"-\")","v":"-"},{"$f":"IFERROR(IF(H15=\"\",\"-\",H15*VLOOKUP(AN$8,Tabel492[],2,FALSE)),\"-\")","v":"-"},{"$f":"IFERROR(IF(I15=\"\",\"-\",I15*VLOOKUP(AO$8,Tabel492[],2,FALSE)),\"-\")","v":"-"},{"$f":"IFERROR(IF(J15=\"\",\"-\",J15*VLOOKUP(AP$8,Tabel492[],2,FALSE)),\"-\")","v":"-"},{"$f":"IFERROR(IF(K15=\"\",\"-\",K15*VLOOKUP(AQ$8,Tabel492[],2,FALSE)),\"-\")","v":"-"},{"$f":"IFERROR(IF(L15=\"\",\"-\",L15*VLOOKUP(AR$8,Tabel492[],2,FALSE)),\"-\")","v":"-"},{"$f":"IFERROR(IF(M15=\"\",\"-\",M15*VLOOKUP(AS$8,Tabel492[],2,FALSE)),\"-\")","v":"-"},{"$f":"IFERROR(IF(N15=\"\",\"-\",N15*VLOOKUP(AT$8,Tabel492[],2,FALSE)),\"-\")","v":"-"},{"$f":"IFERROR(IF(O15=\"\",\"-\",O15*VLOOKUP(AU$8,Tabel492[],2,FALSE)),\"-\")","v":"-"},null,null,"Kul & Koks",0.33944400000000002]
[null,"Smeltning/støbning ",0,null,null,null,null,null,null,null,null,null,null,null,null,null,null,null,null,null,null,null,null,null,null,null,null,null,null,null,null,null,null,"Anden procesvarme* ",0,{"$f":"IFERROR(IF(D16=\"\",\"-\",D16*VLOOKUP(AJ$8,Tabel492[#All],2,FALSE)),\"-\")","v":"-"},{"$f":"IFERROR(IF(E16=\"\",\"-\",E16*VLOOKUP(AK$8,Tabel492[],2,FALSE)),\"-\")","v":"-"},{"$f":"IFERROR(IF(F16=\"\",\"-\",F16*VLOOKUP(AL$8,Tabel492[],2,FALSE)),\"-\")","v":"-"},{"$f":"IFERROR(IF(G16=\"\",\"-\",G16*VLOOKUP(AM$8,Tabel492[],2,FALSE)),\"-\")","v":"-"},{"$f":"IFERROR(IF(H16=\"\",\"-\",H16*VLOOKUP(AN$8,Tabel492[],2,FALSE)),\"-\")","v":"-"},{"$f":"IFERROR(IF(I16=\"\",\"-\",I16*VLOOKUP(AO$8,Tabel492[],2,FALSE)),\"-\")","v":"-"},{"$f":"IFERROR(IF(J16=\"\",\"-\",J16*VLOOKUP(AP$8,Tabel492[],2,FALSE)),\"-\")","v":"-"},{"$f":"IFERROR(IF(K16=\"\",\"-\",K16*VLOOKUP(AQ$8,Tabel492[],2,FALSE)),\"-\")","v":"-"},{"$f":"IFERROR(IF(L16=\"\",\"-\",L16*VLOOKUP(AR$8,Tabel492[],2,FALSE)),\"-\")","v":"-"},{"$f":"IFERROR(IF(M16=\"\",\"-\",M16*VLOOKUP(AS$8,Tabel492[],2,FALSE)),\"-\")","v":"-"},{"$f":"IFERROR(IF(N16=\"\",\"-\",N16*VLOOKUP(AT$8,Tabel492[],2,FALSE)),\"-\")","v":"-"},{"$f":"IFERROR(IF(O16=\"\",\"-\",O16*VLOOKUP(AU$8,Tabel492[],2,FALSE)),\"-\")","v":"-"},null,null,"Ledningsgas",0.20399999999999999]
[null,"Anden procesvarme* ",0,null,null,null,null,null,null,null,null,null,null,null,null,null,null,null,null,null,null,null,null,null,null,null,null,null,null,null,null,null,"Transport","Arbejdskørsel ",0,{"$f":"IFERROR(IF(D17=\"\",\"-\",D17*VLOOKUP(AJ$8,Tabel492[#All],2,FALSE)),\"-\")","v":"-"},{"$f":"IFERROR(IF(E17=\"\",\"-\",E17*VLOOKUP(AK$8,Tabel492[],2,FALSE)),\"-\")","v":"-"},{"$f":"IFERROR(IF(F17=\"\",\"-\",F17*VLOOKUP(AL$8,Tabel492[],2,FALSE)),\"-\")","v":"-"},{"$f":"IFERROR(IF(G17=\"\",\"-\",G17*VLOOKUP(AM$8,Tabel492[],2,FALSE)),\"-\")","v":"-"},{"$f":"IFERROR(IF(H17=\"\",\"-\",H17*VLOOKUP(AN$8,Tabel492[],2,FALSE)),\"-\")","v":"-"},{"$f":"IFERROR(IF(I17=\"\",\"-\",I17*VLOOKUP(AO$8,Tabel492[],2,FALSE)),\"-\")","v":"-"},{"$f":"IFERROR(IF(J17=\"\",\"-\",J17*VLOOKUP(AP$8,Tabel492[],2,FALSE)),\"-\")","v":"-"},{"$f":"IFERROR(IF(K17=\"\",\"-\",K17*VLOOKUP(AQ$8,Tabel492[],2,FALSE)),\"-\")","v":"-"},{"$f":"IFERROR(IF(L17=\"\",\"-\",L17*VLOOKUP(AR$8,Tabel492[],2,FALSE)),\"-\")","v":"-"},{"$f":"IFERROR(IF(M17=\"\",\"-\",M17*VLOOKUP(AS$8,Tabel492[],2,FALSE)),\"-\")","v":"-"},{"$f":"IFERROR(IF(N17=\"\",\"-\",N17*VLOOKUP(AT$8,Tabel492[],2,FALSE)),\"-\")","v":"-"},{"$f":"IFERROR(IF(O17=\"\",\"-\",O17*VLOOKUP(AU$8,Tabel492[],2,FALSE)),\"-\")","v":"-"},null,null,"LPG",0.23327999999999999]
["Transport","Arbejdskørsel ",0,null,null,null,null,null,null,null,null,null,null,null,null,null,null,null,null,null,null,null,null,null,null,null,null,null,null,null,null,null,null,"Vejtransport (offentlig vej)",0,{"$f":"IFERROR(IF(D18=\"\",\"-\",D18*VLOOKUP(AJ$8,Tabel492[#All],2,FALSE)),\"-\")","v":"-"},{"$f":"IFERROR(IF(E18=\"\",\"-\",E18*VLOOKUP(AK$8,Tabel492[],2,FALSE)),\"-\")","v":"-"},{"$f":"IFERROR(IF(F18=\"\",\"-\",F18*VLOOKUP(AL$8,Tabel492[],2,FALSE)),\"-\")","v":"-"},{"$f":"IFERROR(IF(G18=\"\",\"-\",G18*VLOOKUP(AM$8,Tabel492[],2,FALSE)),\"-\")","v":"-"},{"$f":"IFERROR(IF(H18=\"\",\"-\",H18*VLOOKUP(AN$8,Tabel492[],2,FALSE)),\"-\")","v":"-"},{"$f":"IFERROR(IF(I18=\"\",\"-\",I18*VLOOKUP(AO$8,Tabel492[],2,FALSE)),\"-\")","v":"-"},{"$f":"IFERROR(IF(J18=\"\",\"-\",J18*VLOOKUP(AP$8,Tabel492[],2,FALSE)),\"-\")","v":"-"},{"$f":"IFERROR(IF(K18=\"\",\"-\",K18*VLOOKUP(AQ$8,Tabel492[],2,FALSE)),\"-\")","v":"-"},{"$f":"IFERROR(IF(L18=\"\",\"-\",L18*VLOOKUP(AR$8,Tabel492[],2,FALSE)),\"-\")","v":"-"},{"$f":"IFERROR(IF(M18=\"\",\"-\",M18*VLOOKUP(AS$8,Tabel492[],2,FALSE)),\"-\")","v":"-"},{"$f":"IFERROR(IF(N18=\"\",\"-\",N18*VLOOKUP(AT$8,Tabel492[],2,FALSE)),\"-\")","v":"-"},{"$f":"IFERROR(IF(O18=\"\",\"-\",O18*VLOOKUP(AU$8,Tabel492[],2,FALSE)),\"-\")","v":"-"},null,null,"Petrokoks",0.33479999999999999]
[null,"Vejtransport (offentlig vej)",0,null,null,null,null,null,null,null,null,null,null,null,null,null,null,null,null,null,null,null,null,null,null,null,null,null,null,null,null,null,"Rumvarme mv.","Rumvarme ",0,{"$f":"IFERROR(IF(D19=\"\",\"-\",D19*VLOOKUP(AJ$8,Tabel492[#All],2,FALSE)),\"-\")","v":"-"},{"$f":"IFERROR(IF(E19=\"\",\"-\",E19*VLOOKUP(AK$8,Tabel492[],2,FALSE)),\"-\")","v":"-"},{"$f":"IFERROR(IF(F19=\"\",\"-\",F19*VLOOKUP(AL$8,Tabel492[],2,FALSE)),\"-\")","v":"-"},{"$f":"IFERROR(IF(G19=\"\",\"-\",G19*VLOOKUP(AM$8,Tabel492[],2,FALSE)),\"-\")","v":"-"},{"$f":"IFERROR(IF(H19=\"\",\"-\",H19*VLOOKUP(AN$8,Tabel492[],2,FALSE)),\"-\")","v":"-"},{"$f":"IFERROR(IF(I19=\"\",\"-\",I19*VLOOKUP(AO$8,Tabel492[],2,FALSE)),\"-\")","v":"-"},{"$f":"IFERROR(IF(J19=\"\",\"-\",J19*VLOOKUP(AP$8,Tabel492[],2,FALSE)),\"-\")","v":"-"},{"$f":"IFERROR(IF(K19=\"\",\"-\",K19*VLOOKUP(AQ$8,Tabel492[],2,FALSE)),\"-\")","v":"-"},{"$f":"IFERROR(IF(L19=\"\",\"-\",L19*VLOOKUP(AR$8,Tabel492[],2,FALSE)),\"-\")","v":"-"},{"$f":"IFERROR(IF(M19=\"\",\"-\",M19*VLOOKUP(AS$8,Tabel492[],2,FALSE)),\"-\")","v":"-"},{"$f":"IFERROR(IF(N19=\"\",\"-\",N19*VLOOKUP(AT$8,Tabel492[],2,FALSE)),\"-\")","v":"-"},{"$f":"IFERROR(IF(O19=\"\",\"-\",O19*VLOOKUP(AU$8,Tabel492[],2,FALSE)),\"-\")","v":"-"},null,null,"Petroleum",0.25884000000000001]
["Rumvarme mv.","Rumvarme ",0,null,null,null,null,null,null,null,null,null,null,null,null,null,null,null,null,null,null,null,null,null,null,null,null,null,null,null,null,null,null,"Rumkøling ",0,{"$f":"IFERROR(IF(D20=\"\",\"-\",D20*VLOOKUP(AJ$8,Tabel492[#All],2,FALSE)),\"-\")","v":"-"},{"$f":"IFERROR(IF(E20=\"\",\"-\",E20*VLOOKUP(AK$8,Tabel492[],2,FALSE)),\"-\")","v":"-"},{"$f":"IFERROR(IF(F20=\"\",\"-\",F20*VLOOKUP(AL$8,Tabel492[],2,FALSE)),\"-\")","v":"-"},{"$f":"IFERROR(IF(G20=\"\",\"-\",G20*VLOOKUP(AM$8,Tabel492[],2,FALSE)),\"-\")","v":"-"},{"$f":"IFERROR(IF(H20=\"\",\"-\",H20*VLOOKUP(AN$8,Tabel492[],2,FALSE)),\"-\")","v":"-"},{"$f":"IFERROR(IF(I20=\"\",\"-\",I20*VLOOKUP(AO$8,Tabel492[],2,FALSE)),\"-\")","v":"-"},{"$f":"IFERROR(IF(J20=\"\",\"-\",J20*VLOOKUP(AP$8,Tabel492[],2,FALSE)),\"-\")","v":"-"},{"$f":"IFERROR(IF(K20=\"\",\"-\",K20*VLOOKUP(AQ$8,Tabel492[],2,FALSE)),\"-\")","v":"-"},{"$f":"IFERROR(IF(L20=\"\",\"-\",L20*VLOOKUP(AR$8,Tabel492[],2,FALSE)),\"-\")","v":"-"},{"$f":"IFERROR(IF(M20=\"\",\"-\",M20*VLOOKUP(AS$8,Tabel492[],2,FALSE)),\"-\")","v":"-"},{"$f":"IFERROR(IF(N20=\"\",\"-\",N20*VLOOKUP(AT$8,Tabel492[],2,FALSE)),\"-\")","v":"-"},{"$f":"IFERROR(IF(O20=\"\",\"-\",O20*VLOOKUP(AU$8,Tabel492[],2,FALSE)),\"-\")","v":"-"},null,null,"Raffinaderigas",0.204012]
[null,"Rumkøling ",0,null,null,null,null,null,null,null,null,null,null,null,null,null,null,null,null,null,null,null,null,null,null,null,null,null,null,null,null,null,"Sekundær energi","Belysning",0,{"$f":"IFERROR(IF(D21=\"\",\"-\",D21*VLOOKUP(AJ$8,Tabel492[#All],2,FALSE)),\"-\")","v":"-"},{"$f":"IFERROR(IF(E21=\"\",\"-\",E21*VLOOKUP(AK$8,Tabel492[],2,FALSE)),\"-\")","v":"-"},{"$f":"IFERROR(IF(F21=\"\",\"-\",F21*VLOOKUP(AL$8,Tabel492[],2,FALSE)),\"-\")","v":"-"},{"$f":"IFERROR(IF(G21=\"\",\"-\",G21*VLOOKUP(AM$8,Tabel492[],2,FALSE)),\"-\")","v":"-"},{"$f":"IFERROR(IF(H21=\"\",\"-\",H21*VLOOKUP(AN$8,Tabel492[],2,FALSE)),\"-\")","v":"-"},{"$f":"IFERROR(IF(I21=\"\",\"-\",I21*VLOOKUP(AO$8,Tabel492[],2,FALSE)),\"-\")","v":"-"},{"$f":"IFERROR(IF(J21=\"\",\"-\",J21*VLOOKUP(AP$8,Tabel492[],2,FALSE)),\"-\")","v":"-"},{"$f":"IFERROR(IF(K21=\"\",\"-\",K21*VLOOKUP(AQ$8,Tabel492[],2,FALSE)),\"-\")","v":"-"},{"$f":"IFERROR(IF(L21=\"\",\"-\",L21*VLOOKUP(AR$8,Tabel492[],2,FALSE)),\"-\")","v":"-"},{"$f":"IFERROR(IF(M21=\"\",\"-\",M21*VLOOKUP(AS$8,Tabel492[],2,FALSE)),\"-\")","v":"-"},{"$f":"IFERROR(IF(N21=\"\",\"-\",N21*VLOOKUP(AT$8,Tabel492[],2,FALSE)),\"-\")","v":"-"},{"$f":"IFERROR(IF(O21=\"\",\"-\",O21*VLOOKUP(AU$8,Tabel492[],2,FALSE)),\"-\")","v":"-"},null,null,"Vægtede CO2 emissionsfaktorer KF23 "]
["Sekundær energi","Belysning",0,null,null,null,null,null,null,null,null,null,null,null,null,null,null,null,null,null,null,null,null,null,null,null,null,null,null,null,null,null,null,"Pumpning",0,{"$f":"IFERROR(IF(D22=\"\",\"-\",D22*VLOOKUP(AJ$8,Tabel492[#All],2,FALSE)),\"-\")","v":"-"},{"$f":"IFERROR(IF(E22=\"\",\"-\",E22*VLOOKUP(AK$8,Tabel492[],2,FALSE)),\"-\")","v":"-"},{"$f":"IFERROR(IF(F22=\"\",\"-\",F22*VLOOKUP(AL$8,Tabel492[],2,FALSE)),\"-\")","v":"-"},{"$f":"IFERROR(IF(G22=\"\",\"-\",G22*VLOOKUP(AM$8,Tabel492[],2,FALSE)),\"-\")","v":"-"},{"$f":"IFERROR(IF(H22=\"\",\"-\",H22*VLOOKUP(AN$8,Tabel492[],2,FALSE)),\"-\")","v":"-"},{"$f":"IFERROR(IF(I22=\"\",\"-\",I22*VLOOKUP(AO$8,Tabel492[],2,FALSE)),\"-\")","v":"-"},{"$f":"IFERROR(IF(J22=\"\",\"-\",J22*VLOOKUP(AP$8,Tabel492[],2,FALSE)),\"-\")","v":"-"},{"$f":"IFERROR(IF(K22=\"\",\"-\",K22*VLOOKUP(AQ$8,Tabel492[],2,FALSE)),\"-\")","v":"-"},{"$f":"IFERROR(IF(L22=\"\",\"-\",L22*VLOOKUP(AR$8,Tabel492[],2,FALSE)),\"-\")","v":"-"},{"$f":"IFERROR(IF(M22=\"\",\"-\",M22*VLOOKUP(AS$8,Tabel492[],2,FALSE)),\"-\")","v":"-"},{"$f":"IFERROR(IF(N22=\"\",\"-\",N22*VLOOKUP(AT$8,Tabel492[],2,FALSE)),\"-\")","v":"-"},{"$f":"IFERROR(IF(O22=\"\",\"-\",O22*VLOOKUP(AU$8,Tabel492[],2,FALSE)),\"-\")","v":"-"},null,null,"KF23 national energibalance"]
[null,"Pumpning",0,null,null,null,null,null,null,null,null,null,null,null,null,null,null,null,null,null,null,null,null,null,null,null,null,null,null,null,null,null,null,"Køl/frys (ekskl. rumkøling)",0,{"$f":"IFERROR(IF(D23=\"\",\"-\",D23*VLOOKUP(AJ$8,Tabel492[#All],2,FALSE)),\"-\")","v":"-"},{"$f":"IFERROR(IF(E23=\"\",\"-\",E23*VLOOKUP(AK$8,Tabel492[],2,FALSE)),\"-\")","v":"-"},{"$f":"IFERROR(IF(F23=\"\",\"-\",F23*VLOOKUP(AL$8,Tabel492[],2,FALSE)),\"-\")","v":"-"},{"$f":"IFERROR(IF(G23=\"\",\"-\",G23*VLOOKUP(AM$8,Tabel492[],2,FALSE)),\"-\")","v":"-"},{"$f":"IFERROR(IF(H23=\"\",\"-\",H23*VLOOKUP(AN$8,Tabel492[],2,FALSE)),\"-\")","v":"-"},{"$f":"IFERROR(IF(I23=\"\",\"-\",I23*VLOOKUP(AO$8,Tabel492[],2,FALSE)),\"-\")","v":"-"},{"$f":"IFERROR(IF(J23=\"\",\"-\",J23*VLOOKUP(AP$8,Tabel492[],2,FALSE)),\"-\")","v":"-"},{"$f":"IFERROR(IF(K23=\"\",\"-\",K23*VLOOKUP(AQ$8,Tabel492[],2,FALSE)),\"-\")","v":"-"},{"$f":"IFERROR(IF(L23=\"\",\"-\",L23*VLOOKUP(AR$8,Tabel492[],2,FALSE)),\"-\")","v":"-"},{"$f":"IFERROR(IF(M23=\"\",\"-\",M23*VLOOKUP(AS$8,Tabel492[],2,FALSE)),\"-\")","v":"-"},{"$f":"IFERROR(IF(N23=\"\",\"-\",N23*VLOOKUP(AT$8,Tabel492[],2,FALSE)),\"-\")","v":"-"},{"$f":"IFERROR(IF(O23=\"\",\"-\",O23*VLOOKUP(AU$8,Tabel492[],2,FALSE)),\"-\")","v":"-"}]
[null,"Køl/frys (ekskl. rumkøling)",0,null,null,null,null,null,null,null,null,null,null,null,null,null,null,null,null,null,null,null,null,null,null,null,null,null,null,null,null,null,null,"Rumventilation",0,{"$f":"IFERROR(IF(D24=\"\",\"-\",D24*VLOOKUP(AJ$8,Tabel492[#All],2,FALSE)),\"-\")","v":"-"},{"$f":"IFERROR(IF(E24=\"\",\"-\",E24*VLOOKUP(AK$8,Tabel492[],2,FALSE)),\"-\")","v":"-"},{"$f":"IFERROR(IF(F24=\"\",\"-\",F24*VLOOKUP(AL$8,Tabel492[],2,FALSE)),\"-\")","v":"-"},{"$f":"IFERROR(IF(G24=\"\",\"-\",G24*VLOOKUP(AM$8,Tabel492[],2,FALSE)),\"-\")","v":"-"},{"$f":"IFERROR(IF(H24=\"\",\"-\",H24*VLOOKUP(AN$8,Tabel492[],2,FALSE)),\"-\")","v":"-"},{"$f":"IFERROR(IF(I24=\"\",\"-\",I24*VLOOKUP(AO$8,Tabel492[],2,FALSE)),\"-\")","v":"-"},{"$f":"IFERROR(IF(J24=\"\",\"-\",J24*VLOOKUP(AP$8,Tabel492[],2,FALSE)),\"-\")","v":"-"},{"$f":"IFERROR(IF(K24=\"\",\"-\",K24*VLOOKUP(AQ$8,Tabel492[],2,FALSE)),\"-\")","v":"-"},{"$f":"IFERROR(IF(L24=\"\",\"-\",L24*VLOOKUP(AR$8,Tabel492[],2,FALSE)),\"-\")","v":"-"},{"$f":"IFERROR(IF(M24=\"\",\"-\",M24*VLOOKUP(AS$8,Tabel492[],2,FALSE)),\"-\")","v":"-"},{"$f":"IFERROR(IF(N24=\"\",\"-\",N24*VLOOKUP(AT$8,Tabel492[],2,FALSE)),\"-\")","v":"-"},{"$f":"IFERROR(IF(O24=\"\",\"-\",O24*VLOOKUP(AU$8,Tabel492[],2,FALSE)),\"-\")","v":"-"}]
[null,"Rumventilation",0,null,null,null,null,null,null,null,null,null,null,null,null,null,null,null,null,null,null,null,null,null,null,null,null,null,null,null,null,null,null,"Blæsere",0,{"$f":"IFERROR(IF(D25=\"\",\"-\",D25*VLOOKUP(AJ$8,Tabel492[#All],2,FALSE)),\"-\")","v":"-"},{"$f":"IFERROR(IF(E25=\"\",\"-\",E25*VLOOKUP(AK$8,Tabel492[],2,FALSE)),\"-\")","v":"-"},{"$f":"IFERROR(IF(F25=\"\",\"-\",F25*VLOOKUP(AL$8,Tabel492[],2,FALSE)),\"-\")","v":"-"},{"$f":"IFERROR(IF(G25=\"\",\"-\",G25*VLOOKUP(AM$8,Tabel492[],2,FALSE)),\"-\")","v":"-"},{"$f":"IFERROR(IF(H25=\"\",\"-\",H25*VLOOKUP(AN$8,Tabel492[],2,FALSE)),\"-\")","v":"-"},{"$f":"IFERROR(IF(I25=\"\",\"-\",I25*VLOOKUP(AO$8,Tabel492[],2,FALSE)),\"-\")","v":"-"},{"$f":"IFERROR(IF(J25=\"\",\"-\",J25*VLOOKUP(AP$8,Tabel492[],2,FALSE)),\"-\")","v":"-"},{"$f":"IFERROR(IF(K25=\"\",\"-\",K25*VLOOKUP(AQ$8,Tabel492[],2,FALSE)),\"-\")","v":"-"},{"$f":"IFERROR(IF(L25=\"\",\"-\",L25*VLOOKUP(AR$8,Tabel492[],2,FALSE)),\"-\")","v":"-"},{"$f":"IFERROR(IF(M25=\"\",\"-\",M25*VLOOKUP(AS$8,Tabel492[],2,FALSE)),\"-\")","v":"-"},{"$f":"IFERROR(IF(N25=\"\",\"-\",N25*VLOOKUP(AT$8,Tabel492[],2,FALSE)),\"-\")","v":"-"},{"$f":"IFERROR(IF(O25=\"\",\"-\",O25*VLOOKUP(AU$8,Tabel492[],2,FALSE)),\"-\")","v":"-"}]
[null,"Blæsere",0,null,null,null,null,null,null,null,null,null,null,null,null,null,null,null,null,null,null,null,null,null,null,null,null,null,null,null,null,null,null,"Trykluft",0,{"$f":"IFERROR(IF(D26=\"\",\"-\",D26*VLOOKUP(AJ$8,Tabel492[#All],2,FALSE)),\"-\")","v":"-"},{"$f":"IFERROR(IF(E26=\"\",\"-\",E26*VLOOKUP(AK$8,Tabel492[],2,FALSE)),\"-\")","v":"-"},{"$f":"IFERROR(IF(F26=\"\",\"-\",F26*VLOOKUP(AL$8,Tabel492[],2,FALSE)),\"-\")","v":"-"},{"$f":"IFERROR(IF(G26=\"\",\"-\",G26*VLOOKUP(AM$8,Tabel492[],2,FALSE)),\"-\")","v":"-"},{"$f":"IFERROR(IF(H26=\"\",\"-\",H26*VLOOKUP(AN$8,Tabel492[],2,FALSE)),\"-\")","v":"-"},{"$f":"IFERROR(IF(I26=\"\",\"-\",I26*VLOOKUP(AO$8,Tabel492[],2,FALSE)),\"-\")","v":"-"},{"$f":"IFERROR(IF(J26=\"\",\"-\",J26*VLOOKUP(AP$8,Tabel492[],2,FALSE)),\"-\")","v":"-"},{"$f":"IFERROR(IF(K26=\"\",\"-\",K26*VLOOKUP(AQ$8,Tabel492[],2,FALSE)),\"-\")","v":"-"},{"$f":"IFERROR(IF(L26=\"\",\"-\",L26*VLOOKUP(AR$8,Tabel492[],2,FALSE)),\"-\")","v":"-"},{"$f":"IFERROR(IF(M26=\"\",\"-\",M26*VLOOKUP(AS$8,Tabel492[],2,FALSE)),\"-\")","v":"-"},{"$f":"IFERROR(IF(N26=\"\",\"-\",N26*VLOOKUP(AT$8,Tabel492[],2,FALSE)),\"-\")","v":"-"},{"$f":"IFERROR(IF(O26=\"\",\"-\",O26*VLOOKUP(AU$8,Tabel492[],2,FALSE)),\"-\")","v":"-"}]
[null,"Trykluft",0,null,null,null,null,null,null,null,null,null,null,null,null,null,null,null,null,null,null,null,null,null,null,null,null,null,null,null,null,null,null,"Hydraulik",0,{"$f":"IFERROR(IF(D27=\"\",\"-\",D27*VLOOKUP(AJ$8,Tabel492[#All],2,FALSE)),\"-\")","v":"-"},{"$f":"IFERROR(IF(E27=\"\",\"-\",E27*VLOOKUP(AK$8,Tabel492[],2,FALSE)),\"-\")","v":"-"},{"$f":"IFERROR(IF(F27=\"\",\"-\",F27*VLOOKUP(AL$8,Tabel492[],2,FALSE)),\"-\")","v":"-"},{"$f":"IFERROR(IF(G27=\"\",\"-\",G27*VLOOKUP(AM$8,Tabel492[],2,FALSE)),\"-\")","v":"-"},{"$f":"IFERROR(IF(H27=\"\",\"-\",H27*VLOOKUP(AN$8,Tabel492[],2,FALSE)),\"-\")","v":"-"},{"$f":"IFERROR(IF(I27=\"\",\"-\",I27*VLOOKUP(AO$8,Tabel492[],2,FALSE)),\"-\")","v":"-"},{"$f":"IFERROR(IF(J27=\"\",\"-\",J27*VLOOKUP(AP$8,Tabel492[],2,FALSE)),\"-\")","v":"-"},{"$f":"IFERROR(IF(K27=\"\",\"-\",K27*VLOOKUP(AQ$8,Tabel492[],2,FALSE)),\"-\")","v":"-"},{"$f":"IFERROR(IF(L27=\"\",\"-\",L27*VLOOKUP(AR$8,Tabel492[],2,FALSE)),\"-\")","v":"-"},{"$f":"IFERROR(IF(M27=\"\",\"-\",M27*VLOOKUP(AS$8,Tabel492[],2,FALSE)),\"-\")","v":"-"},{"$f":"IFERROR(IF(N27=\"\",\"-\",N27*VLOOKUP(AT$8,Tabel492[],2,FALSE)),\"-\")","v":"-"},{"$f":"IFERROR(IF(O27=\"\",\"-\",O27*VLOOKUP(AU$8,Tabel492[],2,FALSE)),\"-\")","v":"-"}]
[null,"Hydraulik",0,null,null,null,null,null,null,null,null,null,null,null,null,null,null,null,null,null,null,null,null,null,null,null,null,null,null,null,null,null,null,"Øvrige elmotorer",0,{"$f":"IFERROR(IF(D28=\"\",\"-\",D28*VLOOKUP(AJ$8,Tabel492[#All],2,FALSE)),\"-\")","v":"-"},{"$f":"IFERROR(IF(E28=\"\",\"-\",E28*VLOOKUP(AK$8,Tabel492[],2,FALSE)),\"-\")","v":"-"},{"$f":"IFERROR(IF(F28=\"\",\"-\",F28*VLOOKUP(AL$8,Tabel492[],2,FALSE)),\"-\")","v":"-"},{"$f":"IFERROR(IF(G28=\"\",\"-\",G28*VLOOKUP(AM$8,Tabel492[],2,FALSE)),\"-\")","v":"-"},{"$f":"IFERROR(IF(H28=\"\",\"-\",H28*VLOOKUP(AN$8,Tabel492[],2,FALSE)),\"-\")","v":"-"},{"$f":"IFERROR(IF(I28=\"\",\"-\",I28*VLOOKUP(AO$8,Tabel492[],2,FALSE)),\"-\")","v":"-"},{"$f":"IFERROR(IF(J28=\"\",\"-\",J28*VLOOKUP(AP$8,Tabel492[],2,FALSE)),\"-\")","v":"-"},{"$f":"IFERROR(IF(K28=\"\",\"-\",K28*VLOOKUP(AQ$8,Tabel492[],2,FALSE)),\"-\")","v":"-"},{"$f":"IFERROR(IF(L28=\"\",\"-\",L28*VLOOKUP(AR$8,Tabel492[],2,FALSE)),\"-\")","v":"-"},{"$f":"IFERROR(IF(M28=\"\",\"-\",M28*VLOOKUP(AS$8,Tabel492[],2,FALSE)),\"-\")","v":"-"},{"$f":"IFERROR(IF(N28=\"\",\"-\",N28*VLOOKUP(AT$8,Tabel492[],2,FALSE)),\"-\")","v":"-"},{"$f":"IFERROR(IF(O28=\"\",\"-\",O28*VLOOKUP(AU$8,Tabel492[],2,FALSE)),\"-\")","v":"-"}]
[null,"Øvrige elmotorer",0,null,null,null,null,null,null,null,null,null,null,null,null,null,null,null,null,null,null,null,null,null,null,null,null,null,null,null,null,null,null,"It og anden elektronik",0,{"$f":"IFERROR(IF(D29=\"\",\"-\",D29*VLOOKUP(AJ$8,Tabel492[#All],2,FALSE)),\"-\")","v":"-"},{"$f":"IFERROR(IF(E29=\"\",\"-\",E29*VLOOKUP(AK$8,Tabel492[],2,FALSE)),\"-\")","v":"-"},{"$f":"IFERROR(IF(F29=\"\",\"-\",F29*VLOOKUP(AL$8,Tabel492[],2,FALSE)),\"-\")","v":"-"},{"$f":"IFERROR(IF(G29=\"\",\"-\",G29*VLOOKUP(AM$8,Tabel492[],2,FALSE)),\"-\")","v":"-"},{"$f":"IFERROR(IF(H29=\"\",\"-\",H29*VLOOKUP(AN$8,Tabel492[],2,FALSE)),\"-\")","v":"-"},{"$f":"IFERROR(IF(I29=\"\",\"-\",I29*VLOOKUP(AO$8,Tabel492[],2,FALSE)),\"-\")","v":"-"},{"$f":"IFERROR(IF(J29=\"\",\"-\",J29*VLOOKUP(AP$8,Tabel492[],2,FALSE)),\"-\")","v":"-"},{"$f":"IFERROR(IF(K29=\"\",\"-\",K29*VLOOKUP(AQ$8,Tabel492[],2,FALSE)),\"-\")","v":"-"},{"$f":"IFERROR(IF(L29=\"\",\"-\",L29*VLOOKUP(AR$8,Tabel492[],2,FALSE)),\"-\")","v":"-"},{"$f":"IFERROR(IF(M29=\"\",\"-\",M29*VLOOKUP(AS$8,Tabel492[],2,FALSE)),\"-\")","v":"-"},{"$f":"IFERROR(IF(N29=\"\",\"-\",N29*VLOOKUP(AT$8,Tabel492[],2,FALSE)),\"-\")","v":"-"},{"$f":"IFERROR(IF(O29=\"\",\"-\",O29*VLOOKUP(AU$8,Tabel492[],2,FALSE)),\"-\")","v":"-"}]
[null,"It og anden elektronik",0,null,null,null,null,null,null,null,null,null,null,null,null,null,null,null,null,null,null,null,null,null,null,null,null,null,null,null,null,null,null,"Anden elanvendelse*",0,{"$f":"IFERROR(IF(D30=\"\",\"-\",D30*VLOOKUP(AJ$8,Tabel492[#All],2,FALSE)),\"-\")","v":"-"},{"$f":"IFERROR(IF(E30=\"\",\"-\",E30*VLOOKUP(AK$8,Tabel492[],2,FALSE)),\"-\")","v":"-"},{"$f":"IFERROR(IF(F30=\"\",\"-\",F30*VLOOKUP(AL$8,Tabel492[],2,FALSE)),\"-\")","v":"-"},{"$f":"IFERROR(IF(G30=\"\",\"-\",G30*VLOOKUP(AM$8,Tabel492[],2,FALSE)),\"-\")","v":"-"},{"$f":"IFERROR(IF(H30=\"\",\"-\",H30*VLOOKUP(AN$8,Tabel492[],2,FALSE)),\"-\")","v":"-"},{"$f":"IFERROR(IF(I30=\"\",\"-\",I30*VLOOKUP(AO$8,Tabel492[],2,FALSE)),\"-\")","v":"-"},{"$f":"IFERROR(IF(J30=\"\",\"-\",J30*VLOOKUP(AP$8,Tabel492[],2,FALSE)),\"-\")","v":"-"},{"$f":"IFERROR(IF(K30=\"\",\"-\",K30*VLOOKUP(AQ$8,Tabel492[],2,FALSE)),\"-\")","v":"-"},{"$f":"IFERROR(IF(L30=\"\",\"-\",L30*VLOOKUP(AR$8,Tabel492[],2,FALSE)),\"-\")","v":"-"},{"$f":"IFERROR(IF(M30=\"\",\"-\",M30*VLOOKUP(AS$8,Tabel492[],2,FALSE)),\"-\")","v":"-"},{"$f":"IFERROR(IF(N30=\"\",\"-\",N30*VLOOKUP(AT$8,Tabel492[],2,FALSE)),\"-\")","v":"-"},{"$f":"IFERROR(IF(O30=\"\",\"-\",O30*VLOOKUP(AU$8,Tabel492[],2,FALSE)),\"-\")","v":"-"}]
[null,"Anden elanvendelse*",0,null,null,null,null,null,null,null,null,null,null,null,null,null,null,null,null,null,null,null,null,null,null,null,null,null,null,null,null,null,"Produktion","Produktion af el",0,{"$f":"IFERROR(IF(D31=\"\",\"-\",D31*VLOOKUP(AJ$8,Tabel492[#All],2,FALSE)),\"-\")","v":"-"},{"$f":"IFERROR(IF(E31=\"\",\"-\",E31*VLOOKUP(AK$8,Tabel492[],2,FALSE)),\"-\")","v":"-"},null,{"$f":"IFERROR(IF(G31=\"\",\"-\",G31*VLOOKUP(AM$8,Tabel492[],2,FALSE)),\"-\")","v":"-"},{"$f":"IFERROR(IF(H31=\"\",\"-\",H31*VLOOKUP(AN$8,Tabel492[],2,FALSE)),\"-\")","v":"-"},{"$f":"IFERROR(IF(I31=\"\",\"-\",I31*VLOOKUP(AO$8,Tabel492[],2,FALSE)),\"-\")","v":"-"},{"$f":"IFERROR(IF(J31=\"\",\"-\",J31*VLOOKUP(AP$8,Tabel492[],2,FALSE)),\"-\")","v":"-"},{"$f":"IFERROR(IF(K31=\"\",\"-\",K31*VLOOKUP(AQ$8,Tabel492[],2,FALSE)),\"-\")","v":"-"},{"$f":"IFERROR(IF(L31=\"\",\"-\",L31*VLOOKUP(AR$8,Tabel492[],2,FALSE)),\"-\")","v":"-"},{"$f":"IFERROR(IF(M31=\"\",\"-\",M31*VLOOKUP(AS$8,Tabel492[],2,FALSE)),\"-\")","v":"-"},{"$f":"IFERROR(IF(N31=\"\",\"-\",N31*VLOOKUP(AT$8,Tabel492[],2,FALSE)),\"-\")","v":"-"},{"$f":"IFERROR(IF(O31=\"\",\"-\",O31*VLOOKUP(AU$8,Tabel492[],2,FALSE)),\"-\")","v":"-"}]
["Produktion","Produktion af el",0,null,null,null,null,null,null,null,null,null,null,null,null,null,null,null,null,null,null,null,null,null,null,null,null,null,null,null,null,null,"Total CO2-udledning",null,{"$f":"SUM(AI9:AI29)","v":0},{"$f":"IF(SUM(AJ9:AJ30)=0,\"-\",SUM(AJ9:AJ30))","v":"-"},{"$f":"IF(SUM(AK9:AK30)=0,\"-\",SUM(AK9:AK30))","v":"-"},{"$f":"IF(SUM(AL9:AL30)=0,\"-\",SUM(AL9:AL30))","v":"-"},"-","-","-","-",{"$f":"IF(SUM(AQ9:AQ30)=0,\"-\",SUM(AQ9:AQ30))","v":"-"},"-","-","-","-"]
["Total Energiforbrug",null,{"$f":"SUM(C10:C30)","v":0},{"$f":"SUM(D9:D31)","v":0},{"$f":"SUM(E9:E31)","v":0},0,0,0,0,0,0,0,0,0,0,0,0,0,0,0,0,{"$f":"SUM(V9:V31)","v":0},0,{"$f":"SUM(X9:X30)","v":0},0,0,{"$f":"SUM(AA9:AA30)","v":0},{"$f":"SUM(AB9:AB30)","v":0}]

{"sheet":"Screeningsliste energi","index":3,"n_rows":43,"n_cols":21,"rows_kept":43,"cut":false,"hidden":false,"merged":[[26,2,26,7],[24,1,24,4],[3,2,3,7],[3,8,3,16],[26,8,26,16]]}
[null,"Energibesparelsestiltag"]
[]
[]
[null,null,"Projektinformation",null,null,null,null,null,"Besparelse/år"]
[null,"Nummer","Projektnavn","Anvendelsesområde","Underområde","Støttemuligheder","Levetid [år]","Invest. [kr]","Energiart","Sekundær energiart","Besparelse af energiart \n[MWh/år]","Besparelse af sekundær energiart \n[MWh/år]","CO2 Reduktion \n[ton CO2/år]","CO2 Reduktion sekundær energiart\n[ton CO2/år]","Besparelse [dkk/år]","Forhøjede driftsomkostninger [dkk/år] ","Forhøjet el-forbrug [MWh/år]","Tilbagebetalinsgtid","Omkostning pr ton CO2 reduceret","Diskonteringssatsen for hele perioden [%]","Nutidsværdi "]
[null,1,null,null,null,null,null,null,null,null,null,null,{"$f":"IFERROR(IF(OR(K6=\"\",I6=\"\"),\"-\",K6*VLOOKUP(I6,Hjælpedata!$P$3:$Q$24,2)),\"-\")","v":"-"},{"$f":"IFERROR(IF(OR(L6=\"\",J6=\"\"),\"-\",L6*VLOOKUP(J6,Hjælpedata!$P$3:$Q$24,2)),\"-\")","v":"-"},null,null,null,{"$f":"IFERROR(H6/O6,\"-\")","v":"-"},{"$f":"IFERROR(H6/((M6+N6)*G6),\"-\")","v":"-"},null,{"$f":"IF(NOT(G6=\"\"),-PV(T6,G6,O6)-H6,\"-\")","v":"-"}]
[null,{"$f":"B6+1","v":2},null,null,null,null,null,null,null,null,null,null,{"$f":"IFERROR(IF(OR(K7=\"\",I7=\"\"),\"-\",K7*VLOOKUP(I7,Hjælpedata!$P$3:$Q$24,2)),\"-\")","v":"-"},{"$f":"IFERROR(IF(OR(L7=\"\",J7=\"\"),\"-\",L7*VLOOKUP(J7,Hjælpedata!$P$3:$Q$24,2)),\"-\")","v":"-"},null,null,null,"-",{"$f":"IFERROR(H7/((M7+N7)*G7),\"-\")","v":"-"},null,"-"]
[null,{"$f":"B7+1","v":3},null,null,null,null,null,null,null,null,null,null,{"$f":"IFERROR(IF(OR(K8=\"\",I8=\"\"),\"-\",K8*VLOOKUP(I8,Hjælpedata!$P$3:$Q$24,2)),\"-\")","v":"-"},{"$f":"IFERROR(IF(OR(L8=\"\",J8=\"\"),\"-\",L8*VLOOKUP(J8,Hjælpedata!$P$3:$Q$24,2)),\"-\")","v":"-"},null,null,null,"-","-",null,"-"]
[null,4,null,null,null,null,null,null,null,null,null,null,{"$f":"IFERROR(IF(OR(K9=\"\",I9=\"\"),\"-\",K9*VLOOKUP(I9,Hjælpedata!$P$3:$Q$24,2)),\"-\")","v":"-"},{"$f":"IFERROR(IF(OR(L9=\"\",J9=\"\"),\"-\",L9*VLOOKUP(J9,Hjælpedata!$P$3:$Q$24,2)),\"-\")","v":"-"},null,null,null,"-","-",null,"-"]
[null,5,null,null,null,null,null,null,null,null,null,null,{"$f":"IFERROR(IF(OR(K10=\"\",I10=\"\"),\"-\",K10*VLOOKUP(I10,Hjælpedata!$P$3:$Q$24,2)),\"-\")","v":"-"},{"$f":"IFERROR(IF(OR(L10=\"\",J10=\"\"),\"-\",L10*VLOOKUP(J10,Hjælpedata!$P$3:$Q$24,2)),\"-\")","v":"-"},null,null,null,"-","-",null,"-"]
[null,6,null,null,null,null,null,null,null,null,null,null,{"$f":"IFERROR(IF(OR(K11=\"\",I11=\"\"),\"-\",K11*VLOOKUP(I11,Hjælpedata!$P$3:$Q$24,2)),\"-\")","v":"-"},{"$f":"IFERROR(IF(OR(L11=\"\",J11=\"\"),\"-\",L11*VLOOKUP(J11,Hjælpedata!$P$3:$Q$24,2)),\"-\")","v":"-"},null,null,null,"-","-",null,"-"]
[null,7,null,null,null,null,null,null,null,null,null,null,{"$f":"IFERROR(IF(OR(K12=\"\",I12=\"\"),\"-\",K12*VLOOKUP(I12,Hjælpedata!$P$3:$Q$24,2)),\"-\")","v":"-"},{"$f":"IFERROR(IF(OR(L12=\"\",J12=\"\"),\"-\",L12*VLOOKUP(J12,Hjælpedata!$P$3:$Q$24,2)),\"-\")","v":"-"},null,null,null,"-","-",null,"-"]
[null,8,null,null,null,null,null,null,null,null,null,null,{"$f":"IFERROR(IF(OR(K13=\"\",I13=\"\"),\"-\",K13*VLOOKUP(I13,Hjælpedata!$P$3:$Q$24,2)),\"-\")","v":"-"},{"$f":"IFERROR(IF(OR(L13=\"\",J13=\"\"),\"-\",L13*VLOOKUP(J13,Hjælpedata!$P$3:$Q$24,2)),\"-\")","v":"-"},null,null,null,"-","-",null,"-"]
[null,9,null,null,null,null,null,null,null,null,null,null,{"$f":"IFERROR(IF(OR(K14=\"\",I14=\"\"),\"-\",K14*VLOOKUP(I14,Hjælpedata!$P$3:$Q$24,2)),\"-\")","v":"-"},{"$f":"IFERROR(IF(OR(L14=\"\",J14=\"\"),\"-\",L14*VLOOKUP(J14,Hjælpedata!$P$3:$Q$24,2)),\"-\")","v":"-"},null,null,null,"-","-",null,"-"]
[null,10,null,null,null,null,null,null,null,null,null,null,{"$f":"IFERROR(IF(OR(K15=\"\",I15=\"\"),\"-\",K15*VLOOKUP(I15,Hjælpedata!$P$3:$Q$24,2)),\"-\")","v":"-"},{"$f":"IFERROR(IF(OR(L15=\"\",J15=\"\"),\"-\",L15*VLOOKUP(J15,Hjælpedata!$P$3:$Q$24,2)),\"-\")","v":"-"},null,null,null,"-","-",null,"-"]
[null,11,null,null,null,null,null,null,null,null,null,null,{"$f":"IFERROR(IF(OR(K16=\"\",I16=\"\"),\"-\",K16*VLOOKUP(I16,Hjælpedata!$P$3:$Q$24,2)),\"-\")","v":"-"},{"$f":"IFERROR(IF(OR(L16=\"\",J16=\"\"),\"-\",L16*VLOOKUP(J16,Hjælpedata!$P$3:$Q$24,2)),\"-\")","v":"-"},null,null,null,"-","-",null,"-"]
[null,12,null,null,null,null,null,null,null,null,null,null,{"$f":"IFERROR(IF(OR(K17=\"\",I17=\"\"),\"-\",K17*VLOOKUP(I17,Hjælpedata!$P$3:$Q$24,2)),\"-\")","v":"-"},{"$f":"IFERROR(IF(OR(L17=\"\",J17=\"\"),\"-\",L17*VLOOKUP(J17,Hjælpedata!$P$3:$Q$24,2)),\"-\")","v":"-"},null,null,null,"-","-",null,"-"]
[null,13,null,null,null,null,null,null,null,null,null,null,{"$f":"IFERROR(IF(OR(K18=\"\",I18=\"\"),\"-\",K18*VLOOKUP(I18,Hjælpedata!$P$3:$Q$24,2)),\"-\")","v":"-"},{"$f":"IFERROR(IF(OR(L18=\"\",J18=\"\"),\"-\",L18*VLOOKUP(J18,Hjælpedata!$P$3:$Q$24,2)),\"-\")","v":"-"},null,null,null,"-","-",null,"-"]
[null,14,null,null,null,null,null,null,null,null,null,null,{"$f":"IFERROR(IF(OR(K19=\"\",I19=\"\"),\"-\",K19*VLOOKUP(I19,Hjælpedata!$P$3:$Q$24,2)),\"-\")","v":"-"},{"$f":"IFERROR(IF(OR(L19=\"\",J19=\"\"),\"-\",L19*VLOOKUP(J19,Hjælpedata!$P$3:$Q$24,2)),\"-\")","v":"-"},null,null,null,"-","-",null,"-"]
[null,15,null,null,null,null,null,null,null,null,null,null,{"$f":"IFERROR(IF(OR(K20=\"\",I20=\"\"),\"-\",K20*VLOOKUP(I20,Hjælpedata!$P$3:$Q$24,2)),\"-\")","v":"-"},{"$f":"IFERROR(IF(OR(L20=\"\",J20=\"\"),\"-\",L20*VLOOKUP(J20,Hjælpedata!$P$3:$Q$24,2)),\"-\")","v":"-"},null,null,null,"-","-",null,"-"]
[]
[]
[]
[null,"Gennemførte projekter siden sidste indberetning"]
[]
[]
[null,null,"Projektinformation",null,null,null,null,null,"Besparelse/år"]
[null,null,"Projektnavn","Anvendelsesområde","Underområde","Støttemuligheder","Levetid [år]","Invest. [kr]","Energiart","Sekundær energiart","Besparelse af energiart \n[MWh/år]",null,"CO2 Reduktion \n[ton CO2/år]",null,"Besparelse [dkk/år]","Forhøjede driftsomkostninger [dkk/år] ","Forhøjet el-forbrug [MWh/år]","Tilbagebetalingstid","Omkostning pr ton CO2 reduceret","Diskonteringssatsen for hele perioden [%]","Nutidsværdi "]
[null,1,null,null,null,null,null,null,null,null,null,null,{"$f":"IFERROR(IF(OR(K29=\"\",I29=\"\"),\"-\",K29*VLOOKUP(I29,Hjælpedata!$P$3:$Q$24,2)),\"-\")","v":"-"},null,null,null,null,{"$f":"IFERROR(H29/O29,\"-\")","v":"-"},{"$f":"IFERROR(H29/(M29*G29),\"-\")","v":"-"},null,{"$f":"IF(NOT(G29=\"\"),-PV(T29,G29,O29)-H29,\"-\")","v":"-"}]
[null,{"$f":"B29+1","v":2},null,null,null,null,null,null,null,null,null,null,{"$f":"IFERROR(IF(OR(K30=\"\",I30=\"\"),\"-\",K30*VLOOKUP(I30,Hjælpedata!$P$3:$Q$24,2)),\"-\")","v":"-"},null,null,null,null,"-","-",null,"-"]
[null,{"$f":"B30+1","v":3},null,null,null,null,null,null,null,null,null,null,{"$f":"IFERROR(IF(OR(K31=\"\",I31=\"\"),\"-\",K31*VLOOKUP(I31,Hjælpedata!$P$3:$Q$24,2)),\"-\")","v":"-"},null,null,null,null,"-","-",null,"-"]
[null,4,null,null,null,null,null,null,null,null,null,null,{"$f":"IFERROR(IF(OR(K32=\"\",I32=\"\"),\"-\",K32*VLOOKUP(I32,Hjælpedata!$P$3:$Q$24,2)),\"-\")","v":"-"},null,null,null,null,"-","-",null,"-"]
[null,5,null,null,null,null,null,null,null,null,null,null,{"$f":"IFERROR(IF(OR(K33=\"\",I33=\"\"),\"-\",K33*VLOOKUP(I33,Hjælpedata!$P$3:$Q$24,2)),\"-\")","v":"-"},null,null,null,null,"-","-",null,"-"]
[null,6,null,null,null,null,null,null,null,null,null,null,{"$f":"IFERROR(IF(OR(K34=\"\",I34=\"\"),\"-\",K34*VLOOKUP(I34,Hjælpedata!$P$3:$Q$24,2)),\"-\")","v":"-"},null,null,null,null,"-","-",null,"-"]
[null,7,null,null,null,null,null,null,null,null,null,null,{"$f":"IFERROR(IF(OR(K35=\"\",I35=\"\"),\"-\",K35*VLOOKUP(I35,Hjælpedata!$P$3:$Q$24,2)),\"-\")","v":"-"},null,null,null,null,"-","-",null,"-"]
[null,8,null,null,null,null,null,null,null,null,null,null,{"$f":"IFERROR(IF(OR(K36=\"\",I36=\"\"),\"-\",K36*VLOOKUP(I36,Hjælpedata!$P$3:$Q$24,2)),\"-\")","v":"-"},null,null,null,null,"-","-",null,"-"]
[null,9,null,null,null,null,null,null,null,null,null,null,{"$f":"IFERROR(IF(OR(K37=\"\",I37=\"\"),\"-\",K37*VLOOKUP(I37,Hjælpedata!$P$3:$Q$24,2)),\"-\")","v":"-"},null,null,null,null,"-","-",null,"-"]
[null,10,null,null,null,null,null,null,null,null,null,null,{"$f":"IFERROR(IF(OR(K38=\"\",I38=\"\"),\"-\",K38*VLOOKUP(I38,Hjælpedata!$P$3:$Q$24,2)),\"-\")","v":"-"},null,null,null,null,"-","-",null,"-"]
[null,11,null,null,null,null,null,null,null,null,null,null,{"$f":"IFERROR(IF(OR(K39=\"\",I39=\"\"),\"-\",K39*VLOOKUP(I39,Hjælpedata!$P$3:$Q$24,2)),\"-\")","v":"-"},null,null,null,null,"-","-",null,"-"]
[null,12,null,null,null,null,null,null,null,null,null,null,{"$f":"IFERROR(IF(OR(K40=\"\",I40=\"\"),\"-\",K40*VLOOKUP(I40,Hjælpedata!$P$3:$Q$24,2)),\"-\")","v":"-"},null,null,null,null,"-","-",null,"-"]
[null,13,null,null,null,null,null,null,null,null,null,null,{"$f":"IFERROR(IF(OR(K41=\"\",I41=\"\"),\"-\",K41*VLOOKUP(I41,Hjælpedata!$P$3:$Q$24,2)),\"-\")","v":"-"},null,null,null,null,"-","-",null,"-"]
[null,14,null,null,null,null,null,null,null,null,null,null,{"$f":"IFERROR(IF(OR(K42=\"\",I42=\"\"),\"-\",K42*VLOOKUP(I42,Hjælpedata!$P$3:$Q$24,2)),\"-\")","v":"-"},null,null,null,null,"-","-",null,"-"]
[null,15,null,null,null,null,null,null,null,null,null,null,{"$f":"IFERROR(IF(OR(K43=\"\",I43=\"\"),\"-\",K43*VLOOKUP(I43,Hjælpedata!$P$3:$Q$24,2)),\"-\")","v":"-"},null,null,null,null,"-","-",null,"-"]

{"sheet":"Screeningsliste CO2","index":4,"n_rows":43,"n_cols":21,"rows_kept":43,"cut":false,"hidden":false,"merged":[[3,2,3,7],[26,2,26,7],[23,1,23,4],[26,8,26,13],[3,8,3,13]]}
[null,"Screeningsliste for CO2-reducerende tiltag"]
[]
[]
[null,null,"Projektinformation",null,null,null,null,null,"Besparelse/år"]
[null,null,"Projektnavn","Anvendelsesområde","Underområde","Støttemuligheder","Levetid [år]","Invest. [kr]","Energiart","Sekundær energiart","Besparelse af energiart \n[MWh/år]","Besparelse af sekundær energiart \n[MWh/år]","CO2 Reduktion \n[ton CO2/år]","CO2 Reduktion sekundær energiart\n[ton CO2/år]","Besparelse [dkk/år]","Forhøjede drifts-omkostninger [dkk/år] ","Forhøjet el-forbrug [MWh/år]","Tilbagebetalings-tid","Omkostning pr ton CO2 reduceret","Diskonteringssatsen for hele perioden [%]","Nutidsværdi "]
[null,1,null,null,null,null,null,null,null,null,null,null,{"$f":"IFERROR(IF(OR(K6=\"\",I6=\"\"),\"-\",K6*VLOOKUP(I6,Hjælpedata!$P$3:$Q$24,2)),\"-\")","v":"-"},{"$f":"IFERROR(IF(OR(L6=\"\",J6=\"\"),\"-\",L6*VLOOKUP(J6,Hjælpedata!$P$3:$Q$24,2)),\"-\")","v":"-"},null,null,null,{"$f":"IFERROR(H6/O6,\"-\")","v":"-"},{"$f":"IFERROR(H6/((M6+N6)*G6),\"-\")","v":"-"},null,{"$f":"IF(NOT(G6=\"\"),-PV(T6,G6,O6)-H6,\"-\")","v":"-"}]
[null,{"$f":"B6+1","v":2},null,null,null,null,null,null,null,null,null,null,{"$f":"IFERROR(IF(OR(K7=\"\",I7=\"\"),\"-\",K7*VLOOKUP(I7,Hjælpedata!$P$3:$Q$24,2)),\"-\")","v":"-"},{"$f":"IFERROR(IF(OR(L7=\"\",J7=\"\"),\"-\",L7*VLOOKUP(J7,Hjælpedata!$P$3:$Q$24,2)),\"-\")","v":"-"},null,null,null,"-",{"$f":"IFERROR(H7/((M7+N7)*G7),\"-\")","v":"-"},null,"-"]
[null,{"$f":"B7+1","v":3},null,null,null,null,null,null,null,null,null,null,{"$f":"IFERROR(IF(OR(K8=\"\",I8=\"\"),\"-\",K8*VLOOKUP(I8,Hjælpedata!$P$3:$Q$24,2)),\"-\")","v":"-"},{"$f":"IFERROR(IF(OR(L8=\"\",J8=\"\"),\"-\",L8*VLOOKUP(J8,Hjælpedata!$P$3:$Q$24,2)),\"-\")","v":"-"},null,null,null,"-","-",null,"-"]
[null,4,null,null,null,null,null,null,null,null,null,null,{"$f":"IFERROR(IF(OR(K9=\"\",I9=\"\"),\"-\",K9*VLOOKUP(I9,Hjælpedata!$P$3:$Q$24,2)),\"-\")","v":"-"},{"$f":"IFERROR(IF(OR(L9=\"\",J9=\"\"),\"-\",L9*VLOOKUP(J9,Hjælpedata!$P$3:$Q$24,2)),\"-\")","v":"-"},null,null,null,"-","-",null,"-"]
[null,5,null,null,null,null,null,null,null,null,null,null,{"$f":"IFERROR(IF(OR(K10=\"\",I10=\"\"),\"-\",K10*VLOOKUP(I10,Hjælpedata!$P$3:$Q$24,2)),\"-\")","v":"-"},{"$f":"IFERROR(IF(OR(L10=\"\",J10=\"\"),\"-\",L10*VLOOKUP(J10,Hjælpedata!$P$3:$Q$24,2)),\"-\")","v":"-"},null,null,null,"-","-",null,"-"]
[null,6,null,null,null,null,null,null,null,null,null,null,{"$f":"IFERROR(IF(OR(K11=\"\",I11=\"\"),\"-\",K11*VLOOKUP(I11,Hjælpedata!$P$3:$Q$24,2)),\"-\")","v":"-"},{"$f":"IFERROR(IF(OR(L11=\"\",J11=\"\"),\"-\",L11*VLOOKUP(J11,Hjælpedata!$P$3:$Q$24,2)),\"-\")","v":"-"},null,null,null,"-","-",null,"-"]
[null,7,null,null,null,null,null,null,null,null,null,null,{"$f":"IFERROR(IF(OR(K12=\"\",I12=\"\"),\"-\",K12*VLOOKUP(I12,Hjælpedata!$P$3:$Q$24,2)),\"-\")","v":"-"},{"$f":"IFERROR(IF(OR(L12=\"\",J12=\"\"),\"-\",L12*VLOOKUP(J12,Hjælpedata!$P$3:$Q$24,2)),\"-\")","v":"-"},null,null,null,"-","-",null,"-"]
[null,8,null,null,null,null,null,null,null,null,null,null,{"$f":"IFERROR(IF(OR(K13=\"\",I13=\"\"),\"-\",K13*VLOOKUP(I13,Hjælpedata!$P$3:$Q$24,2)),\"-\")","v":"-"},{"$f":"IFERROR(IF(OR(L13=\"\",J13=\"\"),\"-\",L13*VLOOKUP(J13,Hjælpedata!$P$3:$Q$24,2)),\"-\")","v":"-"},null,null,null,"-","-",null,"-"]
[null,9,null,null,null,null,null,null,null,null,null,null,{"$f":"IFERROR(IF(OR(K14=\"\",I14=\"\"),\"-\",K14*VLOOKUP(I14,Hjælpedata!$P$3:$Q$24,2)),\"-\")","v":"-"},{"$f":"IFERROR(IF(OR(L14=\"\",J14=\"\"),\"-\",L14*VLOOKUP(J14,Hjælpedata!$P$3:$Q$24,2)),\"-\")","v":"-"},null,null,null,"-","-",null,"-"]
[null,10,null,null,null,null,null,null,null,null,null,null,{"$f":"IFERROR(IF(OR(K15=\"\",I15=\"\"),\"-\",K15*VLOOKUP(I15,Hjælpedata!$P$3:$Q$24,2)),\"-\")","v":"-"},{"$f":"IFERROR(IF(OR(L15=\"\",J15=\"\"),\"-\",L15*VLOOKUP(J15,Hjælpedata!$P$3:$Q$24,2)),\"-\")","v":"-"},null,null,null,"-","-",null,"-"]
[null,11,null,null,null,null,null,null,null,null,null,null,{"$f":"IFERROR(IF(OR(K16=\"\",I16=\"\"),\"-\",K16*VLOOKUP(I16,Hjælpedata!$P$3:$Q$24,2)),\"-\")","v":"-"},{"$f":"IFERROR(IF(OR(L16=\"\",J16=\"\"),\"-\",L16*VLOOKUP(J16,Hjælpedata!$P$3:$Q$24,2)),\"-\")","v":"-"},null,null,null,"-","-",null,"-"]
[null,12,null,null,null,null,null,null,null,null,null,null,{"$f":"IFERROR(IF(OR(K17=\"\",I17=\"\"),\"-\",K17*VLOOKUP(I17,Hjælpedata!$P$3:$Q$24,2)),\"-\")","v":"-"},{"$f":"IFERROR(IF(OR(L17=\"\",J17=\"\"),\"-\",L17*VLOOKUP(J17,Hjælpedata!$P$3:$Q$24,2)),\"-\")","v":"-"},null,null,null,"-","-",null,"-"]
[null,13,null,null,null,null,null,null,null,null,null,null,{"$f":"IFERROR(IF(OR(K18=\"\",I18=\"\"),\"-\",K18*VLOOKUP(I18,Hjælpedata!$P$3:$Q$24,2)),\"-\")","v":"-"},{"$f":"IFERROR(IF(OR(L18=\"\",J18=\"\"),\"-\",L18*VLOOKUP(J18,Hjælpedata!$P$3:$Q$24,2)),\"-\")","v":"-"},null,null,null,"-","-",null,"-"]
[null,14,null,null,null,null,null,null,null,null,null,null,{"$f":"IFERROR(IF(OR(K19=\"\",I19=\"\"),\"-\",K19*VLOOKUP(I19,Hjælpedata!$P$3:$Q$24,2)),\"-\")","v":"-"},{"$f":"IFERROR(IF(OR(L19=\"\",J19=\"\"),\"-\",L19*VLOOKUP(J19,Hjælpedata!$P$3:$Q$24,2)),\"-\")","v":"-"},null,null,null,"-","-",null,"-"]
[null,15,null,null,null,null,null,null,null,null,null,null,{"$f":"IFERROR(IF(OR(K20=\"\",I20=\"\"),\"-\",K20*VLOOKUP(I20,Hjælpedata!$P$3:$Q$24,2)),\"-\")","v":"-"},{"$f":"IFERROR(IF(OR(L20=\"\",J20=\"\"),\"-\",L20*VLOOKUP(J20,Hjælpedata!$P$3:$Q$24,2)),\"-\")","v":"-"},null,null,null,"-","-",null,"-"]
[]
[]
[]
[null,"Gennemførte projekter siden sidste indberetning"]
[]
[]
[null,null,"Projektinformation",null,null,null,null,null,"Besparelse/år"]
[null,null,"Projektnavn","Anvendelsesområde","Underområde","Støttemuligheder","Levetid [år]","Invest. [kr]","Energiart","Sekundær energiart","Besparelse af energiart \n[MWh/år]","Besparelse af sekundær energiart \n[MWh/år]","CO2 Reduktion \n[ton CO2/år]","CO2 Reduktion sekundær energiart\n[ton CO2/år]","Besparelse [dkk/år]","Forhøjede drifts-omkostninger [dkk/år] ","Forhøjet el-forbrug [MWh/år]","Tilbagebetalings-tid","Omkostning pr ton CO2 reduceret","Diskonteringssatsen for hele perioden [%]","Nutidsværdi "]
[null,1,null,null,null,null,null,null,null,null,null,null,{"$f":"IFERROR(IF(OR(K29=\"\",I29=\"\"),\"-\",K29*VLOOKUP(I29,Hjælpedata!$P$3:$Q$24,2)),\"-\")","v":"-"},{"$f":"IFERROR(IF(OR(L29=\"\",J29=\"\"),\"-\",L29*VLOOKUP(J29,Hjælpedata!$P$3:$Q$24,2)),\"-\")","v":"-"},null,null,null,{"$f":"IFERROR(H29/O29,\"-\")","v":"-"},{"$f":"IFERROR(H29/((M29+N29)*G29),\"-\")","v":"-"},null,{"$f":"IF(NOT(G29=\"\"),-PV(T29,G29,O29)-H29,\"-\")","v":"-"}]
[null,{"$f":"B29+1","v":2},null,null,null,null,null,null,null,null,null,null,{"$f":"IFERROR(IF(OR(K30=\"\",I30=\"\"),\"-\",K30*VLOOKUP(I30,Hjælpedata!$P$3:$Q$24,2)),\"-\")","v":"-"},{"$f":"IFERROR(IF(OR(L30=\"\",J30=\"\"),\"-\",L30*VLOOKUP(J30,Hjælpedata!$P$3:$Q$24,2)),\"-\")","v":"-"},null,null,null,"-",{"$f":"IFERROR(H30/((M30+N30)*G30),\"-\")","v":"-"},null,"-"]
[null,{"$f":"B30+1","v":3},null,null,null,null,null,null,null,null,null,null,{"$f":"IFERROR(IF(OR(K31=\"\",I31=\"\"),\"-\",K31*VLOOKUP(I31,Hjælpedata!$P$3:$Q$24,2)),\"-\")","v":"-"},{"$f":"IFERROR(IF(OR(L31=\"\",J31=\"\"),\"-\",L31*VLOOKUP(J31,Hjælpedata!$P$3:$Q$24,2)),\"-\")","v":"-"},null,null,null,"-","-",null,"-"]
[null,4,null,null,null,null,null,null,null,null,null,null,{"$f":"IFERROR(IF(OR(K32=\"\",I32=\"\"),\"-\",K32*VLOOKUP(I32,Hjælpedata!$P$3:$Q$24,2)),\"-\")","v":"-"},{"$f":"IFERROR(IF(OR(L32=\"\",J32=\"\"),\"-\",L32*VLOOKUP(J32,Hjælpedata!$P$3:$Q$24,2)),\"-\")","v":"-"},null,null,null,"-","-",null,"-"]
[null,5,null,null,null,null,null,null,null,null,null,null,{"$f":"IFERROR(IF(OR(K33=\"\",I33=\"\"),\"-\",K33*VLOOKUP(I33,Hjælpedata!$P$3:$Q$24,2)),\"-\")","v":"-"},{"$f":"IFERROR(IF(OR(L33=\"\",J33=\"\"),\"-\",L33*VLOOKUP(J33,Hjælpedata!$P$3:$Q$24,2)),\"-\")","v":"-"},null,null,null,"-","-",null,"-"]
[null,6,null,null,null,null,null,null,null,null,null,null,{"$f":"IFERROR(IF(OR(K34=\"\",I34=\"\"),\"-\",K34*VLOOKUP(I34,Hjælpedata!$P$3:$Q$24,2)),\"-\")","v":"-"},{"$f":"IFERROR(IF(OR(L34=\"\",J34=\"\"),\"-\",L34*VLOOKUP(J34,Hjælpedata!$P$3:$Q$24,2)),\"-\")","v":"-"},null,null,null,"-","-",null,"-"]
[null,7,null,null,null,null,null,null,null,null,null,null,{"$f":"IFERROR(IF(OR(K35=\"\",I35=\"\"),\"-\",K35*VLOOKUP(I35,Hjælpedata!$P$3:$Q$24,2)),\"-\")","v":"-"},{"$f":"IFERROR(IF(OR(L35=\"\",J35=\"\"),\"-\",L35*VLOOKUP(J35,Hjælpedata!$P$3:$Q$24,2)),\"-\")","v":"-"},null,null,null,"-","-",null,"-"]
[null,8,null,null,null,null,null,null,null,null,null,null,{"$f":"IFERROR(IF(OR(K36=\"\",I36=\"\"),\"-\",K36*VLOOKUP(I36,Hjælpedata!$P$3:$Q$24,2)),\"-\")","v":"-"},{"$f":"IFERROR(IF(OR(L36=\"\",J36=\"\"),\"-\",L36*VLOOKUP(J36,Hjælpedata!$P$3:$Q$24,2)),\"-\")","v":"-"},null,null,null,"-","-",null,"-"]
[null,9,null,null,null,null,null,null,null,null,null,null,{"$f":"IFERROR(IF(OR(K37=\"\",I37=\"\"),\"-\",K37*VLOOKUP(I37,Hjælpedata!$P$3:$Q$24,2)),\"-\")","v":"-"},{"$f":"IFERROR(IF(OR(L37=\"\",J37=\"\"),\"-\",L37*VLOOKUP(J37,Hjælpedata!$P$3:$Q$24,2)),\"-\")","v":"-"},null,null,null,"-","-",null,"-"]
[null,10,null,null,null,null,null,null,null,null,null,null,{"$f":"IFERROR(IF(OR(K38=\"\",I38=\"\"),\"-\",K38*VLOOKUP(I38,Hjælpedata!$P$3:$Q$24,2)),\"-\")","v":"-"},{"$f":"IFERROR(IF(OR(L38=\"\",J38=\"\"),\"-\",L38*VLOOKUP(J38,Hjælpedata!$P$3:$Q$24,2)),\"-\")","v":"-"},null,null,null,"-","-",null,"-"]
[null,11,null,null,null,null,null,null,null,null,null,null,{"$f":"IFERROR(IF(OR(K39=\"\",I39=\"\"),\"-\",K39*VLOOKUP(I39,Hjælpedata!$P$3:$Q$24,2)),\"-\")","v":"-"},{"$f":"IFERROR(IF(OR(L39=\"\",J39=\"\"),\"-\",L39*VLOOKUP(J39,Hjælpedata!$P$3:$Q$24,2)),\"-\")","v":"-"},null,null,null,"-","-",null,"-"]
[null,12,null,null,null,null,null,null,null,null,null,null,{"$f":"IFERROR(IF(OR(K40=\"\",I40=\"\"),\"-\",K40*VLOOKUP(I40,Hjælpedata!$P$3:$Q$24,2)),\"-\")","v":"-"},{"$f":"IFERROR(IF(OR(L40=\"\",J40=\"\"),\"-\",L40*VLOOKUP(J40,Hjælpedata!$P$3:$Q$24,2)),\"-\")","v":"-"},null,null,null,"-","-",null,"-"]
[null,13,null,null,null,null,null,null,null,null,null,null,{"$f":"IFERROR(IF(OR(K41=\"\",I41=\"\"),\"-\",K41*VLOOKUP(I41,Hjælpedata!$P$3:$Q$24,2)),\"-\")","v":"-"},{"$f":"IFERROR(IF(OR(L41=\"\",J41=\"\"),\"-\",L41*VLOOKUP(J41,Hjælpedata!$P$3:$Q$24,2)),\"-\")","v":"-"},null,null,null,"-","-",null,"-"]
[null,14,null,null,null,null,null,null,null,null,null,null,{"$f":"IFERROR(IF(OR(K42=\"\",I42=\"\"),\"-\",K42*VLOOKUP(I42,Hjælpedata!$P$3:$Q$24,2)),\"-\")","v":"-"},{"$f":"IFERROR(IF(OR(L42=\"\",J42=\"\"),\"-\",L42*VLOOKUP(J42,Hjælpedata!$P$3:$Q$24,2)),\"-\")","v":"-"},null,null,null,"-","-",null,"-"]
[null,15,null,null,null,null,null,null,null,null,null,null,{"$f":"IFERROR(IF(OR(K43=\"\",I43=\"\"),\"-\",K43*VLOOKUP(I43,Hjælpedata!$P$3:$Q$24,2)),\"-\")","v":"-"},{"$f":"IFERROR(IF(OR(L43=\"\",J43=\"\"),\"-\",L43*VLOOKUP(J43,Hjælpedata!$P$3:$Q$24,2)),\"-\")","v":"-"},null,null,null,"-","-",null,"-"]

{"sheet":"Handlingsplan","index":5,"n_rows":33,"n_cols":24,"rows_kept":33,"cut":false,"hidden":false,"merged":[[0,0,0,1],[1,0,1,1]]}
["Handlingsplan"]
["Indsæt præcist det samme projektnavn som angivet i \"Screeningsliste energi\" og \"Screeningsliste CO2\" fanerne, da data hentes automatisk"]
[]
[null,"Indsæt projektnavn","Gennemføres dette projekt","Anvendelsesområde","Underområde","Støttemuligheder","Levetid [år]","Invest. [kr]","Energiart","Sekundær energiart","Besparelse af energiart \n[MWh/år]","Besparelse af sekundær energiart \n[MWh/år]","CO2 Reduktion \n[ton CO2/år]","CO2 Reduktion sekundær energiart\n[ton CO2/år]","Besparelse [dkk/år]","Forhøjede driftsomkostninger [dkk/år] ","Forhøjet el-forbrug [MWh/år]","Tilbagebetalinsgtid",null,null,null,"Omkostning pr ton CO2 reduceret","Diskonteringssatsen for hele perioden [%]","Nutidsværdi "]
[null,null,null,{"$f":"IFERROR(IFERROR(VLOOKUP($B5,'Screeningsliste CO2'!$C$6:$U$20,2,FALSE),VLOOKUP($B5,'Screeningsliste energi'!$C$5:$U$19,2,FALSE)),\"-\")","v":"-"},{"$f":"IFERROR(IFERROR(VLOOKUP($B5,'Screeningsliste CO2'!$C$6:$U$20,3,FALSE),VLOOKUP($B5,'Screeningsliste energi'!$C$5:$U$19,3,FALSE)),\"-\")","v":"-"},{"$f":"IFERROR(IFERROR(VLOOKUP($B5,'Screeningsliste CO2'!$C$6:$U$20,4,FALSE),VLOOKUP($B5,'Screeningsliste energi'!$C$5:$U$19,4,FALSE)),\"-\")","v":"-"},{"$f":"IFERROR(IFERROR(VLOOKUP($B5,'Screeningsliste CO2'!$C$6:$U$20,5,FALSE),VLOOKUP($B5,'Screeningsliste energi'!$C$5:$U$19,5,FALSE)),\"-\")","v":"-"},{"$f":"IFERROR(IFERROR(VLOOKUP($B5,'Screeningsliste CO2'!$C$6:$U$20,6,FALSE),VLOOKUP($B5,'Screeningsliste energi'!$C$5:$U$19,6,FALSE)),\"-\")","v":"-"},{"$f":"IFERROR(IFERROR(VLOOKUP($B5,'Screeningsliste CO2'!$C$6:$U$20,7,FALSE),VLOOKUP($B5,'Screeningsliste energi'!$C$5:$U$19,7,FALSE)),\"-\")","v":"-"},"  ",{"$f":"IFERROR(IFERROR(VLOOKUP($B5,'Screeningsliste CO2'!$C$6:$U$20,9,FALSE),VLOOKUP($B5,'Screeningsliste energi'!$C$5:$U$19,9,FALSE)),\"-\")","v":"-"},{"$f":"IFERROR(IFERROR(VLOOKUP($B5,'Screeningsliste CO2'!$C$6:$U$20,10,FALSE),VLOOKUP($B5,'Screeningsliste energi'!$C$5:$U$19,10,FALSE)),\"-\")","v":"-"},{"$f":"IFERROR(IFERROR(VLOOKUP($B5,'Screeningsliste CO2'!$C$6:$U$20,11,FALSE),VLOOKUP($B5,'Screeningsliste energi'!$C$5:$U$19,11,FALSE)),\"-\")","v":"-"},{"$f":"IFERROR(IFERROR(VLOOKUP($B5,'Screeningsliste CO2'!$C$6:$U$20,12,FALSE),VLOOKUP($B5,'Screeningsliste energi'!$C$5:$U$19,12,FALSE)),\"-\")","v":"-"},{"$f":"IFERROR(IFERROR(VLOOKUP($B5,'Screeningsliste CO2'!$C$6:$U$20,13,FALSE),VLOOKUP($B5,'Screeningsliste energi'!$C$5:$U$20,13,FALSE)),\"-\")","v":"-"},{"$f":"IFERROR(IFERROR(VLOOKUP($B5,'Screeningsliste CO2'!$C$6:$U$20,14,FALSE),VLOOKUP($B5,'Screeningsliste energi'!$C$5:$U$20,14,FALSE)),\"-\")","v":"-"},{"$f":"IFERROR(IFERROR(VLOOKUP($B5,'Screeningsliste CO2'!$C$6:$U$20,15,FALSE),VLOOKUP($B5,'Screeningsliste energi'!$C$5:$U$20,15,FALSE)),\"-\")","v":"-"},{"$f":"IFERROR(IFERROR(VLOOKUP($B5,'Screeningsliste CO2'!$C$6:$U$20,16,FALSE),VLOOKUP($B5,'Screeningsliste energi'!$C$5:$U$20,16,FALSE)),\"-\")","v":"-"},{"$f":"IFERROR(IFERROR(VLOOKUP($B5,'Screeningsliste CO2'!$C$6:$T$20,16,FALSE),VLOOKUP($B5,'Screeningsliste energi'!$C$5:$U$14,16,FALSE)),\"-\")","v":"-"},{"$f":"IFERROR(IFERROR(VLOOKUP($B5,'Screeningsliste CO2'!$C$6:$T$20,16,FALSE),VLOOKUP($B5,'Screeningsliste energi'!$C$5:$U$14,16,FALSE)),\"-\")","v":"-"},{"$f":"IFERROR(IFERROR(VLOOKUP($B5,'Screeningsliste CO2'!$C$6:$T$20,16,FALSE),VLOOKUP($B5,'Screeningsliste energi'!$C$5:$U$14,16,FALSE)),\"-\")","v":"-"},{"$f":"IFERROR(IFERROR(VLOOKUP($B5,'Screeningsliste CO2'!$C$6:$U$20,17,FALSE),VLOOKUP($B5,'Screeningsliste energi'!$C$5:$U$20,17,FALSE)),\"-\")","v":"-"},{"$f":"IFERROR(IFERROR(VLOOKUP($B5,'Screeningsliste CO2'!$C$6:$U$20,18,FALSE),VLOOKUP($B5,'Screeningsliste energi'!$C$5:$U$20,18,FALSE)),\"-\")","v":"-"},{"$f":"IFERROR(IFERROR(VLOOKUP($B5,'Screeningsliste CO2'!$C$6:$U$20,19,FALSE),VLOOKUP($B5,'Screeningsliste energi'!$C$5:$U$20,19,FALSE)),\"-\")","v":"-"}]
[null,null,null,{"$f":"IFERROR(IFERROR(VLOOKUP($B6,'Screeningsliste CO2'!$C$6:$U$20,2,FALSE),VLOOKUP($B6,'Screeningsliste energi'!$C$5:$U$19,2,FALSE)),\"-\")","v":"-"},{"$f":"IFERROR(IFERROR(VLOOKUP($B6,'Screeningsliste CO2'!$C$6:$U$20,3,FALSE),VLOOKUP($B6,'Screeningsliste energi'!$C$5:$U$19,3,FALSE)),\"-\")","v":"-"},{"$f":"IFERROR(IFERROR(VLOOKUP($B6,'Screeningsliste CO2'!$C$6:$U$20,4,FALSE),VLOOKUP($B6,'Screeningsliste energi'!$C$5:$U$19,4,FALSE)),\"-\")","v":"-"},{"$f":"IFERROR(IFERROR(VLOOKUP($B6,'Screeningsliste CO2'!$C$6:$U$20,5,FALSE),VLOOKUP($B6,'Screeningsliste energi'!$C$5:$U$19,5,FALSE)),\"-\")","v":"-"},{"$f":"IFERROR(IFERROR(VLOOKUP($B6,'Screeningsliste CO2'!$C$6:$U$20,6,FALSE),VLOOKUP($B6,'Screeningsliste energi'!$C$5:$U$19,6,FALSE)),\"-\")","v":"-"},{"$f":"IFERROR(IFERROR(VLOOKUP($B6,'Screeningsliste CO2'!$C$6:$U$20,7,FALSE),VLOOKUP($B6,'Screeningsliste energi'!$C$5:$U$19,7,FALSE)),\"-\")","v":"-"},{"$f":"IFERROR(IFERROR(VLOOKUP($B6,'Screeningsliste CO2'!$C$6:$U$20,8,FALSE),VLOOKUP($B6,'Screeningsliste energi'!$C$5:$U$19,8,FALSE)),\"-\")","v":"-"},{"$f":"IFERROR(IFERROR(VLOOKUP($B6,'Screeningsliste CO2'!$C$6:$U$20,9,FALSE),VLOOKUP($B6,'Screeningsliste energi'!$C$5:$U$19,9,FALSE)),\"-\")","v":"-"},{"$f":"IFERROR(IFERROR(VLOOKUP($B6,'Screeningsliste CO2'!$C$6:$U$20,10,FALSE),VLOOKUP($B6,'Screeningsliste energi'!$C$5:$U$19,10,FALSE)),\"-\")","v":"-"},{"$f":"IFERROR(IFERROR(VLOOKUP($B6,'Screeningsliste CO2'!$C$6:$U$20,11,FALSE),VLOOKUP($B6,'Screeningsliste energi'!$C$5:$U$19,11,FALSE)),\"-\")","v":"-"},{"$f":"IFERROR(IFERROR(VLOOKUP($B6,'Screeningsliste CO2'!$C$6:$U$20,12,FALSE),VLOOKUP($B6,'Screeningsliste energi'!$C$5:$U$19,12,FALSE)),\"-\")","v":"-"},{"$f":"IFERROR(IFERROR(VLOOKUP($B6,'Screeningsliste CO2'!$C$6:$U$20,13,FALSE),VLOOKUP($B6,'Screeningsliste energi'!$C$5:$U$20,13,FALSE)),\"-\")","v":"-"},{"$f":"IFERROR(IFERROR(VLOOKUP($B6,'Screeningsliste CO2'!$C$6:$U$20,14,FALSE),VLOOKUP($B6,'Screeningsliste energi'!$C$5:$U$20,14,FALSE)),\"-\")","v":"-"},{"$f":"IFERROR(IFERROR(VLOOKUP($B6,'Screeningsliste CO2'!$C$6:$U$20,15,FALSE),VLOOKUP($B6,'Screeningsliste energi'!$C$5:$U$20,15,FALSE)),\"-\")","v":"-"},{"$f":"IFERROR(IFERROR(VLOOKUP($B6,'Screeningsliste CO2'!$C$6:$U$20,16,FALSE),VLOOKUP($B6,'Screeningsliste energi'!$C$5:$U$20,16,FALSE)),\"-\")","v":"-"},{"$f":"IFERROR(IFERROR(VLOOKUP($B6,'Screeningsliste CO2'!$C$6:$T$20,3,FALSE),VLOOKUP($B6,'Screeningsliste energi'!$C$5:$U$19,3,FALSE)),\"-\")","v":"-"},{"$f":"IFERROR(IFERROR(VLOOKUP($B6,'Screeningsliste CO2'!$C$6:$T$20,3,FALSE),VLOOKUP($B6,'Screeningsliste energi'!$C$5:$U$19,3,FALSE)),\"-\")","v":"-"},{"$f":"IFERROR(IFERROR(VLOOKUP($B6,'Screeningsliste CO2'!$C$6:$T$20,3,FALSE),VLOOKUP($B6,'Screeningsliste energi'!$C$5:$U$19,3,FALSE)),\"-\")","v":"-"},{"$f":"IFERROR(IFERROR(VLOOKUP($B6,'Screeningsliste CO2'!$C$6:$U$20,17,FALSE),VLOOKUP($B6,'Screeningsliste energi'!$C$5:$U$20,17,FALSE)),\"-\")","v":"-"},{"$f":"IFERROR(IFERROR(VLOOKUP($B6,'Screeningsliste CO2'!$C$6:$U$20,18,FALSE),VLOOKUP($B6,'Screeningsliste energi'!$C$5:$U$20,18,FALSE)),\"-\")","v":"-"},{"$f":"IFERROR(IFERROR(VLOOKUP($B6,'Screeningsliste CO2'!$C$6:$U$20,19,FALSE),VLOOKUP($B6,'Screeningsliste energi'!$C$5:$U$20,19,FALSE)),\"-\")","v":"-"}]
[null,null,null,{"$f":"IFERROR(IFERROR(VLOOKUP($B7,'Screeningsliste CO2'!$C$6:$U$20,2,FALSE),VLOOKUP($B7,'Screeningsliste energi'!$C$5:$U$19,2,FALSE)),\"-\")","v":"-"},{"$f":"IFERROR(IFERROR(VLOOKUP($B7,'Screeningsliste CO2'!$C$6:$U$20,3,FALSE),VLOOKUP($B7,'Screeningsliste energi'!$C$5:$U$19,3,FALSE)),\"-\")","v":"-"},{"$f":"IFERROR(IFERROR(VLOOKUP($B7,'Screeningsliste CO2'!$C$6:$U$20,4,FALSE),VLOOKUP($B7,'Screeningsliste energi'!$C$5:$U$19,4,FALSE)),\"-\")","v":"-"},{"$f":"IFERROR(IFERROR(VLOOKUP($B7,'Screeningsliste CO2'!$C$6:$U$20,5,FALSE),VLOOKUP($B7,'Screeningsliste energi'!$C$5:$U$19,5,FALSE)),\"-\")","v":"-"},{"$f":"IFERROR(IFERROR(VLOOKUP($B7,'Screeningsliste CO2'!$C$6:$U$20,6,FALSE),VLOOKUP($B7,'Screeningsliste energi'!$C$5:$U$19,6,FALSE)),\"-\")","v":"-"},{"$f":"IFERROR(IFERROR(VLOOKUP($B7,'Screeningsliste CO2'!$C$6:$U$20,7,FALSE),VLOOKUP($B7,'Screeningsliste energi'!$C$5:$U$19,7,FALSE)),\"-\")","v":"-"},{"$f":"IFERROR(IFERROR(VLOOKUP($B7,'Screeningsliste CO2'!$C$6:$U$20,8,FALSE),VLOOKUP($B7,'Screeningsliste energi'!$C$5:$U$19,8,FALSE)),\"-\")","v":"-"},{"$f":"IFERROR(IFERROR(VLOOKUP($B7,'Screeningsliste CO2'!$C$6:$U$20,9,FALSE),VLOOKUP($B7,'Screeningsliste energi'!$C$5:$U$19,9,FALSE)),\"-\")","v":"-"},{"$f":"IFERROR(IFERROR(VLOOKUP($B7,'Screeningsliste CO2'!$C$6:$U$20,10,FALSE),VLOOKUP($B7,'Screeningsliste energi'!$C$5:$U$19,10,FALSE)),\"-\")","v":"-"},{"$f":"IFERROR(IFERROR(VLOOKUP($B7,'Screeningsliste CO2'!$C$6:$U$20,11,FALSE),VLOOKUP($B7,'Screeningsliste energi'!$C$5:$U$19,11,FALSE)),\"-\")","v":"-"},{"$f":"IFERROR(IFERROR(VLOOKUP($B7,'Screeningsliste CO2'!$C$6:$U$20,12,FALSE),VLOOKUP($B7,'Screeningsliste energi'!$C$5:$U$19,12,FALSE)),\"-\")","v":"-"},{"$f":"IFERROR(IFERROR(VLOOKUP($B7,'Screeningsliste CO2'!$C$6:$U$20,13,FALSE),VLOOKUP($B7,'Screeningsliste energi'!$C$5:$U$20,13,FALSE)),\"-\")","v":"-"},{"$f":"IFERROR(IFERROR(VLOOKUP($B7,'Screeningsliste CO2'!$C$6:$U$20,14,FALSE),VLOOKUP($B7,'Screeningsliste energi'!$C$5:$U$20,14,FALSE)),\"-\")","v":"-"},{"$f":"IFERROR(IFERROR(VLOOKUP($B7,'Screeningsliste CO2'!$C$6:$U$20,15,FALSE),VLOOKUP($B7,'Screeningsliste energi'!$C$5:$U$20,15,FALSE)),\"-\")","v":"-"},{"$f":"IFERROR(IFERROR(VLOOKUP($B7,'Screeningsliste CO2'!$C$6:$U$20,16,FALSE),VLOOKUP($B7,'Screeningsliste energi'!$C$5:$U$20,16,FALSE)),\"-\")","v":"-"},{"$f":"IFERROR(IFERROR(VLOOKUP($B7,'Screeningsliste CO2'!$C$6:$T$20,3,FALSE),VLOOKUP($B7,'Screeningsliste energi'!$C$5:$U$19,3,FALSE)),\"-\")","v":"-"},{"$f":"IFERROR(IFERROR(VLOOKUP($B7,'Screeningsliste CO2'!$C$6:$T$20,3,FALSE),VLOOKUP($B7,'Screeningsliste energi'!$C$5:$U$19,3,FALSE)),\"-\")","v":"-"},{"$f":"IFERROR(IFERROR(VLOOKUP($B7,'Screeningsliste CO2'!$C$6:$T$20,3,FALSE),VLOOKUP($B7,'Screeningsliste energi'!$C$5:$U$19,3,FALSE)),\"-\")","v":"-"},{"$f":"IFERROR(IFERROR(VLOOKUP($B7,'Screeningsliste CO2'!$C$6:$U$20,17,FALSE),VLOOKUP($B7,'Screeningsliste energi'!$C$5:$U$20,17,FALSE)),\"-\")","v":"-"},{"$f":"IFERROR(IFERROR(VLOOKUP($B7,'Screeningsliste CO2'!$C$6:$U$20,18,FALSE),VLOOKUP($B7,'Screeningsliste energi'!$C$5:$U$20,18,FALSE)),\"-\")","v":"-"},{"$f":"IFERROR(IFERROR(VLOOKUP($B7,'Screeningsliste CO2'!$C$6:$U$20,19,FALSE),VLOOKUP($B7,'Screeningsliste energi'!$C$5:$U$20,19,FALSE)),\"-\")","v":"-"}]
[null,null,null,{"$f":"IFERROR(IFERROR(VLOOKUP($B8,'Screeningsliste CO2'!$C$6:$U$20,2,FALSE),VLOOKUP($B8,'Screeningsliste energi'!$C$5:$U$19,2,FALSE)),\"-\")","v":"-"},{"$f":"IFERROR(IFERROR(VLOOKUP($B8,'Screeningsliste CO2'!$C$6:$U$20,3,FALSE),VLOOKUP($B8,'Screeningsliste energi'!$C$5:$U$19,3,FALSE)),\"-\")","v":"-"},{"$f":"IFERROR(IFERROR(VLOOKUP($B8,'Screeningsliste CO2'!$C$6:$U$20,4,FALSE),VLOOKUP($B8,'Screeningsliste energi'!$C$5:$U$19,4,FALSE)),\"-\")","v":"-"},{"$f":"IFERROR(IFERROR(VLOOKUP($B8,'Screeningsliste CO2'!$C$6:$U$20,5,FALSE),VLOOKUP($B8,'Screeningsliste energi'!$C$5:$U$19,5,FALSE)),\"-\")","v":"-"},{"$f":"IFERROR(IFERROR(VLOOKUP($B8,'Screeningsliste CO2'!$C$6:$U$20,6,FALSE),VLOOKUP($B8,'Screeningsliste energi'!$C$5:$U$19,6,FALSE)),\"-\")","v":"-"},{"$f":"IFERROR(IFERROR(VLOOKUP($B8,'Screeningsliste CO2'!$C$6:$U$20,7,FALSE),VLOOKUP($B8,'Screeningsliste energi'!$C$5:$U$19,7,FALSE)),\"-\")","v":"-"},{"$f":"IFERROR(IFERROR(VLOOKUP($B8,'Screeningsliste CO2'!$C$6:$U$20,8,FALSE),VLOOKUP($B8,'Screeningsliste energi'!$C$5:$U$19,8,FALSE)),\"-\")","v":"-"},{"$f":"IFERROR(IFERROR(VLOOKUP($B8,'Screeningsliste CO2'!$C$6:$U$20,9,FALSE),VLOOKUP($B8,'Screeningsliste energi'!$C$5:$U$19,9,FALSE)),\"-\")","v":"-"},{"$f":"IFERROR(IFERROR(VLOOKUP($B8,'Screeningsliste CO2'!$C$6:$U$20,10,FALSE),VLOOKUP($B8,'Screeningsliste energi'!$C$5:$U$19,10,FALSE)),\"-\")","v":"-"},{"$f":"IFERROR(IFERROR(VLOOKUP($B8,'Screeningsliste CO2'!$C$6:$U$20,11,FALSE),VLOOKUP($B8,'Screeningsliste energi'!$C$5:$U$19,11,FALSE)),\"-\")","v":"-"},{"$f":"IFERROR(IFERROR(VLOOKUP($B8,'Screeningsliste CO2'!$C$6:$U$20,12,FALSE),VLOOKUP($B8,'Screeningsliste energi'!$C$5:$U$19,12,FALSE)),\"-\")","v":"-"},{"$f":"IFERROR(IFERROR(VLOOKUP($B8,'Screeningsliste CO2'!$C$6:$U$20,13,FALSE),VLOOKUP($B8,'Screeningsliste energi'!$C$5:$U$20,13,FALSE)),\"-\")","v":"-"},{"$f":"IFERROR(IFERROR(VLOOKUP($B8,'Screeningsliste CO2'!$C$6:$U$20,14,FALSE),VLOOKUP($B8,'Screeningsliste energi'!$C$5:$U$20,14,FALSE)),\"-\")","v":"-"},{"$f":"IFERROR(IFERROR(VLOOKUP($B8,'Screeningsliste CO2'!$C$6:$U$20,15,FALSE),VLOOKUP($B8,'Screeningsliste energi'!$C$5:$U$20,15,FALSE)),\"-\")","v":"-"},{"$f":"IFERROR(IFERROR(VLOOKUP($B8,'Screeningsliste CO2'!$C$6:$U$20,16,FALSE),VLOOKUP($B8,'Screeningsliste energi'!$C$5:$U$20,16,FALSE)),\"-\")","v":"-"},{"$f":"IFERROR(IFERROR(VLOOKUP($B8,'Screeningsliste CO2'!$C$6:$T$20,3,FALSE),VLOOKUP($B8,'Screeningsliste energi'!$C$5:$U$19,3,FALSE)),\"-\")","v":"-"},{"$f":"IFERROR(IFERROR(VLOOKUP($B8,'Screeningsliste CO2'!$C$6:$T$20,3,FALSE),VLOOKUP($B8,'Screeningsliste energi'!$C$5:$U$19,3,FALSE)),\"-\")","v":"-"},{"$f":"IFERROR(IFERROR(VLOOKUP($B8,'Screeningsliste CO2'!$C$6:$T$20,3,FALSE),VLOOKUP($B8,'Screeningsliste energi'!$C$5:$U$19,3,FALSE)),\"-\")","v":"-"},{"$f":"IFERROR(IFERROR(VLOOKUP($B8,'Screeningsliste CO2'!$C$6:$U$20,17,FALSE),VLOOKUP($B8,'Screeningsliste energi'!$C$5:$U$20,17,FALSE)),\"-\")","v":"-"},{"$f":"IFERROR(IFERROR(VLOOKUP($B8,'Screeningsliste CO2'!$C$6:$U$20,18,FALSE),VLOOKUP($B8,'Screeningsliste energi'!$C$5:$U$20,18,FALSE)),\"-\")","v":"-"},{"$f":"IFERROR(IFERROR(VLOOKUP($B8,'Screeningsliste CO2'!$C$6:$U$20,19,FALSE),VLOOKUP($B8,'Screeningsliste energi'!$C$5:$U$20,19,FALSE)),\"-\")","v":"-"}]
[null,null,null,{"$f":"IFERROR(IFERROR(VLOOKUP($B9,'Screeningsliste CO2'!$C$6:$U$20,2,FALSE),VLOOKUP($B9,'Screeningsliste energi'!$C$5:$U$19,2,FALSE)),\"-\")","v":"-"},{"$f":"IFERROR(IFERROR(VLOOKUP($B9,'Screeningsliste CO2'!$C$6:$U$20,3,FALSE),VLOOKUP($B9,'Screeningsliste energi'!$C$5:$U$19,3,FALSE)),\"-\")","v":"-"},{"$f":"IFERROR(IFERROR(VLOOKUP($B9,'Screeningsliste CO2'!$C$6:$U$20,4,FALSE),VLOOKUP($B9,'Screeningsliste energi'!$C$5:$U$19,4,FALSE)),\"-\")","v":"-"},{"$f":"IFERROR(IFERROR(VLOOKUP($B9,'Screeningsliste CO2'!$C$6:$U$20,5,FALSE),VLOOKUP($B9,'Screeningsliste energi'!$C$5:$U$19,5,FALSE)),\"-\")","v":"-"},{"$f":"IFERROR(IFERROR(VLOOKUP($B9,'Screeningsliste CO2'!$C$6:$U$20,6,FALSE),VLOOKUP($B9,'Screeningsliste energi'!$C$5:$U$19,6,FALSE)),\"-\")","v":"-"},{"$f":"IFERROR(IFERROR(VLOOKUP($B9,'Screeningsliste CO2'!$C$6:$U$20,7,FALSE),VLOOKUP($B9,'Screeningsliste energi'!$C$5:$U$19,7,FALSE)),\"-\")","v":"-"},{"$f":"IFERROR(IFERROR(VLOOKUP($B9,'Screeningsliste CO2'!$C$6:$U$20,8,FALSE),VLOOKUP($B9,'Screeningsliste energi'!$C$5:$U$19,8,FALSE)),\"-\")","v":"-"},{"$f":"IFERROR(IFERROR(VLOOKUP($B9,'Screeningsliste CO2'!$C$6:$U$20,9,FALSE),VLOOKUP($B9,'Screeningsliste energi'!$C$5:$U$19,9,FALSE)),\"-\")","v":"-"},{"$f":"IFERROR(IFERROR(VLOOKUP($B9,'Screeningsliste CO2'!$C$6:$U$20,10,FALSE),VLOOKUP($B9,'Screeningsliste energi'!$C$5:$U$19,10,FALSE)),\"-\")","v":"-"},{"$f":"IFERROR(IFERROR(VLOOKUP($B9,'Screeningsliste CO2'!$C$6:$U$20,11,FALSE),VLOOKUP($B9,'Screeningsliste energi'!$C$5:$U$19,11,FALSE)),\"-\")","v":"-"},{"$f":"IFERROR(IFERROR(VLOOKUP($B9,'Screeningsliste CO2'!$C$6:$U$20,12,FALSE),VLOOKUP($B9,'Screeningsliste energi'!$C$5:$U$19,12,FALSE)),\"-\")","v":"-"},{"$f":"IFERROR(IFERROR(VLOOKUP($B9,'Screeningsliste CO2'!$C$6:$U$20,13,FALSE),VLOOKUP($B9,'Screeningsliste energi'!$C$5:$U$20,13,FALSE)),\"-\")","v":"-"},{"$f":"IFERROR(IFERROR(VLOOKUP($B9,'Screeningsliste CO2'!$C$6:$U$20,14,FALSE),VLOOKUP($B9,'Screeningsliste energi'!$C$5:$U$20,14,FALSE)),\"-\")","v":"-"},{"$f":"IFERROR(IFERROR(VLOOKUP($B9,'Screeningsliste CO2'!$C$6:$U$20,15,FALSE),VLOOKUP($B9,'Screeningsliste energi'!$C$5:$U$20,15,FALSE)),\"-\")","v":"-"},{"$f":"IFERROR(IFERROR(VLOOKUP($B9,'Screeningsliste CO2'!$C$6:$U$20,16,FALSE),VLOOKUP($B9,'Screeningsliste energi'!$C$5:$U$20,16,FALSE)),\"-\")","v":"-"},{"$f":"IFERROR(IFERROR(VLOOKUP($B9,'Screeningsliste CO2'!$C$6:$T$20,3,FALSE),VLOOKUP($B9,'Screeningsliste energi'!$C$5:$U$19,3,FALSE)),\"-\")","v":"-"},{"$f":"IFERROR(IFERROR(VLOOKUP($B9,'Screeningsliste CO2'!$C$6:$T$20,3,FALSE),VLOOKUP($B9,'Screeningsliste energi'!$C$5:$U$19,3,FALSE)),\"-\")","v":"-"},{"$f":"IFERROR(IFERROR(VLOOKUP($B9,'Screeningsliste CO2'!$C$6:$T$20,3,FALSE),VLOOKUP($B9,'Screeningsliste energi'!$C$5:$U$19,3,FALSE)),\"-\")","v":"-"},{"$f":"IFERROR(IFERROR(VLOOKUP($B9,'Screeningsliste CO2'!$C$6:$U$20,17,FALSE),VLOOKUP($B9,'Screeningsliste energi'!$C$5:$U$20,17,FALSE)),\"-\")","v":"-"},{"$f":"IFERROR(IFERROR(VLOOKUP($B9,'Screeningsliste CO2'!$C$6:$U$20,18,FALSE),VLOOKUP($B9,'Screeningsliste energi'!$C$5:$U$20,18,FALSE)),\"-\")","v":"-"},{"$f":"IFERROR(IFERROR(VLOOKUP($B9,'Screeningsliste CO2'!$C$6:$U$20,19,FALSE),VLOOKUP($B9,'Screeningsliste energi'!$C$5:$U$20,19,FALSE)),\"-\")","v":"-"}]
[null,null,null,{"$f":"IFERROR(IFERROR(VLOOKUP($B10,'Screeningsliste CO2'!$C$6:$U$20,2,FALSE),VLOOKUP($B10,'Screeningsliste energi'!$C$5:$U$19,2,FALSE)),\"-\")","v":"-"},{"$f":"IFERROR(IFERROR(VLOOKUP($B10,'Screeningsliste CO2'!$C$6:$U$20,3,FALSE),VLOOKUP($B10,'Screeningsliste energi'!$C$5:$U$19,3,FALSE)),\"-\")","v":"-"},{"$f":"IFERROR(IFERROR(VLOOKUP($B10,'Screeningsliste CO2'!$C$6:$U$20,4,FALSE),VLOOKUP($B10,'Screeningsliste energi'!$C$5:$U$19,4,FALSE)),\"-\")","v":"-"},{"$f":"IFERROR(IFERROR(VLOOKUP($B10,'Screeningsliste CO2'!$C$6:$U$20,5,FALSE),VLOOKUP($B10,'Screeningsliste energi'!$C$5:$U$19,5,FALSE)),\"-\")","v":"-"},{"$f":"IFERROR(IFERROR(VLOOKUP($B10,'Screeningsliste CO2'!$C$6:$U$20,6,FALSE),VLOOKUP($B10,'Screeningsliste energi'!$C$5:$U$19,6,FALSE)),\"-\")","v":"-"},{"$f":"IFERROR(IFERROR(VLOOKUP($B10,'Screeningsliste CO2'!$C$6:$U$20,7,FALSE),VLOOKUP($B10,'Screeningsliste energi'!$C$5:$U$19,7,FALSE)),\"-\")","v":"-"},{"$f":"IFERROR(IFERROR(VLOOKUP($B10,'Screeningsliste CO2'!$C$6:$U$20,8,FALSE),VLOOKUP($B10,'Screeningsliste energi'!$C$5:$U$19,8,FALSE)),\"-\")","v":"-"},{"$f":"IFERROR(IFERROR(VLOOKUP($B10,'Screeningsliste CO2'!$C$6:$U$20,9,FALSE),VLOOKUP($B10,'Screeningsliste energi'!$C$5:$U$19,9,FALSE)),\"-\")","v":"-"},{"$f":"IFERROR(IFERROR(VLOOKUP($B10,'Screeningsliste CO2'!$C$6:$U$20,10,FALSE),VLOOKUP($B10,'Screeningsliste energi'!$C$5:$U$19,10,FALSE)),\"-\")","v":"-"},{"$f":"IFERROR(IFERROR(VLOOKUP($B10,'Screeningsliste CO2'!$C$6:$U$20,11,FALSE),VLOOKUP($B10,'Screeningsliste energi'!$C$5:$U$19,11,FALSE)),\"-\")","v":"-"},{"$f":"IFERROR(IFERROR(VLOOKUP($B10,'Screeningsliste CO2'!$C$6:$U$20,12,FALSE),VLOOKUP($B10,'Screeningsliste energi'!$C$5:$U$19,12,FALSE)),\"-\")","v":"-"},{"$f":"IFERROR(IFERROR(VLOOKUP($B10,'Screeningsliste CO2'!$C$6:$U$20,13,FALSE),VLOOKUP($B10,'Screeningsliste energi'!$C$5:$U$20,13,FALSE)),\"-\")","v":"-"},{"$f":"IFERROR(IFERROR(VLOOKUP($B10,'Screeningsliste CO2'!$C$6:$U$20,14,FALSE),VLOOKUP($B10,'Screeningsliste energi'!$C$5:$U$20,14,FALSE)),\"-\")","v":"-"},{"$f":"IFERROR(IFERROR(VLOOKUP($B10,'Screeningsliste CO2'!$C$6:$U$20,15,FALSE),VLOOKUP($B10,'Screeningsliste energi'!$C$5:$U$20,15,FALSE)),\"-\")","v":"-"},{"$f":"IFERROR(IFERROR(VLOOKUP($B10,'Screeningsliste CO2'!$C$6:$U$20,16,FALSE),VLOOKUP($B10,'Screeningsliste energi'!$C$5:$U$20,16,FALSE)),\"-\")","v":"-"},{"$f":"IFERROR(IFERROR(VLOOKUP($B10,'Screeningsliste CO2'!$C$6:$T$20,3,FALSE),VLOOKUP($B10,'Screeningsliste energi'!$C$5:$U$19,3,FALSE)),\"-\")","v":"-"},{"$f":"IFERROR(IFERROR(VLOOKUP($B10,'Screeningsliste CO2'!$C$6:$T$20,3,FALSE),VLOOKUP($B10,'Screeningsliste energi'!$C$5:$U$19,3,FALSE)),\"-\")","v":"-"},{"$f":"IFERROR(IFERROR(VLOOKUP($B10,'Screeningsliste CO2'!$C$6:$T$20,3,FALSE),VLOOKUP($B10,'Screeningsliste energi'!$C$5:$U$19,3,FALSE)),\"-\")","v":"-"},{"$f":"IFERROR(IFERROR(VLOOKUP($B10,'Screeningsliste CO2'!$C$6:$U$20,17,FALSE),VLOOKUP($B10,'Screeningsliste energi'!$C$5:$U$20,17,FALSE)),\"-\")","v":"-"},{"$f":"IFERROR(IFERROR(VLOOKUP($B10,'Screeningsliste CO2'!$C$6:$U$20,18,FALSE),VLOOKUP($B10,'Screeningsliste energi'!$C$5:$U$20,18,FALSE)),\"-\")","v":"-"},{"$f":"IFERROR(IFERROR(VLOOKUP($B10,'Screeningsliste CO2'!$C$6:$U$20,19,FALSE),VLOOKUP($B10,'Screeningsliste energi'!$C$5:$U$20,19,FALSE)),\"-\")","v":"-"}]
[null,null,null,{"$f":"IFERROR(IFERROR(VLOOKUP($B11,'Screeningsliste CO2'!$C$6:$U$20,2,FALSE),VLOOKUP($B11,'Screeningsliste energi'!$C$5:$U$19,2,FALSE)),\"-\")","v":"-"},{"$f":"IFERROR(IFERROR(VLOOKUP($B11,'Screeningsliste CO2'!$C$6:$U$20,3,FALSE),VLOOKUP($B11,'Screeningsliste energi'!$C$5:$U$19,3,FALSE)),\"-\")","v":"-"},{"$f":"IFERROR(IFERROR(VLOOKUP($B11,'Screeningsliste CO2'!$C$6:$U$20,4,FALSE),VLOOKUP($B11,'Screeningsliste energi'!$C$5:$U$19,4,FALSE)),\"-\")","v":"-"},{"$f":"IFERROR(IFERROR(VLOOKUP($B11,'Screeningsliste CO2'!$C$6:$U$20,5,FALSE),VLOOKUP($B11,'Screeningsliste energi'!$C$5:$U$19,5,FALSE)),\"-\")","v":"-"},{"$f":"IFERROR(IFERROR(VLOOKUP($B11,'Screeningsliste CO2'!$C$6:$U$20,6,FALSE),VLOOKUP($B11,'Screeningsliste energi'!$C$5:$U$19,6,FALSE)),\"-\")","v":"-"},{"$f":"IFERROR(IFERROR(VLOOKUP($B11,'Screeningsliste CO2'!$C$6:$U$20,7,FALSE),VLOOKUP($B11,'Screeningsliste energi'!$C$5:$U$19,7,FALSE)),\"-\")","v":"-"},{"$f":"IFERROR(IFERROR(VLOOKUP($B11,'Screeningsliste CO2'!$C$6:$U$20,8,FALSE),VLOOKUP($B11,'Screeningsliste energi'!$C$5:$U$19,8,FALSE)),\"-\")","v":"-"},{"$f":"IFERROR(IFERROR(VLOOKUP($B11,'Screeningsliste CO2'!$C$6:$U$20,9,FALSE),VLOOKUP($B11,'Screeningsliste energi'!$C$5:$U$19,9,FALSE)),\"-\")","v":"-"},{"$f":"IFERROR(IFERROR(VLOOKUP($B11,'Screeningsliste CO2'!$C$6:$U$20,10,FALSE),VLOOKUP($B11,'Screeningsliste energi'!$C$5:$U$19,10,FALSE)),\"-\")","v":"-"},{"$f":"IFERROR(IFERROR(VLOOKUP($B11,'Screeningsliste CO2'!$C$6:$U$20,11,FALSE),VLOOKUP($B11,'Screeningsliste energi'!$C$5:$U$19,11,FALSE)),\"-\")","v":"-"},{"$f":"IFERROR(IFERROR(VLOOKUP($B11,'Screeningsliste CO2'!$C$6:$U$20,12,FALSE),VLOOKUP($B11,'Screeningsliste energi'!$C$5:$U$19,12,FALSE)),\"-\")","v":"-"},{"$f":"IFERROR(IFERROR(VLOOKUP($B11,'Screeningsliste CO2'!$C$6:$U$20,13,FALSE),VLOOKUP($B11,'Screeningsliste energi'!$C$5:$U$20,13,FALSE)),\"-\")","v":"-"},{"$f":"IFERROR(IFERROR(VLOOKUP($B11,'Screeningsliste CO2'!$C$6:$U$20,14,FALSE),VLOOKUP($B11,'Screeningsliste energi'!$C$5:$U$20,14,FALSE)),\"-\")","v":"-"},{"$f":"IFERROR(IFERROR(VLOOKUP($B11,'Screeningsliste CO2'!$C$6:$U$20,15,FALSE),VLOOKUP($B11,'Screeningsliste energi'!$C$5:$U$20,15,FALSE)),\"-\")","v":"-"},{"$f":"IFERROR(IFERROR(VLOOKUP($B11,'Screeningsliste CO2'!$C$6:$U$20,16,FALSE),VLOOKUP($B11,'Screeningsliste energi'!$C$5:$U$20,16,FALSE)),\"-\")","v":"-"},{"$f":"IFERROR(IFERROR(VLOOKUP($B11,'Screeningsliste CO2'!$C$6:$T$20,3,FALSE),VLOOKUP($B11,'Screeningsliste energi'!$C$5:$U$19,3,FALSE)),\"-\")","v":"-"},{"$f":"IFERROR(IFERROR(VLOOKUP($B11,'Screeningsliste CO2'!$C$6:$T$20,3,FALSE),VLOOKUP($B11,'Screeningsliste energi'!$C$5:$U$19,3,FALSE)),\"-\")","v":"-"},{"$f":"IFERROR(IFERROR(VLOOKUP($B11,'Screeningsliste CO2'!$C$6:$T$20,3,FALSE),VLOOKUP($B11,'Screeningsliste energi'!$C$5:$U$19,3,FALSE)),\"-\")","v":"-"},{"$f":"IFERROR(IFERROR(VLOOKUP($B11,'Screeningsliste CO2'!$C$6:$U$20,17,FALSE),VLOOKUP($B11,'Screeningsliste energi'!$C$5:$U$20,17,FALSE)),\"-\")","v":"-"},{"$f":"IFERROR(IFERROR(VLOOKUP($B11,'Screeningsliste CO2'!$C$6:$U$20,18,FALSE),VLOOKUP($B11,'Screeningsliste energi'!$C$5:$U$20,18,FALSE)),\"-\")","v":"-"},{"$f":"IFERROR(IFERROR(VLOOKUP($B11,'Screeningsliste CO2'!$C$6:$U$20,19,FALSE),VLOOKUP($B11,'Screeningsliste energi'!$C$5:$U$20,19,FALSE)),\"-\")","v":"-"}]
[null,null,null,{"$f":"IFERROR(IFERROR(VLOOKUP($B12,'Screeningsliste CO2'!$C$6:$U$20,2,FALSE),VLOOKUP($B12,'Screeningsliste energi'!$C$5:$U$19,2,FALSE)),\"-\")","v":"-"},{"$f":"IFERROR(IFERROR(VLOOKUP($B12,'Screeningsliste CO2'!$C$6:$U$20,3,FALSE),VLOOKUP($B12,'Screeningsliste energi'!$C$5:$U$19,3,FALSE)),\"-\")","v":"-"},{"$f":"IFERROR(IFERROR(VLOOKUP($B12,'Screeningsliste CO2'!$C$6:$U$20,4,FALSE),VLOOKUP($B12,'Screeningsliste energi'!$C$5:$U$19,4,FALSE)),\"-\")","v":"-"},{"$f":"IFERROR(IFERROR(VLOOKUP($B12,'Screeningsliste CO2'!$C$6:$U$20,5,FALSE),VLOOKUP($B12,'Screeningsliste energi'!$C$5:$U$19,5,FALSE)),\"-\")","v":"-"},{"$f":"IFERROR(IFERROR(VLOOKUP($B12,'Screeningsliste CO2'!$C$6:$U$20,6,FALSE),VLOOKUP($B12,'Screeningsliste energi'!$C$5:$U$19,6,FALSE)),\"-\")","v":"-"},{"$f":"IFERROR(IFERROR(VLOOKUP($B12,'Screeningsliste CO2'!$C$6:$U$20,7,FALSE),VLOOKUP($B12,'Screeningsliste energi'!$C$5:$U$19,7,FALSE)),\"-\")","v":"-"},{"$f":"IFERROR(IFERROR(VLOOKUP($B12,'Screeningsliste CO2'!$C$6:$U$20,8,FALSE),VLOOKUP($B12,'Screeningsliste energi'!$C$5:$U$19,8,FALSE)),\"-\")","v":"-"},{"$f":"IFERROR(IFERROR(VLOOKUP($B12,'Screeningsliste CO2'!$C$6:$U$20,9,FALSE),VLOOKUP($B12,'Screeningsliste energi'!$C$5:$U$19,9,FALSE)),\"-\")","v":"-"},{"$f":"IFERROR(IFERROR(VLOOKUP($B12,'Screeningsliste CO2'!$C$6:$U$20,10,FALSE),VLOOKUP($B12,'Screeningsliste energi'!$C$5:$U$19,10,FALSE)),\"-\")","v":"-"},{"$f":"IFERROR(IFERROR(VLOOKUP($B12,'Screeningsliste CO2'!$C$6:$U$20,11,FALSE),VLOOKUP($B12,'Screeningsliste energi'!$C$5:$U$19,11,FALSE)),\"-\")","v":"-"},{"$f":"IFERROR(IFERROR(VLOOKUP($B12,'Screeningsliste CO2'!$C$6:$U$20,12,FALSE),VLOOKUP($B12,'Screeningsliste energi'!$C$5:$U$19,12,FALSE)),\"-\")","v":"-"},{"$f":"IFERROR(IFERROR(VLOOKUP($B12,'Screeningsliste CO2'!$C$6:$U$20,13,FALSE),VLOOKUP($B12,'Screeningsliste energi'!$C$5:$U$20,13,FALSE)),\"-\")","v":"-"},{"$f":"IFERROR(IFERROR(VLOOKUP($B12,'Screeningsliste CO2'!$C$6:$U$20,14,FALSE),VLOOKUP($B12,'Screeningsliste energi'!$C$5:$U$20,14,FALSE)),\"-\")","v":"-"},{"$f":"IFERROR(IFERROR(VLOOKUP($B12,'Screeningsliste CO2'!$C$6:$U$20,15,FALSE),VLOOKUP($B12,'Screeningsliste energi'!$C$5:$U$20,15,FALSE)),\"-\")","v":"-"},{"$f":"IFERROR(IFERROR(VLOOKUP($B12,'Screeningsliste CO2'!$C$6:$U$20,16,FALSE),VLOOKUP($B12,'Screeningsliste energi'!$C$5:$U$20,16,FALSE)),\"-\")","v":"-"},{"$f":"IFERROR(IFERROR(VLOOKUP($B12,'Screeningsliste CO2'!$C$6:$T$20,3,FALSE),VLOOKUP($B12,'Screeningsliste energi'!$C$5:$U$19,3,FALSE)),\"-\")","v":"-"},{"$f":"IFERROR(IFERROR(VLOOKUP($B12,'Screeningsliste CO2'!$C$6:$T$20,3,FALSE),VLOOKUP($B12,'Screeningsliste energi'!$C$5:$U$19,3,FALSE)),\"-\")","v":"-"},{"$f":"IFERROR(IFERROR(VLOOKUP($B12,'Screeningsliste CO2'!$C$6:$T$20,3,FALSE),VLOOKUP($B12,'Screeningsliste energi'!$C$5:$U$19,3,FALSE)),\"-\")","v":"-"},{"$f":"IFERROR(IFERROR(VLOOKUP($B12,'Screeningsliste CO2'!$C$6:$U$20,17,FALSE),VLOOKUP($B12,'Screeningsliste energi'!$C$5:$U$20,17,FALSE)),\"-\")","v":"-"},{"$f":"IFERROR(IFERROR(VLOOKUP($B12,'Screeningsliste CO2'!$C$6:$U$20,18,FALSE),VLOOKUP($B12,'Screeningsliste energi'!$C$5:$U$20,18,FALSE)),\"-\")","v":"-"},{"$f":"IFERROR(IFERROR(VLOOKUP($B12,'Screeningsliste CO2'!$C$6:$U$20,19,FALSE),VLOOKUP($B12,'Screeningsliste energi'!$C$5:$U$20,19,FALSE)),\"-\")","v":"-"}]
[null,null,null,{"$f":"IFERROR(IFERROR(VLOOKUP($B13,'Screeningsliste CO2'!$C$6:$U$20,2,FALSE),VLOOKUP($B13,'Screeningsliste energi'!$C$5:$U$19,2,FALSE)),\"-\")","v":"-"},{"$f":"IFERROR(IFERROR(VLOOKUP($B13,'Screeningsliste CO2'!$C$6:$U$20,3,FALSE),VLOOKUP($B13,'Screeningsliste energi'!$C$5:$U$19,3,FALSE)),\"-\")","v":"-"},{"$f":"IFERROR(IFERROR(VLOOKUP($B13,'Screeningsliste CO2'!$C$6:$U$20,4,FALSE),VLOOKUP($B13,'Screeningsliste energi'!$C$5:$U$19,4,FALSE)),\"-\")","v":"-"},{"$f":"IFERROR(IFERROR(VLOOKUP($B13,'Screeningsliste CO2'!$C$6:$U$20,5,FALSE),VLOOKUP($B13,'Screeningsliste energi'!$C$5:$U$19,5,FALSE)),\"-\")","v":"-"},{"$f":"IFERROR(IFERROR(VLOOKUP($B13,'Screeningsliste CO2'!$C$6:$U$20,6,FALSE),VLOOKUP($B13,'Screeningsliste energi'!$C$5:$U$19,6,FALSE)),\"-\")","v":"-"},{"$f":"IFERROR(IFERROR(VLOOKUP($B13,'Screeningsliste CO2'!$C$6:$U$20,7,FALSE),VLOOKUP($B13,'Screeningsliste energi'!$C$5:$U$19,7,FALSE)),\"-\")","v":"-"},{"$f":"IFERROR(IFERROR(VLOOKUP($B13,'Screeningsliste CO2'!$C$6:$U$20,8,FALSE),VLOOKUP($B13,'Screeningsliste energi'!$C$5:$U$19,8,FALSE)),\"-\")","v":"-"},{"$f":"IFERROR(IFERROR(VLOOKUP($B13,'Screeningsliste CO2'!$C$6:$U$20,9,FALSE),VLOOKUP($B13,'Screeningsliste energi'!$C$5:$U$19,9,FALSE)),\"-\")","v":"-"},{"$f":"IFERROR(IFERROR(VLOOKUP($B13,'Screeningsliste CO2'!$C$6:$U$20,10,FALSE),VLOOKUP($B13,'Screeningsliste energi'!$C$5:$U$19,10,FALSE)),\"-\")","v":"-"},{"$f":"IFERROR(IFERROR(VLOOKUP($B13,'Screeningsliste CO2'!$C$6:$U$20,11,FALSE),VLOOKUP($B13,'Screeningsliste energi'!$C$5:$U$19,11,FALSE)),\"-\")","v":"-"},{"$f":"IFERROR(IFERROR(VLOOKUP($B13,'Screeningsliste CO2'!$C$6:$U$20,12,FALSE),VLOOKUP($B13,'Screeningsliste energi'!$C$5:$U$19,12,FALSE)),\"-\")","v":"-"},{"$f":"IFERROR(IFERROR(VLOOKUP($B13,'Screeningsliste CO2'!$C$6:$U$20,13,FALSE),VLOOKUP($B13,'Screeningsliste energi'!$C$5:$U$20,13,FALSE)),\"-\")","v":"-"},{"$f":"IFERROR(IFERROR(VLOOKUP($B13,'Screeningsliste CO2'!$C$6:$U$20,14,FALSE),VLOOKUP($B13,'Screeningsliste energi'!$C$5:$U$20,14,FALSE)),\"-\")","v":"-"},{"$f":"IFERROR(IFERROR(VLOOKUP($B13,'Screeningsliste CO2'!$C$6:$U$20,15,FALSE),VLOOKUP($B13,'Screeningsliste energi'!$C$5:$U$20,15,FALSE)),\"-\")","v":"-"},{"$f":"IFERROR(IFERROR(VLOOKUP($B13,'Screeningsliste CO2'!$C$6:$U$20,16,FALSE),VLOOKUP($B13,'Screeningsliste energi'!$C$5:$U$20,16,FALSE)),\"-\")","v":"-"},{"$f":"IFERROR(IFERROR(VLOOKUP($B13,'Screeningsliste CO2'!$C$6:$T$20,3,FALSE),VLOOKUP($B13,'Screeningsliste energi'!$C$5:$U$19,3,FALSE)),\"-\")","v":"-"},{"$f":"IFERROR(IFERROR(VLOOKUP($B13,'Screeningsliste CO2'!$C$6:$T$20,3,FALSE),VLOOKUP($B13,'Screeningsliste energi'!$C$5:$U$19,3,FALSE)),\"-\")","v":"-"},{"$f":"IFERROR(IFERROR(VLOOKUP($B13,'Screeningsliste CO2'!$C$6:$T$20,3,FALSE),VLOOKUP($B13,'Screeningsliste energi'!$C$5:$U$19,3,FALSE)),\"-\")","v":"-"},{"$f":"IFERROR(IFERROR(VLOOKUP($B13,'Screeningsliste CO2'!$C$6:$U$20,17,FALSE),VLOOKUP($B13,'Screeningsliste energi'!$C$5:$U$20,17,FALSE)),\"-\")","v":"-"},{"$f":"IFERROR(IFERROR(VLOOKUP($B13,'Screeningsliste CO2'!$C$6:$U$20,18,FALSE),VLOOKUP($B13,'Screeningsliste energi'!$C$5:$U$20,18,FALSE)),\"-\")","v":"-"},{"$f":"IFERROR(IFERROR(VLOOKUP($B13,'Screeningsliste CO2'!$C$6:$U$20,19,FALSE),VLOOKUP($B13,'Screeningsliste energi'!$C$5:$U$20,19,FALSE)),\"-\")","v":"-"}]
[null,null,null,{"$f":"IFERROR(IFERROR(VLOOKUP($B14,'Screeningsliste CO2'!$C$6:$U$20,2,FALSE),VLOOKUP($B14,'Screeningsliste energi'!$C$5:$U$19,2,FALSE)),\"-\")","v":"-"},{"$f":"IFERROR(IFERROR(VLOOKUP($B14,'Screeningsliste CO2'!$C$6:$U$20,3,FALSE),VLOOKUP($B14,'Screeningsliste energi'!$C$5:$U$19,3,FALSE)),\"-\")","v":"-"},{"$f":"IFERROR(IFERROR(VLOOKUP($B14,'Screeningsliste CO2'!$C$6:$U$20,4,FALSE),VLOOKUP($B14,'Screeningsliste energi'!$C$5:$U$19,4,FALSE)),\"-\")","v":"-"},{"$f":"IFERROR(IFERROR(VLOOKUP($B14,'Screeningsliste CO2'!$C$6:$U$20,5,FALSE),VLOOKUP($B14,'Screeningsliste energi'!$C$5:$U$19,5,FALSE)),\"-\")","v":"-"},{"$f":"IFERROR(IFERROR(VLOOKUP($B14,'Screeningsliste CO2'!$C$6:$U$20,6,FALSE),VLOOKUP($B14,'Screeningsliste energi'!$C$5:$U$19,6,FALSE)),\"-\")","v":"-"},{"$f":"IFERROR(IFERROR(VLOOKUP($B14,'Screeningsliste CO2'!$C$6:$U$20,7,FALSE),VLOOKUP($B14,'Screeningsliste energi'!$C$5:$U$19,7,FALSE)),\"-\")","v":"-"},{"$f":"IFERROR(IFERROR(VLOOKUP($B14,'Screeningsliste CO2'!$C$6:$U$20,8,FALSE),VLOOKUP($B14,'Screeningsliste energi'!$C$5:$U$19,8,FALSE)),\"-\")","v":"-"},{"$f":"IFERROR(IFERROR(VLOOKUP($B14,'Screeningsliste CO2'!$C$6:$U$20,9,FALSE),VLOOKUP($B14,'Screeningsliste energi'!$C$5:$U$19,9,FALSE)),\"-\")","v":"-"},{"$f":"IFERROR(IFERROR(VLOOKUP($B14,'Screeningsliste CO2'!$C$6:$U$20,10,FALSE),VLOOKUP($B14,'Screeningsliste energi'!$C$5:$U$19,10,FALSE)),\"-\")","v":"-"},{"$f":"IFERROR(IFERROR(VLOOKUP($B14,'Screeningsliste CO2'!$C$6:$U$20,11,FALSE),VLOOKUP($B14,'Screeningsliste energi'!$C$5:$U$19,11,FALSE)),\"-\")","v":"-"},{"$f":"IFERROR(IFERROR(VLOOKUP($B14,'Screeningsliste CO2'!$C$6:$U$20,12,FALSE),VLOOKUP($B14,'Screeningsliste energi'!$C$5:$U$19,12,FALSE)),\"-\")","v":"-"},{"$f":"IFERROR(IFERROR(VLOOKUP($B14,'Screeningsliste CO2'!$C$6:$U$20,13,FALSE),VLOOKUP($B14,'Screeningsliste energi'!$C$5:$U$20,13,FALSE)),\"-\")","v":"-"},{"$f":"IFERROR(IFERROR(VLOOKUP($B14,'Screeningsliste CO2'!$C$6:$U$20,14,FALSE),VLOOKUP($B14,'Screeningsliste energi'!$C$5:$U$20,14,FALSE)),\"-\")","v":"-"},{"$f":"IFERROR(IFERROR(VLOOKUP($B14,'Screeningsliste CO2'!$C$6:$U$20,15,FALSE),VLOOKUP($B14,'Screeningsliste energi'!$C$5:$U$20,15,FALSE)),\"-\")","v":"-"},{"$f":"IFERROR(IFERROR(VLOOKUP($B14,'Screeningsliste CO2'!$C$6:$U$20,16,FALSE),VLOOKUP($B14,'Screeningsliste energi'!$C$5:$U$20,16,FALSE)),\"-\")","v":"-"},{"$f":"IFERROR(IFERROR(VLOOKUP($B14,'Screeningsliste CO2'!$C$6:$T$20,3,FALSE),VLOOKUP($B14,'Screeningsliste energi'!$C$5:$U$19,3,FALSE)),\"-\")","v":"-"},{"$f":"IFERROR(IFERROR(VLOOKUP($B14,'Screeningsliste CO2'!$C$6:$T$20,3,FALSE),VLOOKUP($B14,'Screeningsliste energi'!$C$5:$U$19,3,FALSE)),\"-\")","v":"-"},{"$f":"IFERROR(IFERROR(VLOOKUP($B14,'Screeningsliste CO2'!$C$6:$T$20,3,FALSE),VLOOKUP($B14,'Screeningsliste energi'!$C$5:$U$19,3,FALSE)),\"-\")","v":"-"},{"$f":"IFERROR(IFERROR(VLOOKUP($B14,'Screeningsliste CO2'!$C$6:$U$20,17,FALSE),VLOOKUP($B14,'Screeningsliste energi'!$C$5:$U$20,17,FALSE)),\"-\")","v":"-"},{"$f":"IFERROR(IFERROR(VLOOKUP($B14,'Screeningsliste CO2'!$C$6:$U$20,18,FALSE),VLOOKUP($B14,'Screeningsliste energi'!$C$5:$U$20,18,FALSE)),\"-\")","v":"-"},{"$f":"IFERROR(IFERROR(VLOOKUP($B14,'Screeningsliste CO2'!$C$6:$U$20,19,FALSE),VLOOKUP($B14,'Screeningsliste energi'!$C$5:$U$20,19,FALSE)),\"-\")","v":"-"}]
[null,null,null,{"$f":"IFERROR(IFERROR(VLOOKUP($B15,'Screeningsliste CO2'!$C$6:$U$20,2,FALSE),VLOOKUP($B15,'Screeningsliste energi'!$C$5:$U$19,2,FALSE)),\"-\")","v":"-"},{"$f":"IFERROR(IFERROR(VLOOKUP($B15,'Screeningsliste CO2'!$C$6:$U$20,3,FALSE),VLOOKUP($B15,'Screeningsliste energi'!$C$5:$U$19,3,FALSE)),\"-\")","v":"-"},{"$f":"IFERROR(IFERROR(VLOOKUP($B15,'Screeningsliste CO2'!$C$6:$U$20,4,FALSE),VLOOKUP($B15,'Screeningsliste energi'!$C$5:$U$19,4,FALSE)),\"-\")","v":"-"},{"$f":"IFERROR(IFERROR(VLOOKUP($B15,'Screeningsliste CO2'!$C$6:$U$20,5,FALSE),VLOOKUP($B15,'Screeningsliste energi'!$C$5:$U$19,5,FALSE)),\"-\")","v":"-"},{"$f":"IFERROR(IFERROR(VLOOKUP($B15,'Screeningsliste CO2'!$C$6:$U$20,6,FALSE),VLOOKUP($B15,'Screeningsliste energi'!$C$5:$U$19,6,FALSE)),\"-\")","v":"-"},{"$f":"IFERROR(IFERROR(VLOOKUP($B15,'Screeningsliste CO2'!$C$6:$U$20,7,FALSE),VLOOKUP($B15,'Screeningsliste energi'!$C$5:$U$19,7,FALSE)),\"-\")","v":"-"},{"$f":"IFERROR(IFERROR(VLOOKUP($B15,'Screeningsliste CO2'!$C$6:$U$20,8,FALSE),VLOOKUP($B15,'Screeningsliste energi'!$C$5:$U$19,8,FALSE)),\"-\")","v":"-"},{"$f":"IFERROR(IFERROR(VLOOKUP($B15,'Screeningsliste CO2'!$C$6:$U$20,9,FALSE),VLOOKUP($B15,'Screeningsliste energi'!$C$5:$U$19,9,FALSE)),\"-\")","v":"-"},{"$f":"IFERROR(IFERROR(VLOOKUP($B15,'Screeningsliste CO2'!$C$6:$U$20,10,FALSE),VLOOKUP($B15,'Screeningsliste energi'!$C$5:$U$19,10,FALSE)),\"-\")","v":"-"},{"$f":"IFERROR(IFERROR(VLOOKUP($B15,'Screeningsliste CO2'!$C$6:$U$20,11,FALSE),VLOOKUP($B15,'Screeningsliste energi'!$C$5:$U$19,11,FALSE)),\"-\")","v":"-"},{"$f":"IFERROR(IFERROR(VLOOKUP($B15,'Screeningsliste CO2'!$C$6:$U$20,12,FALSE),VLOOKUP($B15,'Screeningsliste energi'!$C$5:$U$19,12,FALSE)),\"-\")","v":"-"},{"$f":"IFERROR(IFERROR(VLOOKUP($B15,'Screeningsliste CO2'!$C$6:$U$20,13,FALSE),VLOOKUP($B15,'Screeningsliste energi'!$C$5:$U$20,13,FALSE)),\"-\")","v":"-"},{"$f":"IFERROR(IFERROR(VLOOKUP($B15,'Screeningsliste CO2'!$C$6:$U$20,14,FALSE),VLOOKUP($B15,'Screeningsliste energi'!$C$5:$U$20,14,FALSE)),\"-\")","v":"-"},{"$f":"IFERROR(IFERROR(VLOOKUP($B15,'Screeningsliste CO2'!$C$6:$U$20,15,FALSE),VLOOKUP($B15,'Screeningsliste energi'!$C$5:$U$20,15,FALSE)),\"-\")","v":"-"},{"$f":"IFERROR(IFERROR(VLOOKUP($B15,'Screeningsliste CO2'!$C$6:$U$20,16,FALSE),VLOOKUP($B15,'Screeningsliste energi'!$C$5:$U$20,16,FALSE)),\"-\")","v":"-"},{"$f":"IFERROR(IFERROR(VLOOKUP($B15,'Screeningsliste CO2'!$C$6:$T$20,3,FALSE),VLOOKUP($B15,'Screeningsliste energi'!$C$5:$U$19,3,FALSE)),\"-\")","v":"-"},{"$f":"IFERROR(IFERROR(VLOOKUP($B15,'Screeningsliste CO2'!$C$6:$T$20,3,FALSE),VLOOKUP($B15,'Screeningsliste energi'!$C$5:$U$19,3,FALSE)),\"-\")","v":"-"},{"$f":"IFERROR(IFERROR(VLOOKUP($B15,'Screeningsliste CO2'!$C$6:$T$20,3,FALSE),VLOOKUP($B15,'Screeningsliste energi'!$C$5:$U$19,3,FALSE)),\"-\")","v":"-"},{"$f":"IFERROR(IFERROR(VLOOKUP($B15,'Screeningsliste CO2'!$C$6:$U$20,17,FALSE),VLOOKUP($B15,'Screeningsliste energi'!$C$5:$U$20,17,FALSE)),\"-\")","v":"-"},{"$f":"IFERROR(IFERROR(VLOOKUP($B15,'Screeningsliste CO2'!$C$6:$U$20,18,FALSE),VLOOKUP($B15,'Screeningsliste energi'!$C$5:$U$20,18,FALSE)),\"-\")","v":"-"},{"$f":"IFERROR(IFERROR(VLOOKUP($B15,'Screeningsliste CO2'!$C$6:$U$20,19,FALSE),VLOOKUP($B15,'Screeningsliste energi'!$C$5:$U$20,19,FALSE)),\"-\")","v":"-"}]
[null,null,null,{"$f":"IFERROR(IFERROR(VLOOKUP($B16,'Screeningsliste CO2'!$C$6:$U$20,2,FALSE),VLOOKUP($B16,'Screeningsliste energi'!$C$5:$U$19,2,FALSE)),\"-\")","v":"-"},{"$f":"IFERROR(IFERROR(VLOOKUP($B16,'Screeningsliste CO2'!$C$6:$U$20,3,FALSE),VLOOKUP($B16,'Screeningsliste energi'!$C$5:$U$19,3,FALSE)),\"-\")","v":"-"},{"$f":"IFERROR(IFERROR(VLOOKUP($B16,'Screeningsliste CO2'!$C$6:$U$20,4,FALSE),VLOOKUP($B16,'Screeningsliste energi'!$C$5:$U$19,4,FALSE)),\"-\")","v":"-"},{"$f":"IFERROR(IFERROR(VLOOKUP($B16,'Screeningsliste CO2'!$C$6:$U$20,5,FALSE),VLOOKUP($B16,'Screeningsliste energi'!$C$5:$U$19,5,FALSE)),\"-\")","v":"-"},{"$f":"IFERROR(IFERROR(VLOOKUP($B16,'Screeningsliste CO2'!$C$6:$U$20,6,FALSE),VLOOKUP($B16,'Screeningsliste energi'!$C$5:$U$19,6,FALSE)),\"-\")","v":"-"},{"$f":"IFERROR(IFERROR(VLOOKUP($B16,'Screeningsliste CO2'!$C$6:$U$20,7,FALSE),VLOOKUP($B16,'Screeningsliste energi'!$C$5:$U$19,7,FALSE)),\"-\")","v":"-"},{"$f":"IFERROR(IFERROR(VLOOKUP($B16,'Screeningsliste CO2'!$C$6:$U$20,8,FALSE),VLOOKUP($B16,'Screeningsliste energi'!$C$5:$U$19,8,FALSE)),\"-\")","v":"-"},{"$f":"IFERROR(IFERROR(VLOOKUP($B16,'Screeningsliste CO2'!$C$6:$U$20,9,FALSE),VLOOKUP($B16,'Screeningsliste energi'!$C$5:$U$19,9,FALSE)),\"-\")","v":"-"},{"$f":"IFERROR(IFERROR(VLOOKUP($B16,'Screeningsliste CO2'!$C$6:$U$20,10,FALSE),VLOOKUP($B16,'Screeningsliste energi'!$C$5:$U$19,10,FALSE)),\"-\")","v":"-"},{"$f":"IFERROR(IFERROR(VLOOKUP($B16,'Screeningsliste CO2'!$C$6:$U$20,11,FALSE),VLOOKUP($B16,'Screeningsliste energi'!$C$5:$U$19,11,FALSE)),\"-\")","v":"-"},{"$f":"IFERROR(IFERROR(VLOOKUP($B16,'Screeningsliste CO2'!$C$6:$U$20,12,FALSE),VLOOKUP($B16,'Screeningsliste energi'!$C$5:$U$19,12,FALSE)),\"-\")","v":"-"},{"$f":"IFERROR(IFERROR(VLOOKUP($B16,'Screeningsliste CO2'!$C$6:$U$20,13,FALSE),VLOOKUP($B16,'Screeningsliste energi'!$C$5:$U$20,13,FALSE)),\"-\")","v":"-"},{"$f":"IFERROR(IFERROR(VLOOKUP($B16,'Screeningsliste CO2'!$C$6:$U$20,14,FALSE),VLOOKUP($B16,'Screeningsliste energi'!$C$5:$U$20,14,FALSE)),\"-\")","v":"-"},{"$f":"IFERROR(IFERROR(VLOOKUP($B16,'Screeningsliste CO2'!$C$6:$U$20,15,FALSE),VLOOKUP($B16,'Screeningsliste energi'!$C$5:$U$20,15,FALSE)),\"-\")","v":"-"},{"$f":"IFERROR(IFERROR(VLOOKUP($B16,'Screeningsliste CO2'!$C$6:$U$20,16,FALSE),VLOOKUP($B16,'Screeningsliste energi'!$C$5:$U$20,16,FALSE)),\"-\")","v":"-"},{"$f":"IFERROR(IFERROR(VLOOKUP($B16,'Screeningsliste CO2'!$C$6:$T$20,3,FALSE),VLOOKUP($B16,'Screeningsliste energi'!$C$5:$U$19,3,FALSE)),\"-\")","v":"-"},{"$f":"IFERROR(IFERROR(VLOOKUP($B16,'Screeningsliste CO2'!$C$6:$T$20,3,FALSE),VLOOKUP($B16,'Screeningsliste energi'!$C$5:$U$19,3,FALSE)),\"-\")","v":"-"},{"$f":"IFERROR(IFERROR(VLOOKUP($B16,'Screeningsliste CO2'!$C$6:$T$20,3,FALSE),VLOOKUP($B16,'Screeningsliste energi'!$C$5:$U$19,3,FALSE)),\"-\")","v":"-"},{"$f":"IFERROR(IFERROR(VLOOKUP($B16,'Screeningsliste CO2'!$C$6:$U$20,17,FALSE),VLOOKUP($B16,'Screeningsliste energi'!$C$5:$U$20,17,FALSE)),\"-\")","v":"-"},{"$f":"IFERROR(IFERROR(VLOOKUP($B16,'Screeningsliste CO2'!$C$6:$U$20,18,FALSE),VLOOKUP($B16,'Screeningsliste energi'!$C$5:$U$20,18,FALSE)),\"-\")","v":"-"},{"$f":"IFERROR(IFERROR(VLOOKUP($B16,'Screeningsliste CO2'!$C$6:$U$20,19,FALSE),VLOOKUP($B16,'Screeningsliste energi'!$C$5:$U$20,19,FALSE)),\"-\")","v":"-"}]
[null,null,null,{"$f":"IFERROR(IFERROR(VLOOKUP($B17,'Screeningsliste CO2'!$C$6:$U$20,2,FALSE),VLOOKUP($B17,'Screeningsliste energi'!$C$5:$U$19,2,FALSE)),\"-\")","v":"-"},{"$f":"IFERROR(IFERROR(VLOOKUP($B17,'Screeningsliste CO2'!$C$6:$U$20,3,FALSE),VLOOKUP($B17,'Screeningsliste energi'!$C$5:$U$19,3,FALSE)),\"-\")","v":"-"},{"$f":"IFERROR(IFERROR(VLOOKUP($B17,'Screeningsliste CO2'!$C$6:$U$20,4,FALSE),VLOOKUP($B17,'Screeningsliste energi'!$C$5:$U$19,4,FALSE)),\"-\")","v":"-"},{"$f":"IFERROR(IFERROR(VLOOKUP($B17,'Screeningsliste CO2'!$C$6:$U$20,5,FALSE),VLOOKUP($B17,'Screeningsliste energi'!$C$5:$U$19,5,FALSE)),\"-\")","v":"-"},{"$f":"IFERROR(IFERROR(VLOOKUP($B17,'Screeningsliste CO2'!$C$6:$U$20,6,FALSE),VLOOKUP($B17,'Screeningsliste energi'!$C$5:$U$19,6,FALSE)),\"-\")","v":"-"},{"$f":"IFERROR(IFERROR(VLOOKUP($B17,'Screeningsliste CO2'!$C$6:$U$20,7,FALSE),VLOOKUP($B17,'Screeningsliste energi'!$C$5:$U$19,7,FALSE)),\"-\")","v":"-"},{"$f":"IFERROR(IFERROR(VLOOKUP($B17,'Screeningsliste CO2'!$C$6:$U$20,8,FALSE),VLOOKUP($B17,'Screeningsliste energi'!$C$5:$U$19,8,FALSE)),\"-\")","v":"-"},{"$f":"IFERROR(IFERROR(VLOOKUP($B17,'Screeningsliste CO2'!$C$6:$U$20,9,FALSE),VLOOKUP($B17,'Screeningsliste energi'!$C$5:$U$19,9,FALSE)),\"-\")","v":"-"},{"$f":"IFERROR(IFERROR(VLOOKUP($B17,'Screeningsliste CO2'!$C$6:$U$20,10,FALSE),VLOOKUP($B17,'Screeningsliste energi'!$C$5:$U$19,10,FALSE)),\"-\")","v":"-"},{"$f":"IFERROR(IFERROR(VLOOKUP($B17,'Screeningsliste CO2'!$C$6:$U$20,11,FALSE),VLOOKUP($B17,'Screeningsliste energi'!$C$5:$U$19,11,FALSE)),\"-\")","v":"-"},{"$f":"IFERROR(IFERROR(VLOOKUP($B17,'Screeningsliste CO2'!$C$6:$U$20,12,FALSE),VLOOKUP($B17,'Screeningsliste energi'!$C$5:$U$19,12,FALSE)),\"-\")","v":"-"},{"$f":"IFERROR(IFERROR(VLOOKUP($B17,'Screeningsliste CO2'!$C$6:$U$20,13,FALSE),VLOOKUP($B17,'Screeningsliste energi'!$C$5:$U$20,13,FALSE)),\"-\")","v":"-"},{"$f":"IFERROR(IFERROR(VLOOKUP($B17,'Screeningsliste CO2'!$C$6:$U$20,14,FALSE),VLOOKUP($B17,'Screeningsliste energi'!$C$5:$U$20,14,FALSE)),\"-\")","v":"-"},{"$f":"IFERROR(IFERROR(VLOOKUP($B17,'Screeningsliste CO2'!$C$6:$U$20,15,FALSE),VLOOKUP($B17,'Screeningsliste energi'!$C$5:$U$20,15,FALSE)),\"-\")","v":"-"},{"$f":"IFERROR(IFERROR(VLOOKUP($B17,'Screeningsliste CO2'!$C$6:$U$20,16,FALSE),VLOOKUP($B17,'Screeningsliste energi'!$C$5:$U$20,16,FALSE)),\"-\")","v":"-"},{"$f":"IFERROR(IFERROR(VLOOKUP($B17,'Screeningsliste CO2'!$C$6:$T$20,3,FALSE),VLOOKUP($B17,'Screeningsliste energi'!$C$5:$U$19,3,FALSE)),\"-\")","v":"-"},{"$f":"IFERROR(IFERROR(VLOOKUP($B17,'Screeningsliste CO2'!$C$6:$T$20,3,FALSE),VLOOKUP($B17,'Screeningsliste energi'!$C$5:$U$19,3,FALSE)),\"-\")","v":"-"},{"$f":"IFERROR(IFERROR(VLOOKUP($B17,'Screeningsliste CO2'!$C$6:$T$20,3,FALSE),VLOOKUP($B17,'Screeningsliste energi'!$C$5:$U$19,3,FALSE)),\"-\")","v":"-"},{"$f":"IFERROR(IFERROR(VLOOKUP($B17,'Screeningsliste CO2'!$C$6:$U$20,17,FALSE),VLOOKUP($B17,'Screeningsliste energi'!$C$5:$U$20,17,FALSE)),\"-\")","v":"-"},{"$f":"IFERROR(IFERROR(VLOOKUP($B17,'Screeningsliste CO2'!$C$6:$U$20,18,FALSE),VLOOKUP($B17,'Screeningsliste energi'!$C$5:$U$20,18,FALSE)),\"-\")","v":"-"},{"$f":"IFERROR(IFERROR(VLOOKUP($B17,'Screeningsliste CO2'!$C$6:$U$20,19,FALSE),VLOOKUP($B17,'Screeningsliste energi'!$C$5:$U$20,19,FALSE)),\"-\")","v":"-"}]
[null,null,null,{"$f":"IFERROR(IFERROR(VLOOKUP($B18,'Screeningsliste CO2'!$C$6:$U$20,2,FALSE),VLOOKUP($B18,'Screeningsliste energi'!$C$5:$U$19,2,FALSE)),\"-\")","v":"-"},{"$f":"IFERROR(IFERROR(VLOOKUP($B18,'Screeningsliste CO2'!$C$6:$U$20,3,FALSE),VLOOKUP($B18,'Screeningsliste energi'!$C$5:$U$19,3,FALSE)),\"-\")","v":"-"},{"$f":"IFERROR(IFERROR(VLOOKUP($B18,'Screeningsliste CO2'!$C$6:$U$20,4,FALSE),VLOOKUP($B18,'Screeningsliste energi'!$C$5:$U$19,4,FALSE)),\"-\")","v":"-"},{"$f":"IFERROR(IFERROR(VLOOKUP($B18,'Screeningsliste CO2'!$C$6:$U$20,5,FALSE),VLOOKUP($B18,'Screeningsliste energi'!$C$5:$U$19,5,FALSE)),\"-\")","v":"-"},{"$f":"IFERROR(IFERROR(VLOOKUP($B18,'Screeningsliste CO2'!$C$6:$U$20,6,FALSE),VLOOKUP($B18,'Screeningsliste energi'!$C$5:$U$19,6,FALSE)),\"-\")","v":"-"},{"$f":"IFERROR(IFERROR(VLOOKUP($B18,'Screeningsliste CO2'!$C$6:$U$20,7,FALSE),VLOOKUP($B18,'Screeningsliste energi'!$C$5:$U$19,7,FALSE)),\"-\")","v":"-"},{"$f":"IFERROR(IFERROR(VLOOKUP($B18,'Screeningsliste CO2'!$C$6:$U$20,8,FALSE),VLOOKUP($B18,'Screeningsliste energi'!$C$5:$U$19,8,FALSE)),\"-\")","v":"-"},{"$f":"IFERROR(IFERROR(VLOOKUP($B18,'Screeningsliste CO2'!$C$6:$U$20,9,FALSE),VLOOKUP($B18,'Screeningsliste energi'!$C$5:$U$19,9,FALSE)),\"-\")","v":"-"},{"$f":"IFERROR(IFERROR(VLOOKUP($B18,'Screeningsliste CO2'!$C$6:$U$20,10,FALSE),VLOOKUP($B18,'Screeningsliste energi'!$C$5:$U$19,10,FALSE)),\"-\")","v":"-"},{"$f":"IFERROR(IFERROR(VLOOKUP($B18,'Screeningsliste CO2'!$C$6:$U$20,11,FALSE),VLOOKUP($B18,'Screeningsliste energi'!$C$5:$U$19,11,FALSE)),\"-\")","v":"-"},{"$f":"IFERROR(IFERROR(VLOOKUP($B18,'Screeningsliste CO2'!$C$6:$U$20,12,FALSE),VLOOKUP($B18,'Screeningsliste energi'!$C$5:$U$19,12,FALSE)),\"-\")","v":"-"},{"$f":"IFERROR(IFERROR(VLOOKUP($B18,'Screeningsliste CO2'!$C$6:$U$20,13,FALSE),VLOOKUP($B18,'Screeningsliste energi'!$C$5:$U$20,13,FALSE)),\"-\")","v":"-"},{"$f":"IFERROR(IFERROR(VLOOKUP($B18,'Screeningsliste CO2'!$C$6:$U$20,14,FALSE),VLOOKUP($B18,'Screeningsliste energi'!$C$5:$U$20,14,FALSE)),\"-\")","v":"-"},{"$f":"IFERROR(IFERROR(VLOOKUP($B18,'Screeningsliste CO2'!$C$6:$U$20,15,FALSE),VLOOKUP($B18,'Screeningsliste energi'!$C$5:$U$20,15,FALSE)),\"-\")","v":"-"},{"$f":"IFERROR(IFERROR(VLOOKUP($B18,'Screeningsliste CO2'!$C$6:$U$20,16,FALSE),VLOOKUP($B18,'Screeningsliste energi'!$C$5:$U$20,16,FALSE)),\"-\")","v":"-"},{"$f":"IFERROR(IFERROR(VLOOKUP($B18,'Screeningsliste CO2'!$C$6:$T$20,3,FALSE),VLOOKUP($B18,'Screeningsliste energi'!$C$5:$U$19,3,FALSE)),\"-\")","v":"-"},{"$f":"IFERROR(IFERROR(VLOOKUP($B18,'Screeningsliste CO2'!$C$6:$T$20,3,FALSE),VLOOKUP($B18,'Screeningsliste energi'!$C$5:$U$19,3,FALSE)),\"-\")","v":"-"},{"$f":"IFERROR(IFERROR(VLOOKUP($B18,'Screeningsliste CO2'!$C$6:$T$20,3,FALSE),VLOOKUP($B18,'Screeningsliste energi'!$C$5:$U$19,3,FALSE)),\"-\")","v":"-"},{"$f":"IFERROR(IFERROR(VLOOKUP($B18,'Screeningsliste CO2'!$C$6:$U$20,17,FALSE),VLOOKUP($B18,'Screeningsliste energi'!$C$5:$U$20,17,FALSE)),\"-\")","v":"-"},{"$f":"IFERROR(IFERROR(VLOOKUP($B18,'Screeningsliste CO2'!$C$6:$U$20,18,FALSE),VLOOKUP($B18,'Screeningsliste energi'!$C$5:$U$20,18,FALSE)),\"-\")","v":"-"},{"$f":"IFERROR(IFERROR(VLOOKUP($B18,'Screeningsliste CO2'!$C$6:$U$20,19,FALSE),VLOOKUP($B18,'Screeningsliste energi'!$C$5:$U$20,19,FALSE)),\"-\")","v":"-"}]
[null,null,null,{"$f":"IFERROR(IFERROR(VLOOKUP($B19,'Screeningsliste CO2'!$C$6:$U$20,2,FALSE),VLOOKUP($B19,'Screeningsliste energi'!$C$5:$U$19,2,FALSE)),\"-\")","v":"-"},{"$f":"IFERROR(IFERROR(VLOOKUP($B19,'Screeningsliste CO2'!$C$6:$U$20,3,FALSE),VLOOKUP($B19,'Screeningsliste energi'!$C$5:$U$19,3,FALSE)),\"-\")","v":"-"},{"$f":"IFERROR(IFERROR(VLOOKUP($B19,'Screeningsliste CO2'!$C$6:$U$20,4,FALSE),VLOOKUP($B19,'Screeningsliste energi'!$C$5:$U$19,4,FALSE)),\"-\")","v":"-"},{"$f":"IFERROR(IFERROR(VLOOKUP($B19,'Screeningsliste CO2'!$C$6:$U$20,5,FALSE),VLOOKUP($B19,'Screeningsliste energi'!$C$5:$U$19,5,FALSE)),\"-\")","v":"-"},{"$f":"IFERROR(IFERROR(VLOOKUP($B19,'Screeningsliste CO2'!$C$6:$U$20,6,FALSE),VLOOKUP($B19,'Screeningsliste energi'!$C$5:$U$19,6,FALSE)),\"-\")","v":"-"},{"$f":"IFERROR(IFERROR(VLOOKUP($B19,'Screeningsliste CO2'!$C$6:$U$20,7,FALSE),VLOOKUP($B19,'Screeningsliste energi'!$C$5:$U$19,7,FALSE)),\"-\")","v":"-"},{"$f":"IFERROR(IFERROR(VLOOKUP($B19,'Screeningsliste CO2'!$C$6:$U$20,8,FALSE),VLOOKUP($B19,'Screeningsliste energi'!$C$5:$U$19,8,FALSE)),\"-\")","v":"-"},{"$f":"IFERROR(IFERROR(VLOOKUP($B19,'Screeningsliste CO2'!$C$6:$U$20,9,FALSE),VLOOKUP($B19,'Screeningsliste energi'!$C$5:$U$19,9,FALSE)),\"-\")","v":"-"},{"$f":"IFERROR(IFERROR(VLOOKUP($B19,'Screeningsliste CO2'!$C$6:$U$20,10,FALSE),VLOOKUP($B19,'Screeningsliste energi'!$C$5:$U$19,10,FALSE)),\"-\")","v":"-"},{"$f":"IFERROR(IFERROR(VLOOKUP($B19,'Screeningsliste CO2'!$C$6:$U$20,11,FALSE),VLOOKUP($B19,'Screeningsliste energi'!$C$5:$U$19,11,FALSE)),\"-\")","v":"-"},{"$f":"IFERROR(IFERROR(VLOOKUP($B19,'Screeningsliste CO2'!$C$6:$U$20,12,FALSE),VLOOKUP($B19,'Screeningsliste energi'!$C$5:$U$19,12,FALSE)),\"-\")","v":"-"},{"$f":"IFERROR(IFERROR(VLOOKUP($B19,'Screeningsliste CO2'!$C$6:$U$20,13,FALSE),VLOOKUP($B19,'Screeningsliste energi'!$C$5:$U$20,13,FALSE)),\"-\")","v":"-"},{"$f":"IFERROR(IFERROR(VLOOKUP($B19,'Screeningsliste CO2'!$C$6:$U$20,14,FALSE),VLOOKUP($B19,'Screeningsliste energi'!$C$5:$U$20,14,FALSE)),\"-\")","v":"-"},{"$f":"IFERROR(IFERROR(VLOOKUP($B19,'Screeningsliste CO2'!$C$6:$U$20,15,FALSE),VLOOKUP($B19,'Screeningsliste energi'!$C$5:$U$20,15,FALSE)),\"-\")","v":"-"},{"$f":"IFERROR(IFERROR(VLOOKUP($B19,'Screeningsliste CO2'!$C$6:$U$20,16,FALSE),VLOOKUP($B19,'Screeningsliste energi'!$C$5:$U$20,16,FALSE)),\"-\")","v":"-"},{"$f":"IFERROR(IFERROR(VLOOKUP($B19,'Screeningsliste CO2'!$C$6:$T$20,3,FALSE),VLOOKUP($B19,'Screeningsliste energi'!$C$5:$U$19,3,FALSE)),\"-\")","v":"-"},{"$f":"IFERROR(IFERROR(VLOOKUP($B19,'Screeningsliste CO2'!$C$6:$T$20,3,FALSE),VLOOKUP($B19,'Screeningsliste energi'!$C$5:$U$19,3,FALSE)),\"-\")","v":"-"},{"$f":"IFERROR(IFERROR(VLOOKUP($B19,'Screeningsliste CO2'!$C$6:$T$20,3,FALSE),VLOOKUP($B19,'Screeningsliste energi'!$C$5:$U$19,3,FALSE)),\"-\")","v":"-"},{"$f":"IFERROR(IFERROR(VLOOKUP($B19,'Screeningsliste CO2'!$C$6:$U$20,17,FALSE),VLOOKUP($B19,'Screeningsliste energi'!$C$5:$U$20,17,FALSE)),\"-\")","v":"-"},{"$f":"IFERROR(IFERROR(VLOOKUP($B19,'Screeningsliste CO2'!$C$6:$U$20,18,FALSE),VLOOKUP($B19,'Screeningsliste energi'!$C$5:$U$20,18,FALSE)),\"-\")","v":"-"},{"$f":"IFERROR(IFERROR(VLOOKUP($B19,'Screeningsliste CO2'!$C$6:$U$20,19,FALSE),VLOOKUP($B19,'Screeningsliste energi'!$C$5:$U$20,19,FALSE)),\"-\")","v":"-"}]
[null,null,null,{"$f":"IFERROR(IFERROR(VLOOKUP($B20,'Screeningsliste CO2'!$C$6:$U$20,2,FALSE),VLOOKUP($B20,'Screeningsliste energi'!$C$5:$U$19,2,FALSE)),\"-\")","v":"-"},{"$f":"IFERROR(IFERROR(VLOOKUP($B20,'Screeningsliste CO2'!$C$6:$U$20,3,FALSE),VLOOKUP($B20,'Screeningsliste energi'!$C$5:$U$19,3,FALSE)),\"-\")","v":"-"},{"$f":"IFERROR(IFERROR(VLOOKUP($B20,'Screeningsliste CO2'!$C$6:$U$20,4,FALSE),VLOOKUP($B20,'Screeningsliste energi'!$C$5:$U$19,4,FALSE)),\"-\")","v":"-"},{"$f":"IFERROR(IFERROR(VLOOKUP($B20,'Screeningsliste CO2'!$C$6:$U$20,5,FALSE),VLOOKUP($B20,'Screeningsliste energi'!$C$5:$U$19,5,FALSE)),\"-\")","v":"-"},{"$f":"IFERROR(IFERROR(VLOOKUP($B20,'Screeningsliste CO2'!$C$6:$U$20,6,FALSE),VLOOKUP($B20,'Screeningsliste energi'!$C$5:$U$19,6,FALSE)),\"-\")","v":"-"},{"$f":"IFERROR(IFERROR(VLOOKUP($B20,'Screeningsliste CO2'!$C$6:$U$20,7,FALSE),VLOOKUP($B20,'Screeningsliste energi'!$C$5:$U$19,7,FALSE)),\"-\")","v":"-"},{"$f":"IFERROR(IFERROR(VLOOKUP($B20,'Screeningsliste CO2'!$C$6:$U$20,8,FALSE),VLOOKUP($B20,'Screeningsliste energi'!$C$5:$U$19,8,FALSE)),\"-\")","v":"-"},{"$f":"IFERROR(IFERROR(VLOOKUP($B20,'Screeningsliste CO2'!$C$6:$U$20,9,FALSE),VLOOKUP($B20,'Screeningsliste energi'!$C$5:$U$19,9,FALSE)),\"-\")","v":"-"},{"$f":"IFERROR(IFERROR(VLOOKUP($B20,'Screeningsliste CO2'!$C$6:$U$20,10,FALSE),VLOOKUP($B20,'Screeningsliste energi'!$C$5:$U$19,10,FALSE)),\"-\")","v":"-"},{"$f":"IFERROR(IFERROR(VLOOKUP($B20,'Screeningsliste CO2'!$C$6:$U$20,11,FALSE),VLOOKUP($B20,'Screeningsliste energi'!$C$5:$U$19,11,FALSE)),\"-\")","v":"-"},{"$f":"IFERROR(IFERROR(VLOOKUP($B20,'Screeningsliste CO2'!$C$6:$U$20,12,FALSE),VLOOKUP($B20,'Screeningsliste energi'!$C$5:$U$19,12,FALSE)),\"-\")","v":"-"},{"$f":"IFERROR(IFERROR(VLOOKUP($B20,'Screeningsliste CO2'!$C$6:$U$20,13,FALSE),VLOOKUP($B20,'Screeningsliste energi'!$C$5:$U$20,13,FALSE)),\"-\")","v":"-"},{"$f":"IFERROR(IFERROR(VLOOKUP($B20,'Screeningsliste CO2'!$C$6:$U$20,14,FALSE),VLOOKUP($B20,'Screeningsliste energi'!$C$5:$U$20,14,FALSE)),\"-\")","v":"-"},{"$f":"IFERROR(IFERROR(VLOOKUP($B20,'Screeningsliste CO2'!$C$6:$U$20,15,FALSE),VLOOKUP($B20,'Screeningsliste energi'!$C$5:$U$20,15,FALSE)),\"-\")","v":"-"},{"$f":"IFERROR(IFERROR(VLOOKUP($B20,'Screeningsliste CO2'!$C$6:$U$20,16,FALSE),VLOOKUP($B20,'Screeningsliste energi'!$C$5:$U$20,16,FALSE)),\"-\")","v":"-"},{"$f":"IFERROR(IFERROR(VLOOKUP($B20,'Screeningsliste CO2'!$C$6:$T$20,3,FALSE),VLOOKUP($B20,'Screeningsliste energi'!$C$5:$U$19,3,FALSE)),\"-\")","v":"-"},{"$f":"IFERROR(IFERROR(VLOOKUP($B20,'Screeningsliste CO2'!$C$6:$T$20,3,FALSE),VLOOKUP($B20,'Screeningsliste energi'!$C$5:$U$19,3,FALSE)),\"-\")","v":"-"},{"$f":"IFERROR(IFERROR(VLOOKUP($B20,'Screeningsliste CO2'!$C$6:$T$20,3,FALSE),VLOOKUP($B20,'Screeningsliste energi'!$C$5:$U$19,3,FALSE)),\"-\")","v":"-"},{"$f":"IFERROR(IFERROR(VLOOKUP($B20,'Screeningsliste CO2'!$C$6:$U$20,17,FALSE),VLOOKUP($B20,'Screeningsliste energi'!$C$5:$U$20,17,FALSE)),\"-\")","v":"-"},{"$f":"IFERROR(IFERROR(VLOOKUP($B20,'Screeningsliste CO2'!$C$6:$U$20,18,FALSE),VLOOKUP($B20,'Screeningsliste energi'!$C$5:$U$20,18,FALSE)),\"-\")","v":"-"},{"$f":"IFERROR(IFERROR(VLOOKUP($B20,'Screeningsliste CO2'!$C$6:$U$20,19,FALSE),VLOOKUP($B20,'Screeningsliste energi'!$C$5:$U$20,19,FALSE)),\"-\")","v":"-"}]
[null,null,null,{"$f":"IFERROR(IFERROR(VLOOKUP($B21,'Screeningsliste CO2'!$C$6:$U$20,2,FALSE),VLOOKUP($B21,'Screeningsliste energi'!$C$5:$U$19,2,FALSE)),\"-\")","v":"-"},{"$f":"IFERROR(IFERROR(VLOOKUP($B21,'Screeningsliste CO2'!$C$6:$U$20,3,FALSE),VLOOKUP($B21,'Screeningsliste energi'!$C$5:$U$19,3,FALSE)),\"-\")","v":"-"},{"$f":"IFERROR(IFERROR(VLOOKUP($B21,'Screeningsliste CO2'!$C$6:$U$20,4,FALSE),VLOOKUP($B21,'Screeningsliste energi'!$C$5:$U$19,4,FALSE)),\"-\")","v":"-"},{"$f":"IFERROR(IFERROR(VLOOKUP($B21,'Screeningsliste CO2'!$C$6:$U$20,5,FALSE),VLOOKUP($B21,'Screeningsliste energi'!$C$5:$U$19,5,FALSE)),\"-\")","v":"-"},{"$f":"IFERROR(IFERROR(VLOOKUP($B21,'Screeningsliste CO2'!$C$6:$U$20,6,FALSE),VLOOKUP($B21,'Screeningsliste energi'!$C$5:$U$19,6,FALSE)),\"-\")","v":"-"},{"$f":"IFERROR(IFERROR(VLOOKUP($B21,'Screeningsliste CO2'!$C$6:$U$20,7,FALSE),VLOOKUP($B21,'Screeningsliste energi'!$C$5:$U$19,7,FALSE)),\"-\")","v":"-"},{"$f":"IFERROR(IFERROR(VLOOKUP($B21,'Screeningsliste CO2'!$C$6:$U$20,8,FALSE),VLOOKUP($B21,'Screeningsliste energi'!$C$5:$U$19,8,FALSE)),\"-\")","v":"-"},{"$f":"IFERROR(IFERROR(VLOOKUP($B21,'Screeningsliste CO2'!$C$6:$U$20,9,FALSE),VLOOKUP($B21,'Screeningsliste energi'!$C$5:$U$19,9,FALSE)),\"-\")","v":"-"},{"$f":"IFERROR(IFERROR(VLOOKUP($B21,'Screeningsliste CO2'!$C$6:$U$20,10,FALSE),VLOOKUP($B21,'Screeningsliste energi'!$C$5:$U$19,10,FALSE)),\"-\")","v":"-"},{"$f":"IFERROR(IFERROR(VLOOKUP($B21,'Screeningsliste CO2'!$C$6:$U$20,11,FALSE),VLOOKUP($B21,'Screeningsliste energi'!$C$5:$U$19,11,FALSE)),\"-\")","v":"-"},{"$f":"IFERROR(IFERROR(VLOOKUP($B21,'Screeningsliste CO2'!$C$6:$U$20,12,FALSE),VLOOKUP($B21,'Screeningsliste energi'!$C$5:$U$19,12,FALSE)),\"-\")","v":"-"},{"$f":"IFERROR(IFERROR(VLOOKUP($B21,'Screeningsliste CO2'!$C$6:$U$20,13,FALSE),VLOOKUP($B21,'Screeningsliste energi'!$C$5:$U$20,13,FALSE)),\"-\")","v":"-"},{"$f":"IFERROR(IFERROR(VLOOKUP($B21,'Screeningsliste CO2'!$C$6:$U$20,14,FALSE),VLOOKUP($B21,'Screeningsliste energi'!$C$5:$U$20,14,FALSE)),\"-\")","v":"-"},{"$f":"IFERROR(IFERROR(VLOOKUP($B21,'Screeningsliste CO2'!$C$6:$U$20,15,FALSE),VLOOKUP($B21,'Screeningsliste energi'!$C$5:$U$20,15,FALSE)),\"-\")","v":"-"},{"$f":"IFERROR(IFERROR(VLOOKUP($B21,'Screeningsliste CO2'!$C$6:$U$20,16,FALSE),VLOOKUP($B21,'Screeningsliste energi'!$C$5:$U$20,16,FALSE)),\"-\")","v":"-"},{"$f":"IFERROR(IFERROR(VLOOKUP($B21,'Screeningsliste CO2'!$C$6:$T$20,3,FALSE),VLOOKUP($B21,'Screeningsliste energi'!$C$5:$U$19,3,FALSE)),\"-\")","v":"-"},{"$f":"IFERROR(IFERROR(VLOOKUP($B21,'Screeningsliste CO2'!$C$6:$T$20,3,FALSE),VLOOKUP($B21,'Screeningsliste energi'!$C$5:$U$19,3,FALSE)),\"-\")","v":"-"},{"$f":"IFERROR(IFERROR(VLOOKUP($B21,'Screeningsliste CO2'!$C$6:$T$20,3,FALSE),VLOOKUP($B21,'Screeningsliste energi'!$C$5:$U$19,3,FALSE)),\"-\")","v":"-"},{"$f":"IFERROR(IFERROR(VLOOKUP($B21,'Screeningsliste CO2'!$C$6:$U$20,17,FALSE),VLOOKUP($B21,'Screeningsliste energi'!$C$5:$U$20,17,FALSE)),\"-\")","v":"-"},{"$f":"IFERROR(IFERROR(VLOOKUP($B21,'Screeningsliste CO2'!$C$6:$U$20,18,FALSE),VLOOKUP($B21,'Screeningsliste energi'!$C$5:$U$20,18,FALSE)),\"-\")","v":"-"},{"$f":"IFERROR(IFERROR(VLOOKUP($B21,'Screeningsliste CO2'!$C$6:$U$20,19,FALSE),VLOOKUP($B21,'Screeningsliste energi'!$C$5:$U$20,19,FALSE)),\"-\")","v":"-"}]
[null,null,null,{"$f":"IFERROR(IFERROR(VLOOKUP($B22,'Screeningsliste CO2'!$C$6:$U$20,2,FALSE),VLOOKUP($B22,'Screeningsliste energi'!$C$5:$U$19,2,FALSE)),\"-\")","v":"-"},{"$f":"IFERROR(IFERROR(VLOOKUP($B22,'Screeningsliste CO2'!$C$6:$U$20,3,FALSE),VLOOKUP($B22,'Screeningsliste energi'!$C$5:$U$19,3,FALSE)),\"-\")","v":"-"},{"$f":"IFERROR(IFERROR(VLOOKUP($B22,'Screeningsliste CO2'!$C$6:$U$20,4,FALSE),VLOOKUP($B22,'Screeningsliste energi'!$C$5:$U$19,4,FALSE)),\"-\")","v":"-"},{"$f":"IFERROR(IFERROR(VLOOKUP($B22,'Screeningsliste CO2'!$C$6:$U$20,5,FALSE),VLOOKUP($B22,'Screeningsliste energi'!$C$5:$U$19,5,FALSE)),\"-\")","v":"-"},{"$f":"IFERROR(IFERROR(VLOOKUP($B22,'Screeningsliste CO2'!$C$6:$U$20,6,FALSE),VLOOKUP($B22,'Screeningsliste energi'!$C$5:$U$19,6,FALSE)),\"-\")","v":"-"},{"$f":"IFERROR(IFERROR(VLOOKUP($B22,'Screeningsliste CO2'!$C$6:$U$20,7,FALSE),VLOOKUP($B22,'Screeningsliste energi'!$C$5:$U$19,7,FALSE)),\"-\")","v":"-"},{"$f":"IFERROR(IFERROR(VLOOKUP($B22,'Screeningsliste CO2'!$C$6:$U$20,8,FALSE),VLOOKUP($B22,'Screeningsliste energi'!$C$5:$U$19,8,FALSE)),\"-\")","v":"-"},{"$f":"IFERROR(IFERROR(VLOOKUP($B22,'Screeningsliste CO2'!$C$6:$U$20,9,FALSE),VLOOKUP($B22,'Screeningsliste energi'!$C$5:$U$19,9,FALSE)),\"-\")","v":"-"},{"$f":"IFERROR(IFERROR(VLOOKUP($B22,'Screeningsliste CO2'!$C$6:$U$20,10,FALSE),VLOOKUP($B22,'Screeningsliste energi'!$C$5:$U$19,10,FALSE)),\"-\")","v":"-"},{"$f":"IFERROR(IFERROR(VLOOKUP($B22,'Screeningsliste CO2'!$C$6:$U$20,11,FALSE),VLOOKUP($B22,'Screeningsliste energi'!$C$5:$U$19,11,FALSE)),\"-\")","v":"-"},{"$f":"IFERROR(IFERROR(VLOOKUP($B22,'Screeningsliste CO2'!$C$6:$U$20,12,FALSE),VLOOKUP($B22,'Screeningsliste energi'!$C$5:$U$19,12,FALSE)),\"-\")","v":"-"},{"$f":"IFERROR(IFERROR(VLOOKUP($B22,'Screeningsliste CO2'!$C$6:$U$20,13,FALSE),VLOOKUP($B22,'Screeningsliste energi'!$C$5:$U$20,13,FALSE)),\"-\")","v":"-"},{"$f":"IFERROR(IFERROR(VLOOKUP($B22,'Screeningsliste CO2'!$C$6:$U$20,14,FALSE),VLOOKUP($B22,'Screeningsliste energi'!$C$5:$U$20,14,FALSE)),\"-\")","v":"-"},{"$f":"IFERROR(IFERROR(VLOOKUP($B22,'Screeningsliste CO2'!$C$6:$U$20,15,FALSE),VLOOKUP($B22,'Screeningsliste energi'!$C$5:$U$20,15,FALSE)),\"-\")","v":"-"},{"$f":"IFERROR(IFERROR(VLOOKUP($B22,'Screeningsliste CO2'!$C$6:$U$20,16,FALSE),VLOOKUP($B22,'Screeningsliste energi'!$C$5:$U$20,16,FALSE)),\"-\")","v":"-"},{"$f":"IFERROR(IFERROR(VLOOKUP($B22,'Screeningsliste CO2'!$C$6:$T$20,3,FALSE),VLOOKUP($B22,'Screeningsliste energi'!$C$5:$U$19,3,FALSE)),\"-\")","v":"-"},{"$f":"IFERROR(IFERROR(VLOOKUP($B22,'Screeningsliste CO2'!$C$6:$T$20,3,FALSE),VLOOKUP($B22,'Screeningsliste energi'!$C$5:$U$19,3,FALSE)),\"-\")","v":"-"},{"$f":"IFERROR(IFERROR(VLOOKUP($B22,'Screeningsliste CO2'!$C$6:$T$20,3,FALSE),VLOOKUP($B22,'Screeningsliste energi'!$C$5:$U$19,3,FALSE)),\"-\")","v":"-"},{"$f":"IFERROR(IFERROR(VLOOKUP($B22,'Screeningsliste CO2'!$C$6:$U$20,17,FALSE),VLOOKUP($B22,'Screeningsliste energi'!$C$5:$U$20,17,FALSE)),\"-\")","v":"-"},{"$f":"IFERROR(IFERROR(VLOOKUP($B22,'Screeningsliste CO2'!$C$6:$U$20,18,FALSE),VLOOKUP($B22,'Screeningsliste energi'!$C$5:$U$20,18,FALSE)),\"-\")","v":"-"},{"$f":"IFERROR(IFERROR(VLOOKUP($B22,'Screeningsliste CO2'!$C$6:$U$20,19,FALSE),VLOOKUP($B22,'Screeningsliste energi'!$C$5:$U$20,19,FALSE)),\"-\")","v":"-"}]
[null,null,null,{"$f":"IFERROR(IFERROR(VLOOKUP($B23,'Screeningsliste CO2'!$C$6:$U$20,2,FALSE),VLOOKUP($B23,'Screeningsliste energi'!$C$5:$U$19,2,FALSE)),\"-\")","v":"-"},{"$f":"IFERROR(IFERROR(VLOOKUP($B23,'Screeningsliste CO2'!$C$6:$U$20,3,FALSE),VLOOKUP($B23,'Screeningsliste energi'!$C$5:$U$19,3,FALSE)),\"-\")","v":"-"},{"$f":"IFERROR(IFERROR(VLOOKUP($B23,'Screeningsliste CO2'!$C$6:$U$20,4,FALSE),VLOOKUP($B23,'Screeningsliste energi'!$C$5:$U$19,4,FALSE)),\"-\")","v":"-"},{"$f":"IFERROR(IFERROR(VLOOKUP($B23,'Screeningsliste CO2'!$C$6:$U$20,5,FALSE),VLOOKUP($B23,'Screeningsliste energi'!$C$5:$U$19,5,FALSE)),\"-\")","v":"-"},{"$f":"IFERROR(IFERROR(VLOOKUP($B23,'Screeningsliste CO2'!$C$6:$U$20,6,FALSE),VLOOKUP($B23,'Screeningsliste energi'!$C$5:$U$19,6,FALSE)),\"-\")","v":"-"},{"$f":"IFERROR(IFERROR(VLOOKUP($B23,'Screeningsliste CO2'!$C$6:$U$20,7,FALSE),VLOOKUP($B23,'Screeningsliste energi'!$C$5:$U$19,7,FALSE)),\"-\")","v":"-"},{"$f":"IFERROR(IFERROR(VLOOKUP($B23,'Screeningsliste CO2'!$C$6:$U$20,8,FALSE),VLOOKUP($B23,'Screeningsliste energi'!$C$5:$U$19,8,FALSE)),\"-\")","v":"-"},{"$f":"IFERROR(IFERROR(VLOOKUP($B23,'Screeningsliste CO2'!$C$6:$U$20,9,FALSE),VLOOKUP($B23,'Screeningsliste energi'!$C$5:$U$19,9,FALSE)),\"-\")","v":"-"},{"$f":"IFERROR(IFERROR(VLOOKUP($B23,'Screeningsliste CO2'!$C$6:$U$20,10,FALSE),VLOOKUP($B23,'Screeningsliste energi'!$C$5:$U$19,10,FALSE)),\"-\")","v":"-"},{"$f":"IFERROR(IFERROR(VLOOKUP($B23,'Screeningsliste CO2'!$C$6:$U$20,11,FALSE),VLOOKUP($B23,'Screeningsliste energi'!$C$5:$U$19,11,FALSE)),\"-\")","v":"-"},{"$f":"IFERROR(IFERROR(VLOOKUP($B23,'Screeningsliste CO2'!$C$6:$U$20,12,FALSE),VLOOKUP($B23,'Screeningsliste energi'!$C$5:$U$19,12,FALSE)),\"-\")","v":"-"},{"$f":"IFERROR(IFERROR(VLOOKUP($B23,'Screeningsliste CO2'!$C$6:$U$20,13,FALSE),VLOOKUP($B23,'Screeningsliste energi'!$C$5:$U$20,13,FALSE)),\"-\")","v":"-"},{"$f":"IFERROR(IFERROR(VLOOKUP($B23,'Screeningsliste CO2'!$C$6:$U$20,14,FALSE),VLOOKUP($B23,'Screeningsliste energi'!$C$5:$U$20,14,FALSE)),\"-\")","v":"-"},{"$f":"IFERROR(IFERROR(VLOOKUP($B23,'Screeningsliste CO2'!$C$6:$U$20,15,FALSE),VLOOKUP($B23,'Screeningsliste energi'!$C$5:$U$20,15,FALSE)),\"-\")","v":"-"},{"$f":"IFERROR(IFERROR(VLOOKUP($B23,'Screeningsliste CO2'!$C$6:$U$20,16,FALSE),VLOOKUP($B23,'Screeningsliste energi'!$C$5:$U$20,16,FALSE)),\"-\")","v":"-"},{"$f":"IFERROR(IFERROR(VLOOKUP($B23,'Screeningsliste CO2'!$C$6:$T$20,3,FALSE),VLOOKUP($B23,'Screeningsliste energi'!$C$5:$U$19,3,FALSE)),\"-\")","v":"-"},{"$f":"IFERROR(IFERROR(VLOOKUP($B23,'Screeningsliste CO2'!$C$6:$T$20,3,FALSE),VLOOKUP($B23,'Screeningsliste energi'!$C$5:$U$19,3,FALSE)),\"-\")","v":"-"},{"$f":"IFERROR(IFERROR(VLOOKUP($B23,'Screeningsliste CO2'!$C$6:$T$20,3,FALSE),VLOOKUP($B23,'Screeningsliste energi'!$C$5:$U$19,3,FALSE)),\"-\")","v":"-"},{"$f":"IFERROR(IFERROR(VLOOKUP($B23,'Screeningsliste CO2'!$C$6:$U$20,17,FALSE),VLOOKUP($B23,'Screeningsliste energi'!$C$5:$U$20,17,FALSE)),\"-\")","v":"-"},{"$f":"IFERROR(IFERROR(VLOOKUP($B23,'Screeningsliste CO2'!$C$6:$U$20,18,FALSE),VLOOKUP($B23,'Screeningsliste energi'!$C$5:$U$20,18,FALSE)),\"-\")","v":"-"},{"$f":"IFERROR(IFERROR(VLOOKUP($B23,'Screeningsliste CO2'!$C$6:$U$20,19,FALSE),VLOOKUP($B23,'Screeningsliste energi'!$C$5:$U$20,19,FALSE)),\"-\")","v":"-"}]
[null,null,null,{"$f":"IFERROR(IFERROR(VLOOKUP($B24,'Screeningsliste CO2'!$C$6:$U$20,2,FALSE),VLOOKUP($B24,'Screeningsliste energi'!$C$5:$U$19,2,FALSE)),\"-\")","v":"-"},{"$f":"IFERROR(IFERROR(VLOOKUP($B24,'Screeningsliste CO2'!$C$6:$U$20,3,FALSE),VLOOKUP($B24,'Screeningsliste energi'!$C$5:$U$19,3,FALSE)),\"-\")","v":"-"},{"$f":"IFERROR(IFERROR(VLOOKUP($B24,'Screeningsliste CO2'!$C$6:$U$20,4,FALSE),VLOOKUP($B24,'Screeningsliste energi'!$C$5:$U$19,4,FALSE)),\"-\")","v":"-"},{"$f":"IFERROR(IFERROR(VLOOKUP($B24,'Screeningsliste CO2'!$C$6:$U$20,5,FALSE),VLOOKUP($B24,'Screeningsliste energi'!$C$5:$U$19,5,FALSE)),\"-\")","v":"-"},{"$f":"IFERROR(IFERROR(VLOOKUP($B24,'Screeningsliste CO2'!$C$6:$U$20,6,FALSE),VLOOKUP($B24,'Screeningsliste energi'!$C$5:$U$19,6,FALSE)),\"-\")","v":"-"},{"$f":"IFERROR(IFERROR(VLOOKUP($B24,'Screeningsliste CO2'!$C$6:$U$20,7,FALSE),VLOOKUP($B24,'Screeningsliste energi'!$C$5:$U$19,7,FALSE)),\"-\")","v":"-"},{"$f":"IFERROR(IFERROR(VLOOKUP($B24,'Screeningsliste CO2'!$C$6:$U$20,8,FALSE),VLOOKUP($B24,'Screeningsliste energi'!$C$5:$U$19,8,FALSE)),\"-\")","v":"-"},{"$f":"IFERROR(IFERROR(VLOOKUP($B24,'Screeningsliste CO2'!$C$6:$U$20,9,FALSE),VLOOKUP($B24,'Screeningsliste energi'!$C$5:$U$19,9,FALSE)),\"-\")","v":"-"},{"$f":"IFERROR(IFERROR(VLOOKUP($B24,'Screeningsliste CO2'!$C$6:$U$20,10,FALSE),VLOOKUP($B24,'Screeningsliste energi'!$C$5:$U$19,10,FALSE)),\"-\")","v":"-"},{"$f":"IFERROR(IFERROR(VLOOKUP($B24,'Screeningsliste CO2'!$C$6:$U$20,11,FALSE),VLOOKUP($B24,'Screeningsliste energi'!$C$5:$U$19,11,FALSE)),\"-\")","v":"-"},{"$f":"IFERROR(IFERROR(VLOOKUP($B24,'Screeningsliste CO2'!$C$6:$U$20,12,FALSE),VLOOKUP($B24,'Screeningsliste energi'!$C$5:$U$19,12,FALSE)),\"-\")","v":"-"},{"$f":"IFERROR(IFERROR(VLOOKUP($B24,'Screeningsliste CO2'!$C$6:$U$20,13,FALSE),VLOOKUP($B24,'Screeningsliste energi'!$C$5:$U$20,13,FALSE)),\"-\")","v":"-"},{"$f":"IFERROR(IFERROR(VLOOKUP($B24,'Screeningsliste CO2'!$C$6:$U$20,14,FALSE),VLOOKUP($B24,'Screeningsliste energi'!$C$5:$U$20,14,FALSE)),\"-\")","v":"-"},{"$f":"IFERROR(IFERROR(VLOOKUP($B24,'Screeningsliste CO2'!$C$6:$U$20,15,FALSE),VLOOKUP($B24,'Screeningsliste energi'!$C$5:$U$20,15,FALSE)),\"-\")","v":"-"},{"$f":"IFERROR(IFERROR(VLOOKUP($B24,'Screeningsliste CO2'!$C$6:$U$20,16,FALSE),VLOOKUP($B24,'Screeningsliste energi'!$C$5:$U$20,16,FALSE)),\"-\")","v":"-"},{"$f":"IFERROR(IFERROR(VLOOKUP($B24,'Screeningsliste CO2'!$C$6:$T$20,3,FALSE),VLOOKUP($B24,'Screeningsliste energi'!$C$5:$U$19,3,FALSE)),\"-\")","v":"-"},{"$f":"IFERROR(IFERROR(VLOOKUP($B24,'Screeningsliste CO2'!$C$6:$T$20,3,FALSE),VLOOKUP($B24,'Screeningsliste energi'!$C$5:$U$19,3,FALSE)),\"-\")","v":"-"},{"$f":"IFERROR(IFERROR(VLOOKUP($B24,'Screeningsliste CO2'!$C$6:$T$20,3,FALSE),VLOOKUP($B24,'Screeningsliste energi'!$C$5:$U$19,3,FALSE)),\"-\")","v":"-"},{"$f":"IFERROR(IFERROR(VLOOKUP($B24,'Screeningsliste CO2'!$C$6:$U$20,17,FALSE),VLOOKUP($B24,'Screeningsliste energi'!$C$5:$U$20,17,FALSE)),\"-\")","v":"-"},{"$f":"IFERROR(IFERROR(VLOOKUP($B24,'Screeningsliste CO2'!$C$6:$U$20,18,FALSE),VLOOKUP($B24,'Screeningsliste energi'!$C$5:$U$20,18,FALSE)),\"-\")","v":"-"},{"$f":"IFERROR(IFERROR(VLOOKUP($B24,'Screeningsliste CO2'!$C$6:$U$20,19,FALSE),VLOOKUP($B24,'Screeningsliste energi'!$C$5:$U$20,19,FALSE)),\"-\")","v":"-"}]
[null,null,null,{"$f":"IFERROR(IFERROR(VLOOKUP($B25,'Screeningsliste CO2'!$C$6:$U$20,2,FALSE),VLOOKUP($B25,'Screeningsliste energi'!$C$5:$U$19,2,FALSE)),\"-\")","v":"-"},{"$f":"IFERROR(IFERROR(VLOOKUP($B25,'Screeningsliste CO2'!$C$6:$U$20,3,FALSE),VLOOKUP($B25,'Screeningsliste energi'!$C$5:$U$19,3,FALSE)),\"-\")","v":"-"},{"$f":"IFERROR(IFERROR(VLOOKUP($B25,'Screeningsliste CO2'!$C$6:$U$20,4,FALSE),VLOOKUP($B25,'Screeningsliste energi'!$C$5:$U$19,4,FALSE)),\"-\")","v":"-"},{"$f":"IFERROR(IFERROR(VLOOKUP($B25,'Screeningsliste CO2'!$C$6:$U$20,5,FALSE),VLOOKUP($B25,'Screeningsliste energi'!$C$5:$U$19,5,FALSE)),\"-\")","v":"-"},{"$f":"IFERROR(IFERROR(VLOOKUP($B25,'Screeningsliste CO2'!$C$6:$U$20,6,FALSE),VLOOKUP($B25,'Screeningsliste energi'!$C$5:$U$19,6,FALSE)),\"-\")","v":"-"},{"$f":"IFERROR(IFERROR(VLOOKUP($B25,'Screeningsliste CO2'!$C$6:$U$20,7,FALSE),VLOOKUP($B25,'Screeningsliste energi'!$C$5:$U$19,7,FALSE)),\"-\")","v":"-"},{"$f":"IFERROR(IFERROR(VLOOKUP($B25,'Screeningsliste CO2'!$C$6:$U$20,8,FALSE),VLOOKUP($B25,'Screeningsliste energi'!$C$5:$U$19,8,FALSE)),\"-\")","v":"-"},{"$f":"IFERROR(IFERROR(VLOOKUP($B25,'Screeningsliste CO2'!$C$6:$U$20,9,FALSE),VLOOKUP($B25,'Screeningsliste energi'!$C$5:$U$19,9,FALSE)),\"-\")","v":"-"},{"$f":"IFERROR(IFERROR(VLOOKUP($B25,'Screeningsliste CO2'!$C$6:$U$20,10,FALSE),VLOOKUP($B25,'Screeningsliste energi'!$C$5:$U$19,10,FALSE)),\"-\")","v":"-"},{"$f":"IFERROR(IFERROR(VLOOKUP($B25,'Screeningsliste CO2'!$C$6:$U$20,11,FALSE),VLOOKUP($B25,'Screeningsliste energi'!$C$5:$U$19,11,FALSE)),\"-\")","v":"-"},{"$f":"IFERROR(IFERROR(VLOOKUP($B25,'Screeningsliste CO2'!$C$6:$U$20,12,FALSE),VLOOKUP($B25,'Screeningsliste energi'!$C$5:$U$19,12,FALSE)),\"-\")","v":"-"},{"$f":"IFERROR(IFERROR(VLOOKUP($B25,'Screeningsliste CO2'!$C$6:$U$20,13,FALSE),VLOOKUP($B25,'Screeningsliste energi'!$C$5:$U$20,13,FALSE)),\"-\")","v":"-"},{"$f":"IFERROR(IFERROR(VLOOKUP($B25,'Screeningsliste CO2'!$C$6:$U$20,14,FALSE),VLOOKUP($B25,'Screeningsliste energi'!$C$5:$U$20,14,FALSE)),\"-\")","v":"-"},{"$f":"IFERROR(IFERROR(VLOOKUP($B25,'Screeningsliste CO2'!$C$6:$U$20,15,FALSE),VLOOKUP($B25,'Screeningsliste energi'!$C$5:$U$20,15,FALSE)),\"-\")","v":"-"},{"$f":"IFERROR(IFERROR(VLOOKUP($B25,'Screeningsliste CO2'!$C$6:$U$20,16,FALSE),VLOOKUP($B25,'Screeningsliste energi'!$C$5:$U$20,16,FALSE)),\"-\")","v":"-"},{"$f":"IFERROR(IFERROR(VLOOKUP($B25,'Screeningsliste CO2'!$C$6:$T$20,3,FALSE),VLOOKUP($B25,'Screeningsliste energi'!$C$5:$U$19,3,FALSE)),\"-\")","v":"-"},{"$f":"IFERROR(IFERROR(VLOOKUP($B25,'Screeningsliste CO2'!$C$6:$T$20,3,FALSE),VLOOKUP($B25,'Screeningsliste energi'!$C$5:$U$19,3,FALSE)),\"-\")","v":"-"},{"$f":"IFERROR(IFERROR(VLOOKUP($B25,'Screeningsliste CO2'!$C$6:$T$20,3,FALSE),VLOOKUP($B25,'Screeningsliste energi'!$C$5:$U$19,3,FALSE)),\"-\")","v":"-"},{"$f":"IFERROR(IFERROR(VLOOKUP($B25,'Screeningsliste CO2'!$C$6:$U$20,17,FALSE),VLOOKUP($B25,'Screeningsliste energi'!$C$5:$U$20,17,FALSE)),\"-\")","v":"-"},{"$f":"IFERROR(IFERROR(VLOOKUP($B25,'Screeningsliste CO2'!$C$6:$U$20,18,FALSE),VLOOKUP($B25,'Screeningsliste energi'!$C$5:$U$20,18,FALSE)),\"-\")","v":"-"},{"$f":"IFERROR(IFERROR(VLOOKUP($B25,'Screeningsliste CO2'!$C$6:$U$20,19,FALSE),VLOOKUP($B25,'Screeningsliste energi'!$C$5:$U$20,19,FALSE)),\"-\")","v":"-"}]
[null,null,null,{"$f":"IFERROR(IFERROR(VLOOKUP($B26,'Screeningsliste CO2'!$C$6:$U$20,2,FALSE),VLOOKUP($B26,'Screeningsliste energi'!$C$5:$U$19,2,FALSE)),\"-\")","v":"-"},{"$f":"IFERROR(IFERROR(VLOOKUP($B26,'Screeningsliste CO2'!$C$6:$U$20,3,FALSE),VLOOKUP($B26,'Screeningsliste energi'!$C$5:$U$19,3,FALSE)),\"-\")","v":"-"},{"$f":"IFERROR(IFERROR(VLOOKUP($B26,'Screeningsliste CO2'!$C$6:$U$20,4,FALSE),VLOOKUP($B26,'Screeningsliste energi'!$C$5:$U$19,4,FALSE)),\"-\")","v":"-"},{"$f":"IFERROR(IFERROR(VLOOKUP($B26,'Screeningsliste CO2'!$C$6:$U$20,5,FALSE),VLOOKUP($B26,'Screeningsliste energi'!$C$5:$U$19,5,FALSE)),\"-\")","v":"-"},{"$f":"IFERROR(IFERROR(VLOOKUP($B26,'Screeningsliste CO2'!$C$6:$U$20,6,FALSE),VLOOKUP($B26,'Screeningsliste energi'!$C$5:$U$19,6,FALSE)),\"-\")","v":"-"},{"$f":"IFERROR(IFERROR(VLOOKUP($B26,'Screeningsliste CO2'!$C$6:$U$20,7,FALSE),VLOOKUP($B26,'Screeningsliste energi'!$C$5:$U$19,7,FALSE)),\"-\")","v":"-"},{"$f":"IFERROR(IFERROR(VLOOKUP($B26,'Screeningsliste CO2'!$C$6:$U$20,8,FALSE),VLOOKUP($B26,'Screeningsliste energi'!$C$5:$U$19,8,FALSE)),\"-\")","v":"-"},{"$f":"IFERROR(IFERROR(VLOOKUP($B26,'Screeningsliste CO2'!$C$6:$U$20,9,FALSE),VLOOKUP($B26,'Screeningsliste energi'!$C$5:$U$19,9,FALSE)),\"-\")","v":"-"},{"$f":"IFERROR(IFERROR(VLOOKUP($B26,'Screeningsliste CO2'!$C$6:$U$20,10,FALSE),VLOOKUP($B26,'Screeningsliste energi'!$C$5:$U$19,10,FALSE)),\"-\")","v":"-"},{"$f":"IFERROR(IFERROR(VLOOKUP($B26,'Screeningsliste CO2'!$C$6:$U$20,11,FALSE),VLOOKUP($B26,'Screeningsliste energi'!$C$5:$U$19,11,FALSE)),\"-\")","v":"-"},{"$f":"IFERROR(IFERROR(VLOOKUP($B26,'Screeningsliste CO2'!$C$6:$U$20,12,FALSE),VLOOKUP($B26,'Screeningsliste energi'!$C$5:$U$19,12,FALSE)),\"-\")","v":"-"},{"$f":"IFERROR(IFERROR(VLOOKUP($B26,'Screeningsliste CO2'!$C$6:$U$20,13,FALSE),VLOOKUP($B26,'Screeningsliste energi'!$C$5:$U$20,13,FALSE)),\"-\")","v":"-"},{"$f":"IFERROR(IFERROR(VLOOKUP($B26,'Screeningsliste CO2'!$C$6:$U$20,14,FALSE),VLOOKUP($B26,'Screeningsliste energi'!$C$5:$U$20,14,FALSE)),\"-\")","v":"-"},{"$f":"IFERROR(IFERROR(VLOOKUP($B26,'Screeningsliste CO2'!$C$6:$U$20,15,FALSE),VLOOKUP($B26,'Screeningsliste energi'!$C$5:$U$20,15,FALSE)),\"-\")","v":"-"},{"$f":"IFERROR(IFERROR(VLOOKUP($B26,'Screeningsliste CO2'!$C$6:$U$20,16,FALSE),VLOOKUP($B26,'Screeningsliste energi'!$C$5:$U$20,16,FALSE)),\"-\")","v":"-"},{"$f":"IFERROR(IFERROR(VLOOKUP($B26,'Screeningsliste CO2'!$C$6:$T$20,3,FALSE),VLOOKUP($B26,'Screeningsliste energi'!$C$5:$U$19,3,FALSE)),\"-\")","v":"-"},{"$f":"IFERROR(IFERROR(VLOOKUP($B26,'Screeningsliste CO2'!$C$6:$T$20,3,FALSE),VLOOKUP($B26,'Screeningsliste energi'!$C$5:$U$19,3,FALSE)),\"-\")","v":"-"},{"$f":"IFERROR(IFERROR(VLOOKUP($B26,'Screeningsliste CO2'!$C$6:$T$20,3,FALSE),VLOOKUP($B26,'Screeningsliste energi'!$C$5:$U$19,3,FALSE)),\"-\")","v":"-"},{"$f":"IFERROR(IFERROR(VLOOKUP($B26,'Screeningsliste CO2'!$C$6:$U$20,17,FALSE),VLOOKUP($B26,'Screeningsliste energi'!$C$5:$U$20,17,FALSE)),\"-\")","v":"-"},{"$f":"IFERROR(IFERROR(VLOOKUP($B26,'Screeningsliste CO2'!$C$6:$U$20,18,FALSE),VLOOKUP($B26,'Screeningsliste energi'!$C$5:$U$20,18,FALSE)),\"-\")","v":"-"},{"$f":"IFERROR(IFERROR(VLOOKUP($B26,'Screeningsliste CO2'!$C$6:$U$20,19,FALSE),VLOOKUP($B26,'Screeningsliste energi'!$C$5:$U$20,19,FALSE)),\"-\")","v":"-"}]
[null,null,null,{"$f":"IFERROR(IFERROR(VLOOKUP($B27,'Screeningsliste CO2'!$C$6:$U$20,2,FALSE),VLOOKUP($B27,'Screeningsliste energi'!$C$5:$U$19,2,FALSE)),\"-\")","v":"-"},{"$f":"IFERROR(IFERROR(VLOOKUP($B27,'Screeningsliste CO2'!$C$6:$U$20,3,FALSE),VLOOKUP($B27,'Screeningsliste energi'!$C$5:$U$19,3,FALSE)),\"-\")","v":"-"},{"$f":"IFERROR(IFERROR(VLOOKUP($B27,'Screeningsliste CO2'!$C$6:$U$20,4,FALSE),VLOOKUP($B27,'Screeningsliste energi'!$C$5:$U$19,4,FALSE)),\"-\")","v":"-"},{"$f":"IFERROR(IFERROR(VLOOKUP($B27,'Screeningsliste CO2'!$C$6:$U$20,5,FALSE),VLOOKUP($B27,'Screeningsliste energi'!$C$5:$U$19,5,FALSE)),\"-\")","v":"-"},{"$f":"IFERROR(IFERROR(VLOOKUP($B27,'Screeningsliste CO2'!$C$6:$U$20,6,FALSE),VLOOKUP($B27,'Screeningsliste energi'!$C$5:$U$19,6,FALSE)),\"-\")","v":"-"},{"$f":"IFERROR(IFERROR(VLOOKUP($B27,'Screeningsliste CO2'!$C$6:$U$20,7,FALSE),VLOOKUP($B27,'Screeningsliste energi'!$C$5:$U$19,7,FALSE)),\"-\")","v":"-"},{"$f":"IFERROR(IFERROR(VLOOKUP($B27,'Screeningsliste CO2'!$C$6:$U$20,8,FALSE),VLOOKUP($B27,'Screeningsliste energi'!$C$5:$U$19,8,FALSE)),\"-\")","v":"-"},{"$f":"IFERROR(IFERROR(VLOOKUP($B27,'Screeningsliste CO2'!$C$6:$U$20,9,FALSE),VLOOKUP($B27,'Screeningsliste energi'!$C$5:$U$19,9,FALSE)),\"-\")","v":"-"},{"$f":"IFERROR(IFERROR(VLOOKUP($B27,'Screeningsliste CO2'!$C$6:$U$20,10,FALSE),VLOOKUP($B27,'Screeningsliste energi'!$C$5:$U$19,10,FALSE)),\"-\")","v":"-"},{"$f":"IFERROR(IFERROR(VLOOKUP($B27,'Screeningsliste CO2'!$C$6:$U$20,11,FALSE),VLOOKUP($B27,'Screeningsliste energi'!$C$5:$U$19,11,FALSE)),\"-\")","v":"-"},{"$f":"IFERROR(IFERROR(VLOOKUP($B27,'Screeningsliste CO2'!$C$6:$U$20,12,FALSE),VLOOKUP($B27,'Screeningsliste energi'!$C$5:$U$19,12,FALSE)),\"-\")","v":"-"},{"$f":"IFERROR(IFERROR(VLOOKUP($B27,'Screeningsliste CO2'!$C$6:$U$20,13,FALSE),VLOOKUP($B27,'Screeningsliste energi'!$C$5:$U$20,13,FALSE)),\"-\")","v":"-"},{"$f":"IFERROR(IFERROR(VLOOKUP($B27,'Screeningsliste CO2'!$C$6:$U$20,14,FALSE),VLOOKUP($B27,'Screeningsliste energi'!$C$5:$U$20,14,FALSE)),\"-\")","v":"-"},{"$f":"IFERROR(IFERROR(VLOOKUP($B27,'Screeningsliste CO2'!$C$6:$U$20,15,FALSE),VLOOKUP($B27,'Screeningsliste energi'!$C$5:$U$20,15,FALSE)),\"-\")","v":"-"},{"$f":"IFERROR(IFERROR(VLOOKUP($B27,'Screeningsliste CO2'!$C$6:$U$20,16,FALSE),VLOOKUP($B27,'Screeningsliste energi'!$C$5:$U$20,16,FALSE)),\"-\")","v":"-"},{"$f":"IFERROR(IFERROR(VLOOKUP($B27,'Screeningsliste CO2'!$C$6:$T$20,3,FALSE),VLOOKUP($B27,'Screeningsliste energi'!$C$5:$U$19,3,FALSE)),\"-\")","v":"-"},{"$f":"IFERROR(IFERROR(VLOOKUP($B27,'Screeningsliste CO2'!$C$6:$T$20,3,FALSE),VLOOKUP($B27,'Screeningsliste energi'!$C$5:$U$19,3,FALSE)),\"-\")","v":"-"},{"$f":"IFERROR(IFERROR(VLOOKUP($B27,'Screeningsliste CO2'!$C$6:$T$20,3,FALSE),VLOOKUP($B27,'Screeningsliste energi'!$C$5:$U$19,3,FALSE)),\"-\")","v":"-"},{"$f":"IFERROR(IFERROR(VLOOKUP($B27,'Screeningsliste CO2'!$C$6:$U$20,17,FALSE),VLOOKUP($B27,'Screeningsliste energi'!$C$5:$U$20,17,FALSE)),\"-\")","v":"-"},{"$f":"IFERROR(IFERROR(VLOOKUP($B27,'Screeningsliste CO2'!$C$6:$U$20,18,FALSE),VLOOKUP($B27,'Screeningsliste energi'!$C$5:$U$20,18,FALSE)),\"-\")","v":"-"},{"$f":"IFERROR(IFERROR(VLOOKUP($B27,'Screeningsliste CO2'!$C$6:$U$20,19,FALSE),VLOOKUP($B27,'Screeningsliste energi'!$C$5:$U$20,19,FALSE)),\"-\")","v":"-"}]
[null,null,null,{"$f":"IFERROR(IFERROR(VLOOKUP($B28,'Screeningsliste CO2'!$C$6:$U$20,2,FALSE),VLOOKUP($B28,'Screeningsliste energi'!$C$5:$U$19,2,FALSE)),\"-\")","v":"-"},{"$f":"IFERROR(IFERROR(VLOOKUP($B28,'Screeningsliste CO2'!$C$6:$U$20,3,FALSE),VLOOKUP($B28,'Screeningsliste energi'!$C$5:$U$19,3,FALSE)),\"-\")","v":"-"},{"$f":"IFERROR(IFERROR(VLOOKUP($B28,'Screeningsliste CO2'!$C$6:$U$20,4,FALSE),VLOOKUP($B28,'Screeningsliste energi'!$C$5:$U$19,4,FALSE)),\"-\")","v":"-"},{"$f":"IFERROR(IFERROR(VLOOKUP($B28,'Screeningsliste CO2'!$C$6:$U$20,5,FALSE),VLOOKUP($B28,'Screeningsliste energi'!$C$5:$U$19,5,FALSE)),\"-\")","v":"-"},{"$f":"IFERROR(IFERROR(VLOOKUP($B28,'Screeningsliste CO2'!$C$6:$U$20,6,FALSE),VLOOKUP($B28,'Screeningsliste energi'!$C$5:$U$19,6,FALSE)),\"-\")","v":"-"},{"$f":"IFERROR(IFERROR(VLOOKUP($B28,'Screeningsliste CO2'!$C$6:$U$20,7,FALSE),VLOOKUP($B28,'Screeningsliste energi'!$C$5:$U$19,7,FALSE)),\"-\")","v":"-"},{"$f":"IFERROR(IFERROR(VLOOKUP($B28,'Screeningsliste CO2'!$C$6:$U$20,8,FALSE),VLOOKUP($B28,'Screeningsliste energi'!$C$5:$U$19,8,FALSE)),\"-\")","v":"-"},{"$f":"IFERROR(IFERROR(VLOOKUP($B28,'Screeningsliste CO2'!$C$6:$U$20,9,FALSE),VLOOKUP($B28,'Screeningsliste energi'!$C$5:$U$19,9,FALSE)),\"-\")","v":"-"},{"$f":"IFERROR(IFERROR(VLOOKUP($B28,'Screeningsliste CO2'!$C$6:$U$20,10,FALSE),VLOOKUP($B28,'Screeningsliste energi'!$C$5:$U$19,10,FALSE)),\"-\")","v":"-"},{"$f":"IFERROR(IFERROR(VLOOKUP($B28,'Screeningsliste CO2'!$C$6:$U$20,11,FALSE),VLOOKUP($B28,'Screeningsliste energi'!$C$5:$U$19,11,FALSE)),\"-\")","v":"-"},{"$f":"IFERROR(IFERROR(VLOOKUP($B28,'Screeningsliste CO2'!$C$6:$U$20,12,FALSE),VLOOKUP($B28,'Screeningsliste energi'!$C$5:$U$19,12,FALSE)),\"-\")","v":"-"},{"$f":"IFERROR(IFERROR(VLOOKUP($B28,'Screeningsliste CO2'!$C$6:$U$20,13,FALSE),VLOOKUP($B28,'Screeningsliste energi'!$C$5:$U$20,13,FALSE)),\"-\")","v":"-"},{"$f":"IFERROR(IFERROR(VLOOKUP($B28,'Screeningsliste CO2'!$C$6:$U$20,14,FALSE),VLOOKUP($B28,'Screeningsliste energi'!$C$5:$U$20,14,FALSE)),\"-\")","v":"-"},{"$f":"IFERROR(IFERROR(VLOOKUP($B28,'Screeningsliste CO2'!$C$6:$U$20,15,FALSE),VLOOKUP($B28,'Screeningsliste energi'!$C$5:$U$20,15,FALSE)),\"-\")","v":"-"},{"$f":"IFERROR(IFERROR(VLOOKUP($B28,'Screeningsliste CO2'!$C$6:$U$20,16,FALSE),VLOOKUP($B28,'Screeningsliste energi'!$C$5:$U$20,16,FALSE)),\"-\")","v":"-"},{"$f":"IFERROR(IFERROR(VLOOKUP($B28,'Screeningsliste CO2'!$C$6:$T$20,3,FALSE),VLOOKUP($B28,'Screeningsliste energi'!$C$5:$U$19,3,FALSE)),\"-\")","v":"-"},{"$f":"IFERROR(IFERROR(VLOOKUP($B28,'Screeningsliste CO2'!$C$6:$T$20,3,FALSE),VLOOKUP($B28,'Screeningsliste energi'!$C$5:$U$19,3,FALSE)),\"-\")","v":"-"},{"$f":"IFERROR(IFERROR(VLOOKUP($B28,'Screeningsliste CO2'!$C$6:$T$20,3,FALSE),VLOOKUP($B28,'Screeningsliste energi'!$C$5:$U$19,3,FALSE)),\"-\")","v":"-"},{"$f":"IFERROR(IFERROR(VLOOKUP($B28,'Screeningsliste CO2'!$C$6:$U$20,17,FALSE),VLOOKUP($B28,'Screeningsliste energi'!$C$5:$U$20,17,FALSE)),\"-\")","v":"-"},{"$f":"IFERROR(IFERROR(VLOOKUP($B28,'Screeningsliste CO2'!$C$6:$U$20,18,FALSE),VLOOKUP($B28,'Screeningsliste energi'!$C$5:$U$20,18,FALSE)),\"-\")","v":"-"},{"$f":"IFERROR(IFERROR(VLOOKUP($B28,'Screeningsliste CO2'!$C$6:$U$20,19,FALSE),VLOOKUP($B28,'Screeningsliste energi'!$C$5:$U$20,19,FALSE)),\"-\")","v":"-"}]
[null,null,null,{"$f":"IFERROR(IFERROR(VLOOKUP($B29,'Screeningsliste CO2'!$C$6:$U$20,2,FALSE),VLOOKUP($B29,'Screeningsliste energi'!$C$5:$U$19,2,FALSE)),\"-\")","v":"-"},{"$f":"IFERROR(IFERROR(VLOOKUP($B29,'Screeningsliste CO2'!$C$6:$U$20,3,FALSE),VLOOKUP($B29,'Screeningsliste energi'!$C$5:$U$19,3,FALSE)),\"-\")","v":"-"},{"$f":"IFERROR(IFERROR(VLOOKUP($B29,'Screeningsliste CO2'!$C$6:$U$20,4,FALSE),VLOOKUP($B29,'Screeningsliste energi'!$C$5:$U$19,4,FALSE)),\"-\")","v":"-"},{"$f":"IFERROR(IFERROR(VLOOKUP($B29,'Screeningsliste CO2'!$C$6:$U$20,5,FALSE),VLOOKUP($B29,'Screeningsliste energi'!$C$5:$U$19,5,FALSE)),\"-\")","v":"-"},{"$f":"IFERROR(IFERROR(VLOOKUP($B29,'Screeningsliste CO2'!$C$6:$U$20,6,FALSE),VLOOKUP($B29,'Screeningsliste energi'!$C$5:$U$19,6,FALSE)),\"-\")","v":"-"},{"$f":"IFERROR(IFERROR(VLOOKUP($B29,'Screeningsliste CO2'!$C$6:$U$20,7,FALSE),VLOOKUP($B29,'Screeningsliste energi'!$C$5:$U$19,7,FALSE)),\"-\")","v":"-"},{"$f":"IFERROR(IFERROR(VLOOKUP($B29,'Screeningsliste CO2'!$C$6:$U$20,8,FALSE),VLOOKUP($B29,'Screeningsliste energi'!$C$5:$U$19,8,FALSE)),\"-\")","v":"-"},{"$f":"IFERROR(IFERROR(VLOOKUP($B29,'Screeningsliste CO2'!$C$6:$U$20,9,FALSE),VLOOKUP($B29,'Screeningsliste energi'!$C$5:$U$19,9,FALSE)),\"-\")","v":"-"},{"$f":"IFERROR(IFERROR(VLOOKUP($B29,'Screeningsliste CO2'!$C$6:$U$20,10,FALSE),VLOOKUP($B29,'Screeningsliste energi'!$C$5:$U$19,10,FALSE)),\"-\")","v":"-"},{"$f":"IFERROR(IFERROR(VLOOKUP($B29,'Screeningsliste CO2'!$C$6:$U$20,11,FALSE),VLOOKUP($B29,'Screeningsliste energi'!$C$5:$U$19,11,FALSE)),\"-\")","v":"-"},{"$f":"IFERROR(IFERROR(VLOOKUP($B29,'Screeningsliste CO2'!$C$6:$U$20,12,FALSE),VLOOKUP($B29,'Screeningsliste energi'!$C$5:$U$19,12,FALSE)),\"-\")","v":"-"},{"$f":"IFERROR(IFERROR(VLOOKUP($B29,'Screeningsliste CO2'!$C$6:$U$20,13,FALSE),VLOOKUP($B29,'Screeningsliste energi'!$C$5:$U$20,13,FALSE)),\"-\")","v":"-"},{"$f":"IFERROR(IFERROR(VLOOKUP($B29,'Screeningsliste CO2'!$C$6:$U$20,14,FALSE),VLOOKUP($B29,'Screeningsliste energi'!$C$5:$U$20,14,FALSE)),\"-\")","v":"-"},{"$f":"IFERROR(IFERROR(VLOOKUP($B29,'Screeningsliste CO2'!$C$6:$U$20,15,FALSE),VLOOKUP($B29,'Screeningsliste energi'!$C$5:$U$20,15,FALSE)),\"-\")","v":"-"},{"$f":"IFERROR(IFERROR(VLOOKUP($B29,'Screeningsliste CO2'!$C$6:$U$20,16,FALSE),VLOOKUP($B29,'Screeningsliste energi'!$C$5:$U$20,16,FALSE)),\"-\")","v":"-"},{"$f":"IFERROR(IFERROR(VLOOKUP($B29,'Screeningsliste CO2'!$C$6:$T$20,3,FALSE),VLOOKUP($B29,'Screeningsliste energi'!$C$5:$U$19,3,FALSE)),\"-\")","v":"-"},{"$f":"IFERROR(IFERROR(VLOOKUP($B29,'Screeningsliste CO2'!$C$6:$T$20,3,FALSE),VLOOKUP($B29,'Screeningsliste energi'!$C$5:$U$19,3,FALSE)),\"-\")","v":"-"},{"$f":"IFERROR(IFERROR(VLOOKUP($B29,'Screeningsliste CO2'!$C$6:$T$20,3,FALSE),VLOOKUP($B29,'Screeningsliste energi'!$C$5:$U$19,3,FALSE)),\"-\")","v":"-"},{"$f":"IFERROR(IFERROR(VLOOKUP($B29,'Screeningsliste CO2'!$C$6:$U$20,17,FALSE),VLOOKUP($B29,'Screeningsliste energi'!$C$5:$U$20,17,FALSE)),\"-\")","v":"-"},{"$f":"IFERROR(IFERROR(VLOOKUP($B29,'Screeningsliste CO2'!$C$6:$U$20,18,FALSE),VLOOKUP($B29,'Screeningsliste energi'!$C$5:$U$20,18,FALSE)),\"-\")","v":"-"},{"$f":"IFERROR(IFERROR(VLOOKUP($B29,'Screeningsliste CO2'!$C$6:$U$20,19,FALSE),VLOOKUP($B29,'Screeningsliste energi'!$C$5:$U$20,19,FALSE)),\"-\")","v":"-"}]
[null,null,null,{"$f":"IFERROR(IFERROR(VLOOKUP($B30,'Screeningsliste CO2'!$C$6:$U$20,2,FALSE),VLOOKUP($B30,'Screeningsliste energi'!$C$5:$U$19,2,FALSE)),\"-\")","v":"-"},{"$f":"IFERROR(IFERROR(VLOOKUP($B30,'Screeningsliste CO2'!$C$6:$U$20,3,FALSE),VLOOKUP($B30,'Screeningsliste energi'!$C$5:$U$19,3,FALSE)),\"-\")","v":"-"},{"$f":"IFERROR(IFERROR(VLOOKUP($B30,'Screeningsliste CO2'!$C$6:$U$20,4,FALSE),VLOOKUP($B30,'Screeningsliste energi'!$C$5:$U$19,4,FALSE)),\"-\")","v":"-"},{"$f":"IFERROR(IFERROR(VLOOKUP($B30,'Screeningsliste CO2'!$C$6:$U$20,5,FALSE),VLOOKUP($B30,'Screeningsliste energi'!$C$5:$U$19,5,FALSE)),\"-\")","v":"-"},{"$f":"IFERROR(IFERROR(VLOOKUP($B30,'Screeningsliste CO2'!$C$6:$U$20,6,FALSE),VLOOKUP($B30,'Screeningsliste energi'!$C$5:$U$19,6,FALSE)),\"-\")","v":"-"},{"$f":"IFERROR(IFERROR(VLOOKUP($B30,'Screeningsliste CO2'!$C$6:$U$20,7,FALSE),VLOOKUP($B30,'Screeningsliste energi'!$C$5:$U$19,7,FALSE)),\"-\")","v":"-"},{"$f":"IFERROR(IFERROR(VLOOKUP($B30,'Screeningsliste CO2'!$C$6:$U$20,8,FALSE),VLOOKUP($B30,'Screeningsliste energi'!$C$5:$U$19,8,FALSE)),\"-\")","v":"-"},{"$f":"IFERROR(IFERROR(VLOOKUP($B30,'Screeningsliste CO2'!$C$6:$U$20,9,FALSE),VLOOKUP($B30,'Screeningsliste energi'!$C$5:$U$19,9,FALSE)),\"-\")","v":"-"},{"$f":"IFERROR(IFERROR(VLOOKUP($B30,'Screeningsliste CO2'!$C$6:$U$20,10,FALSE),VLOOKUP($B30,'Screeningsliste energi'!$C$5:$U$19,10,FALSE)),\"-\")","v":"-"},{"$f":"IFERROR(IFERROR(VLOOKUP($B30,'Screeningsliste CO2'!$C$6:$U$20,11,FALSE),VLOOKUP($B30,'Screeningsliste energi'!$C$5:$U$19,11,FALSE)),\"-\")","v":"-"},{"$f":"IFERROR(IFERROR(VLOOKUP($B30,'Screeningsliste CO2'!$C$6:$U$20,12,FALSE),VLOOKUP($B30,'Screeningsliste energi'!$C$5:$U$19,12,FALSE)),\"-\")","v":"-"},{"$f":"IFERROR(IFERROR(VLOOKUP($B30,'Screeningsliste CO2'!$C$6:$U$20,13,FALSE),VLOOKUP($B30,'Screeningsliste energi'!$C$5:$U$20,13,FALSE)),\"-\")","v":"-"},{"$f":"IFERROR(IFERROR(VLOOKUP($B30,'Screeningsliste CO2'!$C$6:$U$20,14,FALSE),VLOOKUP($B30,'Screeningsliste energi'!$C$5:$U$20,14,FALSE)),\"-\")","v":"-"},{"$f":"IFERROR(IFERROR(VLOOKUP($B30,'Screeningsliste CO2'!$C$6:$U$20,15,FALSE),VLOOKUP($B30,'Screeningsliste energi'!$C$5:$U$20,15,FALSE)),\"-\")","v":"-"},{"$f":"IFERROR(IFERROR(VLOOKUP($B30,'Screeningsliste CO2'!$C$6:$U$20,16,FALSE),VLOOKUP($B30,'Screeningsliste energi'!$C$5:$U$20,16,FALSE)),\"-\")","v":"-"},{"$f":"IFERROR(IFERROR(VLOOKUP($B30,'Screeningsliste CO2'!$C$6:$T$20,3,FALSE),VLOOKUP($B30,'Screeningsliste energi'!$C$5:$U$19,3,FALSE)),\"-\")","v":"-"},{"$f":"IFERROR(IFERROR(VLOOKUP($B30,'Screeningsliste CO2'!$C$6:$T$20,3,FALSE),VLOOKUP($B30,'Screeningsliste energi'!$C$5:$U$19,3,FALSE)),\"-\")","v":"-"},{"$f":"IFERROR(IFERROR(VLOOKUP($B30,'Screeningsliste CO2'!$C$6:$T$20,3,FALSE),VLOOKUP($B30,'Screeningsliste energi'!$C$5:$U$19,3,FALSE)),\"-\")","v":"-"},{"$f":"IFERROR(IFERROR(VLOOKUP($B30,'Screeningsliste CO2'!$C$6:$U$20,17,FALSE),VLOOKUP($B30,'Screeningsliste energi'!$C$5:$U$20,17,FALSE)),\"-\")","v":"-"},{"$f":"IFERROR(IFERROR(VLOOKUP($B30,'Screeningsliste CO2'!$C$6:$U$20,18,FALSE),VLOOKUP($B30,'Screeningsliste energi'!$C$5:$U$20,18,FALSE)),\"-\")","v":"-"},{"$f":"IFERROR(IFERROR(VLOOKUP($B30,'Screeningsliste CO2'!$C$6:$U$20,19,FALSE),VLOOKUP($B30,'Screeningsliste energi'!$C$5:$U$20,19,FALSE)),\"-\")","v":"-"}]
[null,null,null,{"$f":"IFERROR(IFERROR(VLOOKUP($B31,'Screeningsliste CO2'!$C$6:$U$20,2,FALSE),VLOOKUP($B31,'Screeningsliste energi'!$C$5:$U$19,2,FALSE)),\"-\")","v":"-"},{"$f":"IFERROR(IFERROR(VLOOKUP($B31,'Screeningsliste CO2'!$C$6:$U$20,3,FALSE),VLOOKUP($B31,'Screeningsliste energi'!$C$5:$U$19,3,FALSE)),\"-\")","v":"-"},{"$f":"IFERROR(IFERROR(VLOOKUP($B31,'Screeningsliste CO2'!$C$6:$U$20,4,FALSE),VLOOKUP($B31,'Screeningsliste energi'!$C$5:$U$19,4,FALSE)),\"-\")","v":"-"},{"$f":"IFERROR(IFERROR(VLOOKUP($B31,'Screeningsliste CO2'!$C$6:$U$20,5,FALSE),VLOOKUP($B31,'Screeningsliste energi'!$C$5:$U$19,5,FALSE)),\"-\")","v":"-"},{"$f":"IFERROR(IFERROR(VLOOKUP($B31,'Screeningsliste CO2'!$C$6:$U$20,6,FALSE),VLOOKUP($B31,'Screeningsliste energi'!$C$5:$U$19,6,FALSE)),\"-\")","v":"-"},{"$f":"IFERROR(IFERROR(VLOOKUP($B31,'Screeningsliste CO2'!$C$6:$U$20,7,FALSE),VLOOKUP($B31,'Screeningsliste energi'!$C$5:$U$19,7,FALSE)),\"-\")","v":"-"},{"$f":"IFERROR(IFERROR(VLOOKUP($B31,'Screeningsliste CO2'!$C$6:$U$20,8,FALSE),VLOOKUP($B31,'Screeningsliste energi'!$C$5:$U$19,8,FALSE)),\"-\")","v":"-"},{"$f":"IFERROR(IFERROR(VLOOKUP($B31,'Screeningsliste CO2'!$C$6:$U$20,9,FALSE),VLOOKUP($B31,'Screeningsliste energi'!$C$5:$U$19,9,FALSE)),\"-\")","v":"-"},{"$f":"IFERROR(IFERROR(VLOOKUP($B31,'Screeningsliste CO2'!$C$6:$U$20,10,FALSE),VLOOKUP($B31,'Screeningsliste energi'!$C$5:$U$19,10,FALSE)),\"-\")","v":"-"},{"$f":"IFERROR(IFERROR(VLOOKUP($B31,'Screeningsliste CO2'!$C$6:$U$20,11,FALSE),VLOOKUP($B31,'Screeningsliste energi'!$C$5:$U$19,11,FALSE)),\"-\")","v":"-"},{"$f":"IFERROR(IFERROR(VLOOKUP($B31,'Screeningsliste CO2'!$C$6:$U$20,12,FALSE),VLOOKUP($B31,'Screeningsliste energi'!$C$5:$U$19,12,FALSE)),\"-\")","v":"-"},{"$f":"IFERROR(IFERROR(VLOOKUP($B31,'Screeningsliste CO2'!$C$6:$U$20,13,FALSE),VLOOKUP($B31,'Screeningsliste energi'!$C$5:$U$20,13,FALSE)),\"-\")","v":"-"},{"$f":"IFERROR(IFERROR(VLOOKUP($B31,'Screeningsliste CO2'!$C$6:$U$20,14,FALSE),VLOOKUP($B31,'Screeningsliste energi'!$C$5:$U$20,14,FALSE)),\"-\")","v":"-"},{"$f":"IFERROR(IFERROR(VLOOKUP($B31,'Screeningsliste CO2'!$C$6:$U$20,15,FALSE),VLOOKUP($B31,'Screeningsliste energi'!$C$5:$U$20,15,FALSE)),\"-\")","v":"-"},{"$f":"IFERROR(IFERROR(VLOOKUP($B31,'Screeningsliste CO2'!$C$6:$U$20,16,FALSE),VLOOKUP($B31,'Screeningsliste energi'!$C$5:$U$20,16,FALSE)),\"-\")","v":"-"},{"$f":"IFERROR(IFERROR(VLOOKUP($B31,'Screeningsliste CO2'!$C$6:$T$20,3,FALSE),VLOOKUP($B31,'Screeningsliste energi'!$C$5:$U$19,3,FALSE)),\"-\")","v":"-"},{"$f":"IFERROR(IFERROR(VLOOKUP($B31,'Screeningsliste CO2'!$C$6:$T$20,3,FALSE),VLOOKUP($B31,'Screeningsliste energi'!$C$5:$U$19,3,FALSE)),\"-\")","v":"-"},{"$f":"IFERROR(IFERROR(VLOOKUP($B31,'Screeningsliste CO2'!$C$6:$T$20,3,FALSE),VLOOKUP($B31,'Screeningsliste energi'!$C$5:$U$19,3,FALSE)),\"-\")","v":"-"},{"$f":"IFERROR(IFERROR(VLOOKUP($B31,'Screeningsliste CO2'!$C$6:$U$20,17,FALSE),VLOOKUP($B31,'Screeningsliste energi'!$C$5:$U$20,17,FALSE)),\"-\")","v":"-"},{"$f":"IFERROR(IFERROR(VLOOKUP($B31,'Screeningsliste CO2'!$C$6:$U$20,18,FALSE),VLOOKUP($B31,'Screeningsliste energi'!$C$5:$U$20,18,FALSE)),\"-\")","v":"-"},{"$f":"IFERROR(IFERROR(VLOOKUP($B31,'Screeningsliste CO2'!$C$6:$U$20,19,FALSE),VLOOKUP($B31,'Screeningsliste energi'!$C$5:$U$20,19,FALSE)),\"-\")","v":"-"}]
[null,null,null,{"$f":"IFERROR(IFERROR(VLOOKUP($B32,'Screeningsliste CO2'!$C$6:$U$20,2,FALSE),VLOOKUP($B32,'Screeningsliste energi'!$C$5:$U$19,2,FALSE)),\"-\")","v":"-"},{"$f":"IFERROR(IFERROR(VLOOKUP($B32,'Screeningsliste CO2'!$C$6:$U$20,3,FALSE),VLOOKUP($B32,'Screeningsliste energi'!$C$5:$U$19,3,FALSE)),\"-\")","v":"-"},{"$f":"IFERROR(IFERROR(VLOOKUP($B32,'Screeningsliste CO2'!$C$6:$U$20,4,FALSE),VLOOKUP($B32,'Screeningsliste energi'!$C$5:$U$19,4,FALSE)),\"-\")","v":"-"},{"$f":"IFERROR(IFERROR(VLOOKUP($B32,'Screeningsliste CO2'!$C$6:$U$20,5,FALSE),VLOOKUP($B32,'Screeningsliste energi'!$C$5:$U$19,5,FALSE)),\"-\")","v":"-"},{"$f":"IFERROR(IFERROR(VLOOKUP($B32,'Screeningsliste CO2'!$C$6:$U$20,6,FALSE),VLOOKUP($B32,'Screeningsliste energi'!$C$5:$U$19,6,FALSE)),\"-\")","v":"-"},{"$f":"IFERROR(IFERROR(VLOOKUP($B32,'Screeningsliste CO2'!$C$6:$U$20,7,FALSE),VLOOKUP($B32,'Screeningsliste energi'!$C$5:$U$19,7,FALSE)),\"-\")","v":"-"},{"$f":"IFERROR(IFERROR(VLOOKUP($B32,'Screeningsliste CO2'!$C$6:$U$20,8,FALSE),VLOOKUP($B32,'Screeningsliste energi'!$C$5:$U$19,8,FALSE)),\"-\")","v":"-"},{"$f":"IFERROR(IFERROR(VLOOKUP($B32,'Screeningsliste CO2'!$C$6:$U$20,9,FALSE),VLOOKUP($B32,'Screeningsliste energi'!$C$5:$U$19,9,FALSE)),\"-\")","v":"-"},{"$f":"IFERROR(IFERROR(VLOOKUP($B32,'Screeningsliste CO2'!$C$6:$U$20,10,FALSE),VLOOKUP($B32,'Screeningsliste energi'!$C$5:$U$19,10,FALSE)),\"-\")","v":"-"},{"$f":"IFERROR(IFERROR(VLOOKUP($B32,'Screeningsliste CO2'!$C$6:$U$20,11,FALSE),VLOOKUP($B32,'Screeningsliste energi'!$C$5:$U$19,11,FALSE)),\"-\")","v":"-"},{"$f":"IFERROR(IFERROR(VLOOKUP($B32,'Screeningsliste CO2'!$C$6:$U$20,12,FALSE),VLOOKUP($B32,'Screeningsliste energi'!$C$5:$U$19,12,FALSE)),\"-\")","v":"-"},{"$f":"IFERROR(IFERROR(VLOOKUP($B32,'Screeningsliste CO2'!$C$6:$U$20,13,FALSE),VLOOKUP($B32,'Screeningsliste energi'!$C$5:$U$20,13,FALSE)),\"-\")","v":"-"},{"$f":"IFERROR(IFERROR(VLOOKUP($B32,'Screeningsliste CO2'!$C$6:$U$20,14,FALSE),VLOOKUP($B32,'Screeningsliste energi'!$C$5:$U$20,14,FALSE)),\"-\")","v":"-"},{"$f":"IFERROR(IFERROR(VLOOKUP($B32,'Screeningsliste CO2'!$C$6:$U$20,15,FALSE),VLOOKUP($B32,'Screeningsliste energi'!$C$5:$U$20,15,FALSE)),\"-\")","v":"-"},{"$f":"IFERROR(IFERROR(VLOOKUP($B32,'Screeningsliste CO2'!$C$6:$U$20,16,FALSE),VLOOKUP($B32,'Screeningsliste energi'!$C$5:$U$20,16,FALSE)),\"-\")","v":"-"},{"$f":"IFERROR(IFERROR(VLOOKUP($B32,'Screeningsliste CO2'!$C$6:$T$20,3,FALSE),VLOOKUP($B32,'Screeningsliste energi'!$C$5:$U$19,3,FALSE)),\"-\")","v":"-"},{"$f":"IFERROR(IFERROR(VLOOKUP($B32,'Screeningsliste CO2'!$C$6:$T$20,3,FALSE),VLOOKUP($B32,'Screeningsliste energi'!$C$5:$U$19,3,FALSE)),\"-\")","v":"-"},{"$f":"IFERROR(IFERROR(VLOOKUP($B32,'Screeningsliste CO2'!$C$6:$T$20,3,FALSE),VLOOKUP($B32,'Screeningsliste energi'!$C$5:$U$19,3,FALSE)),\"-\")","v":"-"},{"$f":"IFERROR(IFERROR(VLOOKUP($B32,'Screeningsliste CO2'!$C$6:$U$20,17,FALSE),VLOOKUP($B32,'Screeningsliste energi'!$C$5:$U$20,17,FALSE)),\"-\")","v":"-"},{"$f":"IFERROR(IFERROR(VLOOKUP($B32,'Screeningsliste CO2'!$C$6:$U$20,18,FALSE),VLOOKUP($B32,'Screeningsliste energi'!$C$5:$U$20,18,FALSE)),\"-\")","v":"-"},{"$f":"IFERROR(IFERROR(VLOOKUP($B32,'Screeningsliste CO2'!$C$6:$U$20,19,FALSE),VLOOKUP($B32,'Screeningsliste energi'!$C$5:$U$20,19,FALSE)),\"-\")","v":"-"}]
[null,null,null,{"$f":"IFERROR(IFERROR(VLOOKUP($B33,'Screeningsliste CO2'!$C$6:$U$20,2,FALSE),VLOOKUP($B33,'Screeningsliste energi'!$C$5:$U$19,2,FALSE)),\"-\")","v":"-"},{"$f":"IFERROR(IFERROR(VLOOKUP($B33,'Screeningsliste CO2'!$C$6:$U$20,3,FALSE),VLOOKUP($B33,'Screeningsliste energi'!$C$5:$U$19,3,FALSE)),\"-\")","v":"-"},{"$f":"IFERROR(IFERROR(VLOOKUP($B33,'Screeningsliste CO2'!$C$6:$U$20,4,FALSE),VLOOKUP($B33,'Screeningsliste energi'!$C$5:$U$19,4,FALSE)),\"-\")","v":"-"},{"$f":"IFERROR(IFERROR(VLOOKUP($B33,'Screeningsliste CO2'!$C$6:$U$20,5,FALSE),VLOOKUP($B33,'Screeningsliste energi'!$C$5:$U$19,5,FALSE)),\"-\")","v":"-"},{"$f":"IFERROR(IFERROR(VLOOKUP($B33,'Screeningsliste CO2'!$C$6:$U$20,6,FALSE),VLOOKUP($B33,'Screeningsliste energi'!$C$5:$U$19,6,FALSE)),\"-\")","v":"-"},{"$f":"IFERROR(IFERROR(VLOOKUP($B33,'Screeningsliste CO2'!$C$6:$U$20,7,FALSE),VLOOKUP($B33,'Screeningsliste energi'!$C$5:$U$19,7,FALSE)),\"-\")","v":"-"},{"$f":"IFERROR(IFERROR(VLOOKUP($B33,'Screeningsliste CO2'!$C$6:$U$20,8,FALSE),VLOOKUP($B33,'Screeningsliste energi'!$C$5:$U$19,8,FALSE)),\"-\")","v":"-"},{"$f":"IFERROR(IFERROR(VLOOKUP($B33,'Screeningsliste CO2'!$C$6:$U$20,9,FALSE),VLOOKUP($B33,'Screeningsliste energi'!$C$5:$U$19,9,FALSE)),\"-\")","v":"-"},{"$f":"IFERROR(IFERROR(VLOOKUP($B33,'Screeningsliste CO2'!$C$6:$U$20,10,FALSE),VLOOKUP($B33,'Screeningsliste energi'!$C$5:$U$19,10,FALSE)),\"-\")","v":"-"},{"$f":"IFERROR(IFERROR(VLOOKUP($B33,'Screeningsliste CO2'!$C$6:$U$20,11,FALSE),VLOOKUP($B33,'Screeningsliste energi'!$C$5:$U$19,11,FALSE)),\"-\")","v":"-"},{"$f":"IFERROR(IFERROR(VLOOKUP($B33,'Screeningsliste CO2'!$C$6:$U$20,12,FALSE),VLOOKUP($B33,'Screeningsliste energi'!$C$5:$U$19,12,FALSE)),\"-\")","v":"-"},{"$f":"IFERROR(IFERROR(VLOOKUP($B33,'Screeningsliste CO2'!$C$6:$U$20,13,FALSE),VLOOKUP($B33,'Screeningsliste energi'!$C$5:$U$20,13,FALSE)),\"-\")","v":"-"},{"$f":"IFERROR(IFERROR(VLOOKUP($B33,'Screeningsliste CO2'!$C$6:$U$20,14,FALSE),VLOOKUP($B33,'Screeningsliste energi'!$C$5:$U$20,14,FALSE)),\"-\")","v":"-"},{"$f":"IFERROR(IFERROR(VLOOKUP($B33,'Screeningsliste CO2'!$C$6:$U$20,15,FALSE),VLOOKUP($B33,'Screeningsliste energi'!$C$5:$U$20,15,FALSE)),\"-\")","v":"-"},{"$f":"IFERROR(IFERROR(VLOOKUP($B33,'Screeningsliste CO2'!$C$6:$U$20,16,FALSE),VLOOKUP($B33,'Screeningsliste energi'!$C$5:$U$20,16,FALSE)),\"-\")","v":"-"},{"$f":"IFERROR(IFERROR(VLOOKUP($B33,'Screeningsliste CO2'!$C$6:$T$20,3,FALSE),VLOOKUP($B33,'Screeningsliste energi'!$C$5:$U$19,3,FALSE)),\"-\")","v":"-"},{"$f":"IFERROR(IFERROR(VLOOKUP($B33,'Screeningsliste CO2'!$C$6:$T$20,3,FALSE),VLOOKUP($B33,'Screeningsliste energi'!$C$5:$U$19,3,FALSE)),\"-\")","v":"-"},{"$f":"IFERROR(IFERROR(VLOOKUP($B33,'Screeningsliste CO2'!$C$6:$T$20,3,FALSE),VLOOKUP($B33,'Screeningsliste energi'!$C$5:$U$19,3,FALSE)),\"-\")","v":"-"},{"$f":"IFERROR(IFERROR(VLOOKUP($B33,'Screeningsliste CO2'!$C$6:$U$20,17,FALSE),VLOOKUP($B33,'Screeningsliste energi'!$C$5:$U$20,17,FALSE)),\"-\")","v":"-"},{"$f":"IFERROR(IFERROR(VLOOKUP($B33,'Screeningsliste CO2'!$C$6:$U$20,18,FALSE),VLOOKUP($B33,'Screeningsliste energi'!$C$5:$U$20,18,FALSE)),\"-\")","v":"-"},{"$f":"IFERROR(IFERROR(VLOOKUP($B33,'Screeningsliste CO2'!$C$6:$U$20,19,FALSE),VLOOKUP($B33,'Screeningsliste energi'!$C$5:$U$20,19,FALSE)),\"-\")","v":"-"}]

{"sheet":"Energiforbrug ifm. certifikat","index":6,"n_rows":15,"n_cols":8,"rows_kept":15,"cut":false,"hidden":true,"merged":[[17,3,17,9],[15,1,15,7],[14,1,14,7]]}
[]
[]
[]
[null,"CVR. nr.","Årstal for seneste års opgjorte energiforbrug","Energiforbrug i hele virksomheden, MWh","Energiforbrug omfattet af certifikatet, MWh","Evt. energiforbrug omfattet af almindeligt energisyn, MWh","Evt. undtaget energiforbrug* MWh","Beregnet andel omfattet af certifikat, procent"]
[null,null,null,null,null,null,null,{"$f":"IFERROR((E5)/D5,\"-\")","v":"-"}]
[null,null,null,null,null,null,null,{"$f":"IFERROR((E6)/D6,\"-\")","v":"-"}]
[null,null,null,null,null,null,null,"-"]
[null,null,null,null,null,null,null,"-"]
[null,null,null,null,null,null,null,"-"]
[null,null,null,null,null,null,null,"-"]
[null,null,null,null,null,null,null,"-"]
[null,null,null,null,null,null,null,"-"]
[]
[null,"* iht. Bekendtgørelsen"]
[null,"Evt. bemærkninger"]

{"sheet":"Definitioner","index":7,"n_rows":38,"n_cols":3,"rows_kept":38,"cut":false,"hidden":false,"merged":[]}
[]
[null,"Definitioner "]
[]
[null,"Varmepumper"]
[null,"Varmepumpe - omgivelsesvarme","Energimængde brugt fra en varmepumpe - ikke inkluderet det elforbrug der er brugt til varmepumpen"]
[null,"El til varmepumper","Her skrives det energiforbrug der er blevet brugt til varmepumpen"]
[null,"Overskudsvarme fra varmepumper","Overskudsvarme udnyttet fra varmepumper"]
[null,"Konverterede energiarter "]
[null,"Elektricitet i alt","Elektricitet brugt på den givne kategori, dette er inklusiv elforbrug til varmepumpe - det bliver ikke dobbelt talt i summen. "]
[null,"Fjernvarme"]
[]
[null,"Intern energiforsyning"]
[null,"Konverterings- og nettab","Forskellen på det samlede input og output i konverteringsprocessen."]
[null,"Procesvarme"]
[null,"Opvarmning/kogning","Inklusiv pasteurisering, blanchering, ekstraktion, sterilisering, rengøringsvand til produktionsanlæg, vask af råvarer, varmeholdelse af tanke og rør. "]
[null,"Tørring","Inklusiv bagning og tørring af/hærdning af lak"]
[null,"Inddampning"]
[null,"Destillation","Inklusiv deorisering"]
[null,"Brænding/Sintring"]
[null,"Smeltning/støbning","Inklusiv varmeholdelse af smeltede materialer, plaststøbemaskiner, og varmelegemer i ekstrudere"]
[null,"Anden procesvarme","Inklusiv hærdning af stål, hærdning af betonelementer, afspændingsovne, svideovne"]
[null,"Transport"]
[null,"Arbejdskørsel, intern transport"]
[null,"Vejtransport (offentlig vej)","Al transportaktivitet bortset fra intern transport på virksomhedsarealer."]
[null,"Rumvarme mv. "]
[null,"Rumvarme","Inklusiv varmt vand til lokalrengøring og komfortformål, men eksklusiv rumvarme i særlige rum med driftstemperaturer på mindst 45 grader samt i rum til lagring af oste, spegepølser mm. "]
[null,"Rumkøling","For rumkøling menes komfortkøling hvor der betales speciel afgift. "]
[null,"Sekundær energi"]
[null,"Belysning"]
[null,"Pumpning "]
[null,"Køl/frys (eksklusiv rumkøling)"]
[null,"Rumventilation"]
[null,"Blæsere"]
[null,"Trykluft"]
[null,"Hydraulik"]
[null,"Øvrige elmotorer","Inklusiv centrifugering, presning og intern eldrevet transport"]
[null,"IT og anden elektronik"]
[null,"Anden elanvendelse","Inklusiv svejsning og elektrolyse"]

{"sheet":"Hjælpedata","index":8,"n_rows":737,"n_cols":20,"rows_kept":737,"cut":false,"hidden":true,"merged":[[1,3,1,7],[0,15,0,16]]}
[null,null,null,null,null,null,null,null,null,null,null,"Branchekoder",null,null,null,"Omregningsfaktorer"]
["Anvendelseområder",null,null,"Underområder",null,null,null,null,null,null,null,"011100 Dyrkning af korn (undtagen ris), bælgfrugter og olieholdige frø",null,null,null,"Energiart","ton CO2 pr. MWh",null,"Omregningstabel til CO2 forbrug klimasyn"]
["Anvendelsesområde",null,null,"Intern energiforsyning","Procesvarme","Transport","Rumvarme","Sekundær energi",null,null,"Omregningsfaktorer","011200 Dyrkning af ris","Region","VBA til P-enhed","Gennførelsesgrad","Affald, bionedbrydeligt",0,null,"Energiart","ton CO2 pr. MWh"]
["Intern energiforsyning",null,null,"Konverterings- og nettab","Opvarmning/kogning ","Arbejdskørsel ","Rumvarme ","Belysning",null,null,"Affald, bionedbrydeligt","011300 Dyrkning af grøntsager og meloner, rødder og rodknolde","Nordjylland",1,"Ja","Affald, ikke bionedbrydeligt",0.33998400000000001,null,"Affald, ikke bionedbrydeligt",0.33998400000000001]
["Procesvarme",null,null,"Konverterings- og nettab","Tørring ","Vejtransport (offentlig vej)","Rumkøling ","Pumpning",null,null,"Affald, ikke bionedbrydeligt","011400 Dyrkning af sukkerrør","Midjylland",2,"Nej","Benzin og LVN",0.26279999999999998,null,"Benzin og LVN",0.26279999999999998]
["Transport",null,null,null,"Inddampning ",null,null,"Køl/frys (ekskl. rumkøling)",null,null,"Benzin og LVN","011500 Dyrkning af tobak","Syddanmark",3,null,"Biodiesel",0,null,"Diesel",0.26700000000000002]
["Rumvarme",null,null,null,"Destillation ",null,null,"Rumventilation",null,null,"Biodiesel","011600 Dyrkning af tekstilplanter","Sjælland",4,null,"Bioethanol",0,null,"Fuelolie og Spildolie",0.28242]
["Sekundær energi",null,null,null,"Brænding/sintring",null,null,"Blæsere",null,null,"Bioethanol","011900 Dyrkning af andre etårige afgrøder","Hovedstaden",5,null,"Biogas",0,null,"Gas & Dieselolie",0.26676]
[null,null,null,null,"Smeltning/støbning ",null,null,"Trykluft",null,null,"Biogas","012100 Dyrkning af druer",null,">5",null,"Bioolie",0,null,"JP1 og JP4",0.25919999999999999]
[null,null,null,null,"Anden procesvarme* ",null,null,"Hydraulik",null,null,"Bioolie","012200 Dyrkning af tropiske og subtropiske frugter",null,null,null,"Diesel",0.26700000000000002,null,"Kul & Koks",0.33944400000000002]
[null,null,null,null,null,null,null,"Øvrige elmotorer",null,null,"Diesel","012300 Dyrkning af citrusfrugter","Skal der indberettes certifikat ",null,null,"Elektricitet (forbrug)",3.61E-2,null,"Ledningsgas",0.20399999999999999]
[null,null,null,null,null,null,null,"It og anden elektronik",null,null,"Elektricitet (forbrug)","012400 Dyrkning af kernefrugter og stenfrugter",null,null,null,"Fjernvarme (forbrug)",5.416E-2,null,"LPG",0.23327999999999999]
[null,null,null,null,null,null,null,"Anden elanvendelse*",null,null,"Fjernvarme (forbrug)","012500 Dyrkning af andre træfrugter, bær og nødder","Ja",null,null,"Fuelolie og Spildolie",0.28242,null,"Petrokoks",0.33479999999999999]
[null,null,null,null,null,null,null,null,null,null,"Fuelolie og Spildolie","012600 Dyrkning af olieholdige frugter","Nej",null,null,"Gas & Dieselolie",0.26676,null,"Petroleum",0.25884000000000001]
[null,null,null,null,null,null,null,null,null,null,"Gas & Dieselolie","012700 Dyrkning af planter til fremstilling af drikkevarer",null,null,null,"Halm",0,null,"Raffinaderigas",0.204012]
[null,null,null,null,null,null,null,null,null,null,"Halm","012800 Dyrkning af krydderiplanter, aromaplanter og lægeplanter",null,null,null,"JP1 og JP4",0.25919999999999999]
["Energityper",null,null,"Undertyper",null,null,null,null,null,null,"JP1 og JP4","012900 Dyrkning af andre flerårige afgrøder",null,null,null,"Kul & Koks",0.33944400000000002]
["Energitype",null,null,"OLIEPRODUKTER","GAS","KUL-KOKS","AFFALD","VEDVARENDE ENERGI","KONVERTEREDE ENERGIARTER",null,"Kul & Koks","013000 Planteformering",null,null,null,"Ledningsgas",0.20399999999999999]
["Olieprodukter",null,null,"LPG","Lednings-gas","Kul og koks","Affald, ikke-bionedbrydeligt","Affald, bionedbrydeligt","El i alt",null,"Ledningsgas","014100 Avl af malkekvæg",null,null,null,"LPG",0.23327999999999999]
["Gas",null,null,"Motor-benzin",null,null,null,"Halm","heraf el til VP",null,"LPG","014200 Avl af andet kvæg og bøfler",null,null,null,"Petrokoks",0.33479999999999999]
["Kul Koks",null,null,"Fyrings-olie",null,null,null,"Skovflis","Fjern-varme",null,"Petrokoks","014300 Avl af heste og dyr af hestefamilien",null,null,null,"Petroleum",0.25884000000000001]
["Affald",null,null,"Diesel",null,null,null,"Træpiller",null,null,"Petroleum","014400 Avl af kameler og dyr af kamelfamilien",null,null,null,"Raffinaderigas",0.204012]
["Vedvarende energi",null,null,"Fuelolie",null,null,null,"Træaffald og brænde",null,null,"Raffinaderigas","014500 Avl af får og geder",null,null,null,"Træpiller",0]
["Konverterede energiarter",null,null,"Petro-koks",null,null,null,"Biogas",null,null,"Træpiller","014610 Avl af smågrise",null,null,null,"Træ Øvrig",0]
[null,null,null,null,null,null,null,"Bioolie",null,null,"Træ Øvrig","014620 Produktion af slagtesvin"]
[null,null,null,null,null,null,null,"Varme-pumper - intern ov",null,null,null,"014700 Fjerkræavl"]
[null,null,null,null,null,null,null,"Varme-pumper omg. Varme",null,null,null,"014910 Kenneler"]
[null,null,null,null,null,null,null,"Solvarme",null,null,null,"014920 Avl af pelsdyr mv."]
[null,null,null,null,null,null,null,null,null,null,null,"015000 Blandet drift"]
[null,null,null,null,null,null,null,null,null,null,null,"016100 Serviceydelser i forbindelse med planteavl"]
[null,null,null,null,null,null,null,null,null,null,null,"016200 Serviceydelser i forbindelse med husdyravl"]
[null,null,null,null,null,null,null,null,null,null,null,"016300 Forarbejdning af afgrøder efter høst"]
[null,null,null,null,null,null,null,null,null,null,null,"016400 Forarbejdning af frø/sædekorn til udsæd"]
[null,null,null,null,null,null,null,null,null,null,null,"017000 Jagt, fældefangst og serviceydelser i forbindelse hermed"]
[null,null,null,null,null,null,null,null,null,null,null,"021000 Dyrkning af træer og andre skovbrugsaktiviteter"]
[null,null,null,null,null,null,null,null,null,null,null,"022000 Skovning"]
[null,null,null,null,null,null,null,null,null,null,null,"023000 Indsamling af vildtvoksende forstmateriale undtagen træer"]
[null,null,null,null,null,null,null,null,null,null,null,"024000 Serviceydelser til skovbrug"]
[null,null,null,null,null,null,null,null,null,null,null,"031100 Havfiskeri"]
[null,null,null,null,null,null,null,null,null,null,null,"031200 Ferskvandsfiskeri"]
[null,null,null,null,null,null,null,null,null,null,null,"032100 Havbrug"]
[null,null,null,null,null,null,null,null,null,null,null,"032200 Ferskvandsbrug"]
[null,null,null,null,null,null,null,null,null,null,null,"051000 Indvinding af stenkul"]
[null,null,null,null,null,null,null,null,null,null,null,"052000 Indvinding af brunkul"]
[null,null,null,null,null,null,null,null,null,null,null,"061000 Indvinding af råolie"]
[null,null,null,null,null,null,null,null,null,null,null,"062000 Indvinding af naturgas"]
[null,null,null,null,null,null,null,null,null,null,null,"071000 Brydning af jernmalm"]
[null,null,null,null,null,null,null,null,null,null,null,"072100 Brydning af uran- og thoriummalme"]
[null,null,null,null,null,null,null,null,null,null,null,"072900 Brydning af andre ikke-jernholdige metalmalme"]
[null,null,null,null,null,null,null,null,null,null,null,"081100 Brydning af pynte- og bygningssten, kalksten, gips, kridt og skifer"]
[null,null,null,null,null,null,null,null,null,null,null,"081200 Grus- og sandgravning; indvinding af ler og kaolin"]
[null,null,null,null,null,null,null,null,null,null,null,"089100 Indvinding af mineraler til fremstilling af kemiske produkter og gødningsstoffer"]
[null,null,null,null,null,null,null,null,null,null,null,"089200 Indvinding og agglomerering af tørv"]
[null,null,null,null,null,null,null,null,null,null,null,"089300 Saltindvinding"]
[null,null,null,null,null,null,null,null,null,null,null,"089900 Anden råstofindvinding i.a.n."]
[null,null,null,null,null,null,null,null,null,null,null,"091000 Serviceydelser i forbindelse med indvinding af råolie og naturgas"]
[null,null,null,null,null,null,null,null,null,null,null,"099000 Serviceydelser i forbindelse med anden råstofindvinding"]
[null,null,null,null,null,null,null,null,null,null,null,"101110 Forarbejdning af svinekød"]
[null,null,null,null,null,null,null,null,null,null,null,"101190 Forarbejdning af andet kød"]
[null,null,null,null,null,null,null,null,null,null,null,"101200 Forarbejdning og konservering af fjerkrækød"]
[null,null,null,null,null,null,null,null,null,null,null,"101300 Produktion af kød- og fjerkrækødprodukter"]
[null,null,null,null,null,null,null,null,null,null,null,"102010 Fremstilling af fiskemel"]
[null,null,null,null,null,null,null,null,null,null,null,"102020 Forarbejdning og konservering af fisk, krebsdyr og bløddyr, undtagen fiskemel"]
[null,null,null,null,null,null,null,null,null,null,null,"103100 Forarbejdning og konservering af kartofler"]
[null,null,null,null,null,null,null,null,null,null,null,"103200 Fremstilling af frugt- og grøntsagssaft"]
[null,null,null,null,null,null,null,null,null,null,null,"103900 Anden forarbejdning og konservering af frugt og grøntsager"]
[null,null,null,null,null,null,null,null,null,null,null,"104100 Fremstilling af olier og fedtstoffer"]
[null,null,null,null,null,null,null,null,null,null,null,"104200 Fremstilling af margarine o.l. spiselige fedtstoffer"]
[null,null,null,null,null,null,null,null,null,null,null,"105100 Mejerier samt ostefremstilling"]
[null,null,null,null,null,null,null,null,null,null,null,"105200 Fremstilling af konsumis"]
[null,null,null,null,null,null,null,null,null,null,null,"106100 Fremstilling af mølleriprodukter"]
[null,null,null,null,null,null,null,null,null,null,null,"106200 Fremstilling af stivelse og stivelsesprodukter"]
[null,null,null,null,null,null,null,null,null,null,null,"107110 Industriel fremstilling af brød; kager mv."]
[null,null,null,null,null,null,null,null,null,null,null,"107120 Fremstilling af friske bageriprodukter"]
[null,null,null,null,null,null,null,null,null,null,null,"107200 Fremstilling af tvebakker og kiks; fremstilling af konserverede kager, tærter mv."]
[null,null,null,null,null,null,null,null,null,null,null,"107300 Fremstilling af makaroni, nudler, couscous og lignende dejvarer"]
[null,null,null,null,null,null,null,null,null,null,null,"108100 Fremstilling af sukker"]
[null,null,null,null,null,null,null,null,null,null,null,"108200 Fremstilling af kakao, chokolade og sukkervarer"]
[null,null,null,null,null,null,null,null,null,null,null,"108300 Forarbejdning af te og kaffe"]
[null,null,null,null,null,null,null,null,null,null,null,"108400 Fremstilling af smagspræparater og krydderier"]
[null,null,null,null,null,null,null,null,null,null,null,"108500 Fremstilling af færdigretter"]
[null,null,null,null,null,null,null,null,null,null,null,"108600 Fremstilling af homogeniserede produkter og diætmad"]
[null,null,null,null,null,null,null,null,null,null,null,"108900 Fremstilling af andre fødevarer i.a.n."]
[null,null,null,null,null,null,null,null,null,null,null,"109100 Fremstilling af færdige foderblandinger til landbrugsdyr"]
[null,null,null,null,null,null,null,null,null,null,null,"109200 Fremstilling af færdige foderblandinger til kæledyr"]
[null,null,null,null,null,null,null,null,null,null,null,"110100 Destillation, rektifikation og blanding af alkohol"]
[null,null,null,null,null,null,null,null,null,null,null,"110200 Fremstilling af vin af druer"]
[null,null,null,null,null,null,null,null,null,null,null,"110300 Fremstilling af cider og anden frugtvin"]
[null,null,null,null,null,null,null,null,null,null,null,"110400 Fremstilling af andre ikke-destillerede gærede drikkevarer"]
[null,null,null,null,null,null,null,null,null,null,null,"110500 Fremstilling af øl"]
[null,null,null,null,null,null,null,null,null,null,null,"110600 Fremstilling af malt"]
[null,null,null,null,null,null,null,null,null,null,null,"110700 Fremstilling af læskedrikke; fremstilling af mineralvand og andet vand på flaske"]
[null,null,null,null,null,null,null,null,null,null,null,"120000 Fremstilling af tobaksprodukter"]
[null,null,null,null,null,null,null,null,null,null,null,"131000 Forbehandling og spinding af tekstilfibre"]
[null,null,null,null,null,null,null,null,null,null,null,"132000 Vævning af tekstiler"]
[null,null,null,null,null,null,null,null,null,null,null,"133000 Efterbehandling af tekstiler"]
[null,null,null,null,null,null,null,null,null,null,null,"139100 Fremstilling af trikotagestoffer"]
[null,null,null,null,null,null,null,null,null,null,null,"139210 Fremstilling af boligtekstiler"]
[null,null,null,null,null,null,null,null,null,null,null,"139220 Fremstilling af færdige tekstilvarer undtagen boligtekstiler og beklædningsartikler"]
[null,null,null,null,null,null,null,null,null,null,null,"139300 Fremstilling af tæpper"]
[null,null,null,null,null,null,null,null,null,null,null,"139400 Fremstilling af reb, tovværk, sejlgarn og netstoffer"]
[null,null,null,null,null,null,null,null,null,null,null,"139500 Fremstilling af fiberdug og varer af fiberdug undtagen beklædningsartikler"]
[null,null,null,null,null,null,null,null,null,null,null,"139600 Fremstilling af andre tekniske og industrielle tekstiler"]
[null,null,null,null,null,null,null,null,null,null,null,"139900 Fremstilling af andre tekstiler i.a.n."]
[null,null,null,null,null,null,null,null,null,null,null,"141100 Fremstilling af beklædningsartikler af læder"]
[null,null,null,null,null,null,null,null,null,null,null,"141200 Fremstilling af arbejdsbeklædning"]
[null,null,null,null,null,null,null,null,null,null,null,"141300 Fremstilling af anden yderbeklædning"]
[null,null,null,null,null,null,null,null,null,null,null,"141400 Fremstilling af underbeklædning"]
[null,null,null,null,null,null,null,null,null,null,null,"141900 Fremstilling af andre beklædningsartikler samt tilbehør"]
[null,null,null,null,null,null,null,null,null,null,null,"142000 Fremstilling af varer af pelsskind"]
[null,null,null,null,null,null,null,null,null,null,null,"143100 Fremstilling af strikkede og hæklede strømpevarer"]
[null,null,null,null,null,null,null,null,null,null,null,"143900 Fremstilling af andre strikkede og hæklede beklædningsartikler"]
[null,null,null,null,null,null,null,null,null,null,null,"151100 Garvning og beredning af læder; beredning og farvning af pelsskind"]
[null,null,null,null,null,null,null,null,null,null,null,"151200 Fremstilling af tasker, kufferter, sadelmagervarer mv."]
[null,null,null,null,null,null,null,null,null,null,null,"152000 Fremstilling af fodtøj"]
[null,null,null,null,null,null,null,null,null,null,null,"161000 Udsavning og høvling af træ"]
[null,null,null,null,null,null,null,null,null,null,null,"162100 Fremstilling af finerplader og træbaserede plader"]
[null,null,null,null,null,null,null,null,null,null,null,"162200 Fremstilling af sammensatte parketstave"]
[null,null,null,null,null,null,null,null,null,null,null,"162300 Fremstilling af bygningstømmer og snedkeriartikler i øvrigt"]
[null,null,null,null,null,null,null,null,null,null,null,"162400 Fremstilling af træemballage"]
[null,null,null,null,null,null,null,null,null,null,null,"162900 Fremstilling af andre træprodukter; fremstilling af varer af kork, strå og flettematerialer"]
[null,null,null,null,null,null,null,null,null,null,null,"171100 Fremstilling af papirmasse"]
[null,null,null,null,null,null,null,null,null,null,null,"171200 Fremstilling af papir og pap"]
[null,null,null,null,null,null,null,null,null,null,null,"172100 Fremstilling af bølgepap og pap og emballage af papir og pap"]
[null,null,null,null,null,null,null,null,null,null,null,"172200 Fremstilling af husholdningsartikler og hygiejneartikler samt toiletartikler af papir og pap"]
[null,null,null,null,null,null,null,null,null,null,null,"172300 Fremstilling af kontorartikler af papir"]
[null,null,null,null,null,null,null,null,null,null,null,"172400 Fremstilling af tapet"]
[null,null,null,null,null,null,null,null,null,null,null,"172900 Fremstilling af andre papir- og papvarer"]
[null,null,null,null,null,null,null,null,null,null,null,"181100 Trykning af dagblade"]
[null,null,null,null,null,null,null,null,null,null,null,"181200 Anden trykning"]
[null,null,null,null,null,null,null,null,null,null,null,"181300 Prepress- og premedia-arbejde"]
[null,null,null,null,null,null,null,null,null,null,null,"181400 Bogbinding og lignende serviceydelser"]
[null,null,null,null,null,null,null,null,null,null,null,"182000 Reproduktion af indspillede medier"]
[null,null,null,null,null,null,null,null,null,null,null,"191000 Fremstilling af koks mv."]
[null,null,null,null,null,null,null,null,null,null,null,"192000 Fremstilling af raffinerede mineralolieprodukter"]
[null,null,null,null,null,null,null,null,null,null,null,"201100 Fremstilling af industrigasser"]
[null,null,null,null,null,null,null,null,null,null,null,"201200 Fremstilling af farvestoffer og pigmenter"]
[null,null,null,null,null,null,null,null,null,null,null,"201300 Fremstilling af andre uorganiske basiskemikalier"]
[null,null,null,null,null,null,null,null,null,null,null,"201400 Fremstilling af andre organiske basiskemikalier"]
[null,null,null,null,null,null,null,null,null,null,null,"201500 Fremstilling af gødningsstoffer og nitrogenprodukter"]
[null,null,null,null,null,null,null,null,null,null,null,"201600 Fremstilling af plast i ubearbejdet form"]
[null,null,null,null,null,null,null,null,null,null,null,"201700 Fremstilling af syntetisk gummi i ubearbejdet form"]
[null,null,null,null,null,null,null,null,null,null,null,"202000 Fremstilling af pesticider og andre agrokemiske produkter"]
[null,null,null,null,null,null,null,null,null,null,null,"203000 Fremstilling af maling, lak og lignende overfladebehandlingsmidler, trykfarver samt tætningsmaterialer"]
[null,null,null,null,null,null,null,null,null,null,null,"204100 Fremstilling af sæbe, rengørings- og rensemidler samt poleremidler"]
[null,null,null,null,null,null,null,null,null,null,null,"204200 Fremstilling af parfume, hårshampoo, tandpasta mv."]
[null,null,null,null,null,null,null,null,null,null,null,"205100 Fremstilling af sprængstoffer"]
[null,null,null,null,null,null,null,null,null,null,null,"205200 Fremstilling af lim"]
[null,null,null,null,null,null,null,null,null,null,null,"205300 Fremstilling af æteriske olier"]
[null,null,null,null,null,null,null,null,null,null,null,"205900 Fremstilling af andre kemiske produkter i.a.n."]
[null,null,null,null,null,null,null,null,null,null,null,"206000 Fremstilling af kemofibre"]
[null,null,null,null,null,null,null,null,null,null,null,"211000 Fremstilling af farmaceutiske råvarer"]
[null,null,null,null,null,null,null,null,null,null,null,"212000 Fremstilling af farmaceutiske præparater"]
[null,null,null,null,null,null,null,null,null,null,null,"221100 Fremstilling af gummidæk og gummislanger; vulkanisering af dæk"]
[null,null,null,null,null,null,null,null,null,null,null,"221900 Fremstilling af andre gummiprodukter"]
[null,null,null,null,null,null,null,null,null,null,null,"222100 Fremstilling af plader, ark, rør og slanger samt profiler af plast"]
[null,null,null,null,null,null,null,null,null,null,null,"222200 Fremstilling af plastemballage"]
[null,null,null,null,null,null,null,null,null,null,null,"222300 Fremstilling af bygningsartikler af plast"]
[null,null,null,null,null,null,null,null,null,null,null,"222900 Fremstilling af andre plastprodukter"]
[null,null,null,null,null,null,null,null,null,null,null,"231100 Fremstilling af planglas"]
[null,null,null,null,null,null,null,null,null,null,null,"231200 Formning og forarbejdning af planglas"]
[null,null,null,null,null,null,null,null,null,null,null,"231300 Fremstilling af flasker, drikkeglas mv."]
[null,null,null,null,null,null,null,null,null,null,null,"231400 Fremstilling af glasfiber"]
[null,null,null,null,null,null,null,null,null,null,null,"231900 Fremstilling og bearbejdning af andet glas (herunder teknisk glas)"]
[null,null,null,null,null,null,null,null,null,null,null,"232000 Fremstilling af ildfaste produkter"]
[null,null,null,null,null,null,null,null,null,null,null,"233100 Fremstilling af keramiske teglsten og gulvfliser"]
[null,null,null,null,null,null,null,null,null,null,null,"233200 Fremstilling af mursten, teglsten og byggematerialer af brændt ler"]
[null,null,null,null,null,null,null,null,null,null,null,"234100 Fremstilling af keramiske husholdningsartikler og pyntegenstande"]
[null,null,null,null,null,null,null,null,null,null,null,"234200 Fremstilling af keramiske sanitetsartikler"]
[null,null,null,null,null,null,null,null,null,null,null,"234300 Fremstilling af keramiske isolatorer og isoleringsdele"]
[null,null,null,null,null,null,null,null,null,null,null,"234400 Fremstilling af andre keramiske produkter til teknisk brug"]
[null,null,null,null,null,null,null,null,null,null,null,"234900 Fremstilling af andre keramiske produkter"]
[null,null,null,null,null,null,null,null,null,null,null,"235100 Fremstilling af cement"]
[null,null,null,null,null,null,null,null,null,null,null,"235200 Fremstilling af kalk og gips"]
[null,null,null,null,null,null,null,null,null,null,null,"236100 Fremstilling af byggematerialer af beton"]
[null,null,null,null,null,null,null,null,null,null,null,"236200 Fremstilling af byggematerialer af gips"]
[null,null,null,null,null,null,null,null,null,null,null,"236300 Fremstilling af færdigblandet beton"]
[null,null,null,null,null,null,null,null,null,null,null,"236400 Fremstilling af mørtel"]
[null,null,null,null,null,null,null,null,null,null,null,"236500 Fremstilling af fibercement"]
[null,null,null,null,null,null,null,null,null,null,null,"236900 Fremstilling af andre beton-, gips- og cementprodukter"]
[null,null,null,null,null,null,null,null,null,null,null,"237000 Tilhugning, tilskæring og færdigbearbejdning af sten"]
[null,null,null,null,null,null,null,null,null,null,null,"239100 Fremstilling af slibemidler"]
[null,null,null,null,null,null,null,null,null,null,null,"239910 Fremstilling af asfalt og tagpap"]
[null,null,null,null,null,null,null,null,null,null,null,"239990 Fremstilling af andre ikke-metalholdige mineralske produkter i.a.n."]
[null,null,null,null,null,null,null,null,null,null,null,"241000 Fremstilling af råjern og råstål samt jernlegeringer"]
[null,null,null,null,null,null,null,null,null,null,null,"242000 Fremstilling af rør og hule profiler og tilhørende fittings af stål"]
[null,null,null,null,null,null,null,null,null,null,null,"243100 Fremstilling af stænger ved koldtrækning"]
[null,null,null,null,null,null,null,null,null,null,null,"243200 Fremstilling af stålbånd ved koldvalsning"]
[null,null,null,null,null,null,null,null,null,null,null,"243300 Koldbehandling"]
[null,null,null,null,null,null,null,null,null,null,null,"243400 Fremstilling af tråd ved koldtrækning"]
[null,null,null,null,null,null,null,null,null,null,null,"244100 Fremstilling af ædelmetaller"]
[null,null,null,null,null,null,null,null,null,null,null,"244200 Fremstilling af aluminium"]
[null,null,null,null,null,null,null,null,null,null,null,"244300 Fremstilling af bly, zink og tin"]
[null,null,null,null,null,null,null,null,null,null,null,"244400 Fremstilling af kobber"]
[null,null,null,null,null,null,null,null,null,null,null,"244500 Anden fremstilling af ikke-jernholdige metaller"]
[null,null,null,null,null,null,null,null,null,null,null,"244600 Oparbejdning af nukleart brændsel"]
[null,null,null,null,null,null,null,null,null,null,null,"245100 Støbning af jernprodukter"]
[null,null,null,null,null,null,null,null,null,null,null,"245200 Støbning af stålprodukter"]
[null,null,null,null,null,null,null,null,null,null,null,"245300 Støbning af letmetalprodukter"]
[null,null,null,null,null,null,null,null,null,null,null,"245400 Støbning af andre ikke-jernholdige metalprodukter"]
[null,null,null,null,null,null,null,null,null,null,null,"251100 Fremstilling af metalkonstruktioner og dele heraf"]
[null,null,null,null,null,null,null,null,null,null,null,"251200 Fremstilling af døre og vinduer af metal"]
[null,null,null,null,null,null,null,null,null,null,null,"252100 Fremstilling af radiatorer og kedler til centralvarmeanlæg"]
[null,null,null,null,null,null,null,null,null,null,null,"252900 Fremstilling af andre tanke og beholdere af metal"]
[null,null,null,null,null,null,null,null,null,null,null,"253000 Fremstilling af dampkedler undtagen centralvarmekedler"]
[null,null,null,null,null,null,null,null,null,null,null,"254000 Fremstilling af våben og ammunition"]
[null,null,null,null,null,null,null,null,null,null,null,"255000 Smedning, presning, sænksmedning og valsning af metal; pulvermetallurgi"]
[null,null,null,null,null,null,null,null,null,null,null,"256100 Overfladebehandling af metal"]
[null,null,null,null,null,null,null,null,null,null,null,"256200 Maskinforarbejdning"]
[null,null,null,null,null,null,null,null,null,null,null,"257100 Fremstilling af bestik, skære- og klipperedskaber"]
[null,null,null,null,null,null,null,null,null,null,null,"257200 Fremstilling af låse og hængsler"]
[null,null,null,null,null,null,null,null,null,null,null,"257300 Fremstilling af håndværktøj"]
[null,null,null,null,null,null,null,null,null,null,null,"259100 Fremstilling af metaltønder og lignende beholdere"]
[null,null,null,null,null,null,null,null,null,null,null,"259200 Fremstilling af letmetalemballage"]
[null,null,null,null,null,null,null,null,null,null,null,"259300 Fremstilling af trådvarer, kæder og fjedre"]
[null,null,null,null,null,null,null,null,null,null,null,"259400 Fremstilling af lukkeanordninger, bolte, skruer og møtrikker"]
[null,null,null,null,null,null,null,null,null,null,null,"259900 Fremstilling af andre færdige metalprodukter i.a.n."]
[null,null,null,null,null,null,null,null,null,null,null,"261100 Fremstilling af elektroniske komponenter og plader"]
[null,null,null,null,null,null,null,null,null,null,null,"261200 Fremstilling af printplader o.l."]
[null,null,null,null,null,null,null,null,null,null,null,"262000 Fremstilling af computere og ydre enheder"]
[null,null,null,null,null,null,null,null,null,null,null,"263000 Fremstilling af kommunikationsudstyr"]
[null,null,null,null,null,null,null,null,null,null,null,"264000 Fremstilling af elektronik til husholdninger"]
[null,null,null,null,null,null,null,null,null,null,null,"265100 Fremstilling af udstyr til måling, afprøvning, navigation og kontrol"]
[null,null,null,null,null,null,null,null,null,null,null,"265200 Fremstilling af ure"]
[null,null,null,null,null,null,null,null,null,null,null,"266010 Fremstilling af høreapparater og dele hertil"]
[null,null,null,null,null,null,null,null,null,null,null,"266090 Fremstilling af bestrålingsudstyr og elektromedicinsk og elektroterapeutisk udstyr"]
[null,null,null,null,null,null,null,null,null,null,null,"267000 Fremstilling af optiske instrumenter og fotografisk udstyr"]
[null,null,null,null,null,null,null,null,null,null,null,"268000 Fremstilling af magnetiske og optiske media"]
[null,null,null,null,null,null,null,null,null,null,null,"271100 Fremstilling af elektriske motorer, generatorer og transformere"]
[null,null,null,null,null,null,null,null,null,null,null,"271200 Fremstilling af elektriske fordelings- og kontrolapparater"]
[null,null,null,null,null,null,null,null,null,null,null,"272000 Fremstilling af batterier og akkumulatorer"]
[null,null,null,null,null,null,null,null,null,null,null,"273100 Fremstilling af lyslederkabler"]
[null,null,null,null,null,null,null,null,null,null,null,"273200 Fremstilling af andre elektroniske og elektriske ledninger og kabler"]
[null,null,null,null,null,null,null,null,null,null,null,"273300 Fremstilling af tilbehør til ledninger og kabler"]
[null,null,null,null,null,null,null,null,null,null,null,"274000 Fremstilling af elektriske belysningsartikler"]
[null,null,null,null,null,null,null,null,null,null,null,"275100 Fremstilling af elektriske husholdningsapparater"]
[null,null,null,null,null,null,null,null,null,null,null,"275200 Fremstilling af ikke-elektriske husholdningsapparater"]
[null,null,null,null,null,null,null,null,null,null,null,"279000 Fremstilling af andet elektrisk udstyr"]
[null,null,null,null,null,null,null,null,null,null,null,"281110 Fremstilling af vindmøller og dele hertil"]
[null,null,null,null,null,null,null,null,null,null,null,"281190 Fremstilling af motorer og turbiner undtagen motorer til vindmøller, flyvemaskiner, motorkøretøjer og knallerter"]
[null,null,null,null,null,null,null,null,null,null,null,"281200 Fremstilling af hydraulisk udstyr"]
[null,null,null,null,null,null,null,null,null,null,null,"281300 Fremstilling af andre pumper og kompressorer"]
[null,null,null,null,null,null,null,null,null,null,null,"281400 Fremstilling af andre haner og ventiler"]
[null,null,null,null,null,null,null,null,null,null,null,"281500 Fremstilling af lejer, tandhjul, tandhjulsudvekslinger og drivelementer"]
[null,null,null,null,null,null,null,null,null,null,null,"282100 Fremstilling af ovne, ildsteder og fyringsaggregater"]
[null,null,null,null,null,null,null,null,null,null,null,"282200 Fremstilling af løfte- og håndteringsudstyr"]
[null,null,null,null,null,null,null,null,null,null,null,"282300 Fremstilling af kontormaskiner og -udstyr (undtagen computere og ydre enheder)"]
[null,null,null,null,null,null,null,null,null,null,null,"282400 Fremstilling af motordrevet håndværktøj"]
[null,null,null,null,null,null,null,null,null,null,null,"282500 Fremstilling af køle- og ventilationsanlæg (til industriel brug)"]
[null,null,null,null,null,null,null,null,null,null,null,"282900 Fremstilling af andre maskiner til generelle formål i.a.n."]
[null,null,null,null,null,null,null,null,null,null,null,"283000 Fremstilling af landbrugs- og skovbrugsmaskiner"]
[null,null,null,null,null,null,null,null,null,null,null,"284100 Fremstilling af metalforarbejdende værktøjsmaskiner"]
[null,null,null,null,null,null,null,null,null,null,null,"284900 Fremstilling af andre værktøjsmaskiner"]
[null,null,null,null,null,null,null,null,null,null,null,"289100 Fremstilling af maskiner til metallurgi"]
[null,null,null,null,null,null,null,null,null,null,null,"289200 Fremstilling af maskiner til råstofindvindingsindustrien samt bygge og anlæg"]
[null,null,null,null,null,null,null,null,null,null,null,"289300 Fremstilling af maskiner til føde-, drikke- og tobaksvareindustrien"]
[null,null,null,null,null,null,null,null,null,null,null,"289400 Fremstilling af maskiner til produktion af tekstiler, beklædningsartikler og læder"]
[null,null,null,null,null,null,null,null,null,null,null,"289500 Fremstilling af maskiner til produktion af papir og pap"]
[null,null,null,null,null,null,null,null,null,null,null,"289600 Fremstilling af maskiner til produktion af plast og gummi"]
[null,null,null,null,null,null,null,null,null,null,null,"289900 Fremstilling af øvrige maskiner til specielle formål i.a.n."]
[null,null,null,null,null,null,null,null,null,null,null,"291000 Fremstilling af motorkøretøjer"]
[null,null,null,null,null,null,null,null,null,null,null,"292000 Fremstilling af karosserier til motorkøretøjer; fremstilling af påhængsvogne og sættevogne"]
[null,null,null,null,null,null,null,null,null,null,null,"293100 Fremstilling af elektrisk og elektronisk udstyr til motorkøretøjer"]
[null,null,null,null,null,null,null,null,null,null,null,"293200 Fremstilling af andre dele og tilbehør til motorkøretøjer"]
[null,null,null,null,null,null,null,null,null,null,null,"301100 Bygning af skibe og flydende materiel"]
[null,null,null,null,null,null,null,null,null,null,null,"301200 Bygning af både til fritid og sport"]
[null,null,null,null,null,null,null,null,null,null,null,"302000 Fremstilling af lokomotiver og andet rullende materiel til jernbaner og sporveje"]
[null,null,null,null,null,null,null,null,null,null,null,"303000 Fremstilling af luft- og rumfartøjer o.l."]
[null,null,null,null,null,null,null,null,null,null,null,"304000 Fremstilling af militære kampkøretøjer"]
[null,null,null,null,null,null,null,null,null,null,null,"309100 Fremstilling af motorcykler"]
[null,null,null,null,null,null,null,null,null,null,null,"309200 Fremstilling af cykler og invalidekøretøjer"]
[null,null,null,null,null,null,null,null,null,null,null,"309900 Fremstilling af andre transportmidler i.a.n."]
[null,null,null,null,null,null,null,null,null,null,null,"310100 Fremstilling af kontor- og butiksmøbler"]
[null,null,null,null,null,null,null,null,null,null,null,"310200 Fremstilling af køkkenmøbler"]
[null,null,null,null,null,null,null,null,null,null,null,"310300 Fremstilling af madrasser"]
[null,null,null,null,null,null,null,null,null,null,null,"310900 Fremstilling af andre møbler"]
[null,null,null,null,null,null,null,null,null,null,null,"321100 Prægning af mønter"]
[null,null,null,null,null,null,null,null,null,null,null,"321200 Fremstilling af smykker i ædle metaller og relaterede produkter"]
[null,null,null,null,null,null,null,null,null,null,null,"321300 Fremstilling af bijouteri og lignende varer"]
[null,null,null,null,null,null,null,null,null,null,null,"322000 Fremstilling af musikinstrumenter"]
[null,null,null,null,null,null,null,null,null,null,null,"323000 Fremstilling af sportsudstyr"]
[null,null,null,null,null,null,null,null,null,null,null,"324000 Fremstilling af spil og legetøj"]
[null,null,null,null,null,null,null,null,null,null,null,"325000 Fremstilling af medicinske og dentale instrumenter samt udstyr hertil"]
[null,null,null,null,null,null,null,null,null,null,null,"329100 Fremstilling af koste og børster"]
[null,null,null,null,null,null,null,null,null,null,null,"329900 Anden fremstillingsvirksomhed i.a.n."]
[null,null,null,null,null,null,null,null,null,null,null,"331100 Reparation af jern- og metalvarer"]
[null,null,null,null,null,null,null,null,null,null,null,"331200 Reparation af maskiner"]
[null,null,null,null,null,null,null,null,null,null,null,"331300 Reparation af elektronisk og optisk udstyr"]
[null,null,null,null,null,null,null,null,null,null,null,"331400 Reparation af elektrisk udstyr"]
[null,null,null,null,null,null,null,null,null,null,null,"331500 Reparation og vedligeholdelse af skibe og både"]
[null,null,null,null,null,null,null,null,null,null,null,"331600 Reparation og vedligeholdelse af luft- og rumfartøjer"]
[null,null,null,null,null,null,null,null,null,null,null,"331700 Reparation og vedligeholdelse af andre transportmidler"]
[null,null,null,null,null,null,null,null,null,null,null,"331900 Reparation af andet udstyr"]
[null,null,null,null,null,null,null,null,null,null,null,"332000 Installation af industrimaskiner og -udstyr"]
[null,null,null,null,null,null,null,null,null,null,null,"351100 Produktion af elektricitet"]
[null,null,null,null,null,null,null,null,null,null,null,"351200 Transmission af elektricitet"]
[null,null,null,null,null,null,null,null,null,null,null,"351300 Distribution af elektricitet"]
[null,null,null,null,null,null,null,null,null,null,null,"351400 Handel med elektricitet"]
[null,null,null,null,null,null,null,null,null,null,null,"352100 Fremstilling af gas"]
[null,null,null,null,null,null,null,null,null,null,null,"352200 Distribution af gas"]
[null,null,null,null,null,null,null,null,null,null,null,"352300 Handel med gas gennem rørledninger"]
[null,null,null,null,null,null,null,null,null,null,null,"353000 Varmeforsyning"]
[null,null,null,null,null,null,null,null,null,null,null,"360000 Vandforsyning"]
[null,null,null,null,null,null,null,null,null,null,null,"370000 Opsamling og behandling af spildevand"]
[null,null,null,null,null,null,null,null,null,null,null,"381100 Indsamling af ikke-farligt affald"]
[null,null,null,null,null,null,null,null,null,null,null,"381200 Indsamling af farligt affald"]
[null,null,null,null,null,null,null,null,null,null,null,"382110 Behandling og bortskaffelse af ikke-farligt affald"]
[null,null,null,null,null,null,null,null,null,null,null,"382120 Bortskaffelse af affald med energiproduktion"]
[null,null,null,null,null,null,null,null,null,null,null,"382200 Behandling og bortskaffelse af farligt affald"]
[null,null,null,null,null,null,null,null,null,null,null,"383100 Demontering af udtjente køretøjer, skibe, maskiner mv."]
[null,null,null,null,null,null,null,null,null,null,null,"383200 Genbrug af sorterede materialer"]
[null,null,null,null,null,null,null,null,null,null,null,"390000 Rensning af jord og grundvand og anden form for forureningsbekæmpelse"]
[null,null,null,null,null,null,null,null,null,null,null,"411000 Gennemførelse af byggeprojekter"]
[null,null,null,null,null,null,null,null,null,null,null,"412000 Opførelse af bygninger"]
[null,null,null,null,null,null,null,null,null,null,null,"421100 Anlæg af veje og motorveje"]
[null,null,null,null,null,null,null,null,null,null,null,"421200 Anlæg af jernbaner og undergrundsbaner"]
[null,null,null,null,null,null,null,null,null,null,null,"421300 Anlæg af broer og tunneller"]
[null,null,null,null,null,null,null,null,null,null,null,"422100 Anlæg af ledningsnet til væsker"]
[null,null,null,null,null,null,null,null,null,null,null,"422200 Anlæg af ledningsnet til elektricitet og kommunikation"]
[null,null,null,null,null,null,null,null,null,null,null,"429100 Anlæg af vandveje, havne, diger og dæmninger"]
[null,null,null,null,null,null,null,null,null,null,null,"429900 Anden anlægsvirksomhed i.a.n."]
[null,null,null,null,null,null,null,null,null,null,null,"431100 Nedrivning"]
[null,null,null,null,null,null,null,null,null,null,null,"431200 Forberedende byggepladsarbejder"]
[null,null,null,null,null,null,null,null,null,null,null,"431300 Funderingsundersøgelser"]
[null,null,null,null,null,null,null,null,null,null,null,"432100 El-installation"]
[null,null,null,null,null,null,null,null,null,null,null,"432200 VVS- og blikkenslagerforretninger"]
[null,null,null,null,null,null,null,null,null,null,null,"432900 Anden bygningsinstallationsvirksomhed"]
[null,null,null,null,null,null,null,null,null,null,null,"433100 Stukkatørvirksomhed"]
[null,null,null,null,null,null,null,null,null,null,null,"433200 Tømrer- og bygningssnedkervirksomhed"]
[null,null,null,null,null,null,null,null,null,null,null,"433300 Udførelse af gulvbelægninger og vægbeklædning"]
[null,null,null,null,null,null,null,null,null,null,null,"433410 Malerforretninger"]
[null,null,null,null,null,null,null,null,null,null,null,"433420 Glarmestervirksomhed"]
[null,null,null,null,null,null,null,null,null,null,null,"433900 Anden bygningsfærdiggørelse"]
[null,null,null,null,null,null,null,null,null,null,null,"439100 Tagdækningsvirksomhed"]
[null,null,null,null,null,null,null,null,null,null,null,"439910 Murere"]
[null,null,null,null,null,null,null,null,null,null,null,"439990 Anden bygge- og anlægsvirksomhed, som kræver specialisering"]
[null,null,null,null,null,null,null,null,null,null,null,"451110 Engroshandel med personbiler, varebiler og minibusser"]
[null,null,null,null,null,null,null,null,null,null,null,"451120 Detailhandel med personbiler, varebiler og minibusser"]
[null,null,null,null,null,null,null,null,null,null,null,"451910 Engros- og detailhandel med campingkøretøjer, små trailere mv."]
[null,null,null,null,null,null,null,null,null,null,null,"451920 Engros- og detailhandel med lastbiler og påhængsvogne mv."]
[null,null,null,null,null,null,null,null,null,null,null,"452010 Autoreparationsværksteder mv."]
[null,null,null,null,null,null,null,null,null,null,null,"452020 Karosseriværksteder og autolakererier"]
[null,null,null,null,null,null,null,null,null,null,null,"452030 Undervognsbehandling"]
[null,null,null,null,null,null,null,null,null,null,null,"452040 Dækservice"]
[null,null,null,null,null,null,null,null,null,null,null,"453100 Engroshandel med reservedele og tilbehør til motorkøretøjer"]
[null,null,null,null,null,null,null,null,null,null,null,"453200 Detailhandel med reservedele og tilbehør til motorkøretøjer"]
[null,null,null,null,null,null,null,null,null,null,null,"454000 Salg, vedligeholdelse og reparation af motorcykler og reservedele og tilbehør hertil"]
[null,null,null,null,null,null,null,null,null,null,null,"461100 Agenturhandel med landbrugsråvarer, levende dyr, tekstilmaterialer og halvfabrikata"]
[null,null,null,null,null,null,null,null,null,null,null,"461200 Agenturhandel med brændstoffer, malme, metaller og kemiske produkter til industrien"]
[null,null,null,null,null,null,null,null,null,null,null,"461300 Agenturhandel med tømmer og andre byggematerialer"]
[null,null,null,null,null,null,null,null,null,null,null,"461400 Agenturhandel med maskiner, teknisk udstyr, skibe og flyvemaskiner"]
[null,null,null,null,null,null,null,null,null,null,null,"461500 Agenturhandel med møbler, husholdningsartikler og isenkram"]
[null,null,null,null,null,null,null,null,null,null,null,"461600 Agenturhandel med tekstiler, beklædning, pelsværk, fodtøj og lædervarer"]
[null,null,null,null,null,null,null,null,null,null,null,"461710 Fiskeauktioner"]
[null,null,null,null,null,null,null,null,null,null,null,"461790 Anden agenturhandel med føde-, drikke- og tobaksvarer"]
[null,null,null,null,null,null,null,null,null,null,null,"461800 Agenturhandel med specialiseret varesortiment i.a.n."]
[null,null,null,null,null,null,null,null,null,null,null,"461900 Agenturhandel med blandet sortiment"]
[null,null,null,null,null,null,null,null,null,null,null,"462100 Engroshandel med korn, uforarbejdet tobak, såsæd og foderstoffer"]
[null,null,null,null,null,null,null,null,null,null,null,"462200 Engroshandel med blomster og planter"]
[null,null,null,null,null,null,null,null,null,null,null,"462300 Engroshandel med levende dyr"]
[null,null,null,null,null,null,null,null,null,null,null,"462400 Engroshandel med huder, skind og læder"]
[null,null,null,null,null,null,null,null,null,null,null,"463100 Engroshandel med frugt og grøntsager"]
[null,null,null,null,null,null,null,null,null,null,null,"463200 Engroshandel med kød og kødprodukter"]
[null,null,null,null,null,null,null,null,null,null,null,"463300 Engroshandel med mejeriprodukter, æg samt spiselige olier og fedtstoffer"]
[null,null,null,null,null,null,null,null,null,null,null,"463410 Engroshandel med øl, mineralvand, frugt- og grøntsagssaft"]
[null,null,null,null,null,null,null,null,null,null,null,"463420 Engroshandel med vin og spiritus"]
[null,null,null,null,null,null,null,null,null,null,null,"463500 Engroshandel med tobaksvarer"]
[null,null,null,null,null,null,null,null,null,null,null,"463600 Engroshandel med sukker, chokolade og sukkervarer"]
[null,null,null,null,null,null,null,null,null,null,null,"463700 Engroshandel med kaffe, te, kakao og krydderier"]
[null,null,null,null,null,null,null,null,null,null,null,"463810 Engroshandel med fisk og fiskeprodukter"]
[null,null,null,null,null,null,null,null,null,null,null,"463890 Specialiseret engroshandel med fødevarer i.a.n."]
[null,null,null,null,null,null,null,null,null,null,null,"463900 Ikke-specialiseret engroshandel med føde-, drikke- og tobaksvarer"]
[null,null,null,null,null,null,null,null,null,null,null,"464100 Engroshandel med tekstiler"]
[null,null,null,null,null,null,null,null,null,null,null,"464210 Engroshandel med beklædning"]
[null,null,null,null,null,null,null,null,null,null,null,"464220 Engroshandel med fodtøj"]
[null,null,null,null,null,null,null,null,null,null,null,"464310 Engroshandel med hårde hvidevarer"]
[null,null,null,null,null,null,null,null,null,null,null,"464320 Engroshandel med radio og tv mv."]
[null,null,null,null,null,null,null,null,null,null,null,"464330 Engroshandel med indspillede videoer, cd'er, dvd'er mv."]
[null,null,null,null,null,null,null,null,null,null,null,"464340 Engroshandel med fotografiske og optiske artikler"]
[null,null,null,null,null,null,null,null,null,null,null,"464350 Engroshandel med elektriske husholdningsartikler"]
[null,null,null,null,null,null,null,null,null,null,null,"464410 Engroshandel med porcelæns- og glasvarer"]
[null,null,null,null,null,null,null,null,null,null,null,"464420 Engroshandel med rengøringsmidler"]
[null,null,null,null,null,null,null,null,null,null,null,"464500 Engroshandel med parfumerivarer og kosmetik"]
[null,null,null,null,null,null,null,null,null,null,null,"464610 Engroshandel med medicinalvarer og sygeplejeartikler"]
[null,null,null,null,null,null,null,null,null,null,null,"464620 Engroshandel med læge- og hospitalsartikler"]
[null,null,null,null,null,null,null,null,null,null,null,"464700 Engroshandel med møbler, tæpper og belysningsartikler"]
[null,null,null,null,null,null,null,null,null,null,null,"464800 Engroshandel med ure, smykker og guld- og sølvvarer"]
[null,null,null,null,null,null,null,null,null,null,null,"464910 Engroshandel med cykler, sportsartikler og lystbåde"]
[null,null,null,null,null,null,null,null,null,null,null,"464920 Engroshandel med bøger, papir og papirvarer"]
[null,null,null,null,null,null,null,null,null,null,null,"464930 Engroshandel med kufferter og lædervarer"]
[null,null,null,null,null,null,null,null,null,null,null,"464990 Engroshandel med andre husholdningsartikler"]
[null,null,null,null,null,null,null,null,null,null,null,"465100 Engroshandel med computere, ydre enheder og software"]
[null,null,null,null,null,null,null,null,null,null,null,"465210 Engroshandel med elektronisk udstyr"]
[null,null,null,null,null,null,null,null,null,null,null,"465220 Engroshandel med telekommunikationsudstyr"]
[null,null,null,null,null,null,null,null,null,null,null,"466100 Engroshandel med landbrugsmaskiner, -udstyr og tilbehør hertil"]
[null,null,null,null,null,null,null,null,null,null,null,"466200 Engroshandel med værktøjsmaskiner"]
[null,null,null,null,null,null,null,null,null,null,null,"466300 Engroshandel med maskiner til minedrift og bygge- og anlægsvirksomhed"]
[null,null,null,null,null,null,null,null,null,null,null,"466400 Engroshandel med maskiner, udstyr og tilbehør til tekstilindustrien"]
[null,null,null,null,null,null,null,null,null,null,null,"466500 Engroshandel med kontormøbler"]
[null,null,null,null,null,null,null,null,null,null,null,"466600 Engroshandel med andre kontormaskiner og andet kontorudstyr"]
[null,null,null,null,null,null,null,null,null,null,null,"466900 Engroshandel med andre maskiner og andet udstyr"]
[null,null,null,null,null,null,null,null,null,null,null,"467100 Engroshandel med fast, flydende og luftformigt brændstof og lignende varer"]
[null,null,null,null,null,null,null,null,null,null,null,"467200 Engroshandel med metaller og metalmalme"]
[null,null,null,null,null,null,null,null,null,null,null,"467310 Engroshandel med træ, trælast og byggematerialer"]
[null,null,null,null,null,null,null,null,null,null,null,"467320 Engroshandel med lak, maling, tapet, gulvbelægning mv."]
[null,null,null,null,null,null,null,null,null,null,null,"467400 Engroshandel med isenkram, varmeanlæg og tilbehør"]
[null,null,null,null,null,null,null,null,null,null,null,"467500 Engroshandel med kemiske produkter"]
[null,null,null,null,null,null,null,null,null,null,null,"467600 Engroshandel med andre råvarer og halvfabrikata"]
[null,null,null,null,null,null,null,null,null,null,null,"467700 Engroshandel med affaldsprodukter"]
[null,null,null,null,null,null,null,null,null,null,null,"469000 Ikke-specialiseret engroshandel"]
[null,null,null,null,null,null,null,null,null,null,null,"471110 Købmænd og døgnkiosker"]
[null,null,null,null,null,null,null,null,null,null,null,"471120 Supermarkeder"]
[null,null,null,null,null,null,null,null,null,null,null,"471130 Discountforretninger"]
[null,null,null,null,null,null,null,null,null,null,null,"471900 Anden detailhandel fra ikke-specialiserede forretninger"]
[null,null,null,null,null,null,null,null,null,null,null,"472100 Frugt- og grøntforretninger"]
[null,null,null,null,null,null,null,null,null,null,null,"472200 Slagter- og viktualieforretninger"]
[null,null,null,null,null,null,null,null,null,null,null,"472300 Fiskeforretninger"]
[null,null,null,null,null,null,null,null,null,null,null,"472400 Detailhandel med brød, konditori- og sukkervarer"]
[null,null,null,null,null,null,null,null,null,null,null,"472500 Detailhandel med drikkevarer"]
[null,null,null,null,null,null,null,null,null,null,null,"472600 Tobaksforretninger"]
[null,null,null,null,null,null,null,null,null,null,null,"472900 Anden detailhandel med fødevarer i specialforretninger"]
[null,null,null,null,null,null,null,null,null,null,null,"473000 Servicestationer"]
[null,null,null,null,null,null,null,null,null,null,null,"474100 Detailhandel med computere, ydre enheder og software"]
[null,null,null,null,null,null,null,null,null,null,null,"474200 Detailhandel med telekommunikationsudstyr"]
[null,null,null,null,null,null,null,null,null,null,null,"474300 Radio- og tv-forretninger"]
[null,null,null,null,null,null,null,null,null,null,null,"475100 Detailhandel med kjolestoffer, garn, broderier mv."]
[null,null,null,null,null,null,null,null,null,null,null,"475210 Farve- og tapetforretninger"]
[null,null,null,null,null,null,null,null,null,null,null,"475220 Byggemarkeder og værktøjsmagasiner"]
[null,null,null,null,null,null,null,null,null,null,null,"475300 Detailhandel med tæpper, vægbeklædning og gulvbelægning"]
[null,null,null,null,null,null,null,null,null,null,null,"475400 Detailhandel med elektriske husholdningsapparater"]
[null,null,null,null,null,null,null,null,null,null,null,"475910 Møbelforretninger"]
[null,null,null,null,null,null,null,null,null,null,null,"475920 Boligtekstilforretninger"]
[null,null,null,null,null,null,null,null,null,null,null,"475930 Detailhandel med køkkenudstyr, glas, porcelæn, bestik, vaser, lysestager mv."]
[null,null,null,null,null,null,null,null,null,null,null,"475940 Forhandlere af musikinstrumenter"]
[null,null,null,null,null,null,null,null,null,null,null,"475990 Detailhandel med møbler og belysningsartikler samt husholdningsartikler i.a.n."]
[null,null,null,null,null,null,null,null,null,null,null,"476100 Detailhandel med bøger"]
[null,null,null,null,null,null,null,null,null,null,null,"476200 Detailhandel med aviser og papirvarer"]
[null,null,null,null,null,null,null,null,null,null,null,"476300 Detailhandel med musik- og videooptagelser"]
[null,null,null,null,null,null,null,null,null,null,null,"476410 Forhandlere af sports- og campingudstyr"]
[null,null,null,null,null,null,null,null,null,null,null,"476420 Cykel- og knallertforretninger"]
[null,null,null,null,null,null,null,null,null,null,null,"476430 Forhandlere af lystbåde og udstyr hertil"]
[null,null,null,null,null,null,null,null,null,null,null,"476500 Detailhandel med spil og legetøj"]
[null,null,null,null,null,null,null,null,null,null,null,"477110 Tøjforretninger"]
[null,null,null,null,null,null,null,null,null,null,null,"477120 Babyudstyrs- og børnetøjsforretninger"]
[null,null,null,null,null,null,null,null,null,null,null,"477210 Skotøjsforretninger"]
[null,null,null,null,null,null,null,null,null,null,null,"477220 Lædervareforretninger"]
[null,null,null,null,null,null,null,null,null,null,null,"477300 Apoteker"]
[null,null,null,null,null,null,null,null,null,null,null,"477400 Detailhandel med medicinske og ortopædiske artikler"]
[null,null,null,null,null,null,null,null,null,null,null,"477500 Detailhandel med kosmetikvarer og produkter til personlig pleje"]
[null,null,null,null,null,null,null,null,null,null,null,"477610 Blomsterforretninger"]
[null,null,null,null,null,null,null,null,null,null,null,"477620 Planteforhandlere og havecentre"]
[null,null,null,null,null,null,null,null,null,null,null,"477630 Dyrehandel"]
[null,null,null,null,null,null,null,null,null,null,null,"477700 Detailhandel med ure, smykker og guld- og sølvvarer"]
[null,null,null,null,null,null,null,null,null,null,null,"477810 Optikere"]
[null,null,null,null,null,null,null,null,null,null,null,"477820 Fotoforretninger"]
[null,null,null,null,null,null,null,null,null,null,null,"477830 Forhandlere af gaveartikler og brugskunst"]
[null,null,null,null,null,null,null,null,null,null,null,"477840 Kunsthandel og gallerivirksomhed"]
[null,null,null,null,null,null,null,null,null,null,null,"477890 Detailhandel med andre varer i.a.n."]
[null,null,null,null,null,null,null,null,null,null,null,"477900 Detailhandel med brugte varer i forretninger"]
[null,null,null,null,null,null,null,null,null,null,null,"478100 Detailhandel med føde-, drikke- og tobaksvarer fra stadepladser og markeder"]
[null,null,null,null,null,null,null,null,null,null,null,"478200 Detailhandel med tekstiler, beklædningsartikler og fodtøj fra stadepladser og markeder"]
[null,null,null,null,null,null,null,null,null,null,null,"478900 Detailhandel med andre varer fra stadepladser og markeder"]
[null,null,null,null,null,null,null,null,null,null,null,"479111 Detailhandel med dagligvarer via internet"]
[null,null,null,null,null,null,null,null,null,null,null,"479112 Detailhandel med elektroniske eller elektriske apparater samt fotoudstyr via internet"]
[null,null,null,null,null,null,null,null,null,null,null,"479113 Detailhandel med husholdnings- eller boligudstyr, bortset fra elektriske apparater, via internet"]
[null,null,null,null,null,null,null,null,null,null,null,"479114 Detailhandel med bøger, kontorartikler, musik eller film via internet"]
[null,null,null,null,null,null,null,null,null,null,null,"479115 Detailhandel med hobbyartikler, musikinstrumenter, sportsudstyr, legetøj, cykler via internet"]
[null,null,null,null,null,null,null,null,null,null,null,"479116 Detailhandel med tøj, sko, lædervarer, ure eller babyudstyr  via internet"]
[null,null,null,null,null,null,null,null,null,null,null,"479117 Detailhandel med medicin og produkter til personlig pleje via internet"]
[null,null,null,null,null,null,null,null,null,null,null,"479119 Detailhandel med andre varer i.a.n. via internet"]
[null,null,null,null,null,null,null,null,null,null,null,"479120 Detailhandel via internettet med digitale produkter"]
[null,null,null,null,null,null,null,null,null,null,null,"479900 Anden detailhandel undtagen fra forretninger, stadepladser og markeder"]
[null,null,null,null,null,null,null,null,null,null,null,"491000 Passagertransport med regional- eller fjerntog"]
[null,null,null,null,null,null,null,null,null,null,null,"492000 Godstransport med tog"]
[null,null,null,null,null,null,null,null,null,null,null,"493110 Rutebuskørsel, by- og nærtrafik"]
[null,null,null,null,null,null,null,null,null,null,null,"493120 S-togstrafik, metro og andre nærbaner"]
[null,null,null,null,null,null,null,null,null,null,null,"493200 Taxikørsel"]
[null,null,null,null,null,null,null,null,null,null,null,"493910 Rutebuskørsel, fjerntrafik og skolebusser"]
[null,null,null,null,null,null,null,null,null,null,null,"493920 Turistkørsel og anden landpassagertransport"]
[null,null,null,null,null,null,null,null,null,null,null,"494100 Vejgodstransport"]
[null,null,null,null,null,null,null,null,null,null,null,"494200 Flytteforretninger"]
[null,null,null,null,null,null,null,null,null,null,null,"495000 Rørtransport"]
[null,null,null,null,null,null,null,null,null,null,null,"501000 Sø- og kysttransport af passagerer"]
[null,null,null,null,null,null,null,null,null,null,null,"502000 Sø- og kysttransport af gods"]
[null,null,null,null,null,null,null,null,null,null,null,"503000 Transport af passagerer ad indre vandveje"]
[null,null,null,null,null,null,null,null,null,null,null,"504000 Transport af gods ad indre vandveje"]
[null,null,null,null,null,null,null,null,null,null,null,"511010 Ruteflyvning"]
[null,null,null,null,null,null,null,null,null,null,null,"511020 Charter- og taxiflyvning"]
[null,null,null,null,null,null,null,null,null,null,null,"512100 Lufttransport af gods"]
[null,null,null,null,null,null,null,null,null,null,null,"512200 Rumfart"]
[null,null,null,null,null,null,null,null,null,null,null,"521000 Oplagrings- og pakhusvirksomhed"]
[null,null,null,null,null,null,null,null,null,null,null,"522110 Stationer, godsterminaler mv."]
[null,null,null,null,null,null,null,null,null,null,null,"522120 Parkering og vejhjælp mv."]
[null,null,null,null,null,null,null,null,null,null,null,"522130 Drift af betalingsveje, -broer og -tunneler"]
[null,null,null,null,null,null,null,null,null,null,null,"522210 Erhvervshavne"]
[null,null,null,null,null,null,null,null,null,null,null,"522220 Bugserings-, bjærgnings- og redningsvæsen mv."]
[null,null,null,null,null,null,null,null,null,null,null,"522300 Serviceydelser i forbindelse med luftfart"]
[null,null,null,null,null,null,null,null,null,null,null,"522400 Godshåndtering"]
[null,null,null,null,null,null,null,null,null,null,null,"522910 Skibsmæglere"]
[null,null,null,null,null,null,null,null,null,null,null,"522920 Speditører"]
[null,null,null,null,null,null,null,null,null,null,null,"522990 Andre tjenesteydelser i forbindelse med transport"]
[null,null,null,null,null,null,null,null,null,null,null,"531000 Posttjenester omfattet af forsyningspligten"]
[null,null,null,null,null,null,null,null,null,null,null,"532000 Andre post- og kurertjenester"]
[null,null,null,null,null,null,null,null,null,null,null,"551010 Hoteller"]
[null,null,null,null,null,null,null,null,null,null,null,"551020 Konferencecentre og kursusejendomme"]
[null,null,null,null,null,null,null,null,null,null,null,"552000 Ferieboliger og andre indlogeringsfaciliteter til kortvarige ophold"]
[null,null,null,null,null,null,null,null,null,null,null,"553000 Campingpladser"]
[null,null,null,null,null,null,null,null,null,null,null,"559000 Andre overnatningsfaciliteter"]
[null,null,null,null,null,null,null,null,null,null,null,"561010 Restauranter"]
[null,null,null,null,null,null,null,null,null,null,null,"561020 Pizzeriaer, grillbarer, isbarer mv."]
[null,null,null,null,null,null,null,null,null,null,null,"562100 Event catering"]
[null,null,null,null,null,null,null,null,null,null,null,"562900 Anden restaurationsvirksomhed"]
[null,null,null,null,null,null,null,null,null,null,null,"563000 Caféer, værtshuse, diskoteker mv."]
[null,null,null,null,null,null,null,null,null,null,null,"581100 Udgivelse af bøger"]
[null,null,null,null,null,null,null,null,null,null,null,"581200 Udgivelse af telefonbøger og adresselister"]
[null,null,null,null,null,null,null,null,null,null,null,"581300 Udgivelse af aviser og dagblade"]
[null,null,null,null,null,null,null,null,null,null,null,"581410 Udgivelse af ugeblade og magasiner"]
[null,null,null,null,null,null,null,null,null,null,null,"581420 Udgivelse af distrikts- og annonceblade"]
[null,null,null,null,null,null,null,null,null,null,null,"581900 Anden udgivervirksomhed"]
[null,null,null,null,null,null,null,null,null,null,null,"582100 Udgivelse af computerspil"]
[null,null,null,null,null,null,null,null,null,null,null,"582900 Anden udgivelse af software"]
[null,null,null,null,null,null,null,null,null,null,null,"591110 Produktion af film og videofilm"]
[null,null,null,null,null,null,null,null,null,null,null,"591120 Produktion af tv-programmer"]
[null,null,null,null,null,null,null,null,null,null,null,"591200 Aktiviteter, der udøves efter produktion af film, video- og tv-programmer"]
[null,null,null,null,null,null,null,null,null,null,null,"591300 Distribution af film, video- og tv-programmer"]
[null,null,null,null,null,null,null,null,null,null,null,"591400 Biografer"]
[null,null,null,null,null,null,null,null,null,null,null,"592000 Indspilning af lydoptagelser og udgivelse af musik"]
[null,null,null,null,null,null,null,null,null,null,null,"601000 Radiovirksomhed"]
[null,null,null,null,null,null,null,null,null,null,null,"602000 Tv-virksomhed"]
[null,null,null,null,null,null,null,null,null,null,null,"611000 Fastnetbaseret telekommunikation"]
[null,null,null,null,null,null,null,null,null,null,null,"612000 Trådløs telekommunikation"]
[null,null,null,null,null,null,null,null,null,null,null,"613000 Satellitbaseret telekommunikation"]
[null,null,null,null,null,null,null,null,null,null,null,"619000 Anden telekommunikation"]
[null,null,null,null,null,null,null,null,null,null,null,"620100 Computerprogrammering"]
[null,null,null,null,null,null,null,null,null,null,null,"620200 Konsulentbistand vedrørende informationsteknologi"]
[null,null,null,null,null,null,null,null,null,null,null,"620300 Computer facility management"]
[null,null,null,null,null,null,null,null,null,null,null,"620900 Anden it-servicevirksomhed"]
[null,null,null,null,null,null,null,null,null,null,null,"631100 Databehandling, webhosting og lignende serviceydelser"]
[null,null,null,null,null,null,null,null,null,null,null,"631200 Webportaler"]
[null,null,null,null,null,null,null,null,null,null,null,"639100 Pressebureauer"]
[null,null,null,null,null,null,null,null,null,null,null,"639900 Andre informationstjenester i.a.n."]
[null,null,null,null,null,null,null,null,null,null,null,"641100 Centralbanker"]
[null,null,null,null,null,null,null,null,null,null,null,"641900 Banker, sparekasser og andelskasser"]
[null,null,null,null,null,null,null,null,null,null,null,"642010 Finansielle holdingselskaber"]
[null,null,null,null,null,null,null,null,null,null,null,"642020 Ikke-finansielle holdingselskaber"]
[null,null,null,null,null,null,null,null,null,null,null,"642030 Gennemløbsholdingselskaber"]
[null,null,null,null,null,null,null,null,null,null,null,"643010 Investeringsforeninger"]
[null,null,null,null,null,null,null,null,null,null,null,"643020 Pengemarkedsforeninger"]
[null,null,null,null,null,null,null,null,null,null,null,"643030 Investeringsselskaber"]
[null,null,null,null,null,null,null,null,null,null,null,"643040 Ventureselskaber og kapitalfonde"]
[null,null,null,null,null,null,null,null,null,null,null,"649100 Finansiel leasing"]
[null,null,null,null,null,null,null,null,null,null,null,"649210 Realkreditinstitutter"]
[null,null,null,null,null,null,null,null,null,null,null,"649220 Andre kreditinstitutter"]
[null,null,null,null,null,null,null,null,null,null,null,"649230 Andre kreditselskaber"]
[null,null,null,null,null,null,null,null,null,null,null,"649240 FVC-selskaber"]
[null,null,null,null,null,null,null,null,null,null,null,"649900 Anden finansiel formidling undtagen forsikring og pensionsforsikring, i.a.n."]
[null,null,null,null,null,null,null,null,null,null,null,"651100 Livsforsikring"]
[null,null,null,null,null,null,null,null,null,null,null,"651200 Anden forsikring"]
[null,null,null,null,null,null,null,null,null,null,null,"652000 Genforsikring"]
[null,null,null,null,null,null,null,null,null,null,null,"653010 Pensionskasser"]
[null,null,null,null,null,null,null,null,null,null,null,"653020 Anden pensionsforsikring"]
[null,null,null,null,null,null,null,null,null,null,null,"661100 Forvaltning af kapitalmarkeder"]
[null,null,null,null,null,null,null,null,null,null,null,"661200 Værdipapir- og varemægling"]
[null,null,null,null,null,null,null,null,null,null,null,"661900 Andre hjælpetjenester i forbindelse med finansiel formidling"]
[null,null,null,null,null,null,null,null,null,null,null,"662100 Risiko- og skadesvurdering"]
[null,null,null,null,null,null,null,null,null,null,null,"662200 Forsikringsagenters og forsikringsmægleres virksomhed"]
[null,null,null,null,null,null,null,null,null,null,null,"662900 Andre hjælpetjenester i forbindelse med forsikring og pensionsforsikring"]
[null,null,null,null,null,null,null,null,null,null,null,"663000 Formueforvaltning"]
[null,null,null,null,null,null,null,null,null,null,null,"681000 Køb og salg af egen fast ejendom"]
[null,null,null,null,null,null,null,null,null,null,null,"682010 Almennyttige boligselskaber"]
[null,null,null,null,null,null,null,null,null,null,null,"682020 Private andelsboligforeninger"]
[null,null,null,null,null,null,null,null,null,null,null,"682030 Anden udlejning af boliger"]
[null,null,null,null,null,null,null,null,null,null,null,"682040 Udlejning af erhvervsejendomme"]
[null,null,null,null,null,null,null,null,null,null,null,"683110 Ejendomsmæglere"]
[null,null,null,null,null,null,null,null,null,null,null,"683120 Boliganvisning, ferieboligudlejning mv."]
[null,null,null,null,null,null,null,null,null,null,null,"683210 Administration af fast ejendom på kontraktbasis"]
[null,null,null,null,null,null,null,null,null,null,null,"683220 Ejerforeninger"]
[null,null,null,null,null,null,null,null,null,null,null,"691000 Juridisk bistand"]
[null,null,null,null,null,null,null,null,null,null,null,"692000 Bogføring og revision; skatterådgivning"]
[null,null,null,null,null,null,null,null,null,null,null,"701010 Ikke-finansielle hovedsæders virksomhed"]
[null,null,null,null,null,null,null,null,null,null,null,"701020 Finansielle hovedsæders virksomhed"]
[null,null,null,null,null,null,null,null,null,null,null,"702100 Public relations og kommunikation"]
[null,null,null,null,null,null,null,null,null,null,null,"702200 Virksomhedsrådgivning og anden rådgivning om driftsledelse"]
[null,null,null,null,null,null,null,null,null,null,null,"711100 Arkitektvirksomhed"]
[null,null,null,null,null,null,null,null,null,null,null,"711210 Rådgivende ingeniørvirksomhed inden for byggeri og anlægsarbejder"]
[null,null,null,null,null,null,null,null,null,null,null,"711220 Rådgivende ingeniørvirksomhed inden for produktions- og maskinteknik"]
[null,null,null,null,null,null,null,null,null,null,null,"711230 Opstilling og levering af færdige fabriksanlæg"]
[null,null,null,null,null,null,null,null,null,null,null,"711240 Geologiske undersøgelser og prospektering, landinspektører mv."]
[null,null,null,null,null,null,null,null,null,null,null,"711290 Anden teknisk rådgivning"]
[null,null,null,null,null,null,null,null,null,null,null,"712010 Kontrol af levnedsmidler"]
[null,null,null,null,null,null,null,null,null,null,null,"712020 Teknisk afprøvning og kontrol"]
[null,null,null,null,null,null,null,null,null,null,null,"712090 Anden måling og teknisk analyse"]
[null,null,null,null,null,null,null,null,null,null,null,"721100 Forskning og eksperimentel udvikling indenfor bioteknologi"]
[null,null,null,null,null,null,null,null,null,null,null,"721900 Anden forskning og eksperimentel udvikling inden for naturvidenskab og teknik"]
[null,null,null,null,null,null,null,null,null,null,null,"722000 Forskning og eksperimentel udvikling inden for samfundsvidenskab og humanistiske videnskaber"]
[null,null,null,null,null,null,null,null,null,null,null,"731110 Reklamebureauer"]
[null,null,null,null,null,null,null,null,null,null,null,"731190 Anden reklamevirksomhed"]
[null,null,null,null,null,null,null,null,null,null,null,"731200 Reklameplads i medier"]
[null,null,null,null,null,null,null,null,null,null,null,"732000 Markedsanalyse og offentlig meningsmåling"]
[null,null,null,null,null,null,null,null,null,null,null,"741010 Industriel design og produktdesign"]
[null,null,null,null,null,null,null,null,null,null,null,"741020 Kommunikationsdesign og grafisk design"]
[null,null,null,null,null,null,null,null,null,null,null,"741030 Indretningsarkitekter og rumdesign"]
[null,null,null,null,null,null,null,null,null,null,null,"742000 Fotografisk virksomhed"]
[null,null,null,null,null,null,null,null,null,null,null,"743000 Oversættelse og tolkning"]
[null,null,null,null,null,null,null,null,null,null,null,"749010 Landbrugskonsulenter"]
[null,null,null,null,null,null,null,null,null,null,null,"749090 Andre liberale, videnskabelige og tekniske tjenesteydelser i.a.n."]
[null,null,null,null,null,null,null,null,null,null,null,"750000 Dyrlæger"]
[null,null,null,null,null,null,null,null,null,null,null,"771100 Udlejning og leasing af biler og lette motorkøretøjer"]
[null,null,null,null,null,null,null,null,null,null,null,"771200 Udlejning og leasing af lastbiler"]
[null,null,null,null,null,null,null,null,null,null,null,"772100 Udlejning og leasing af varer til fritid og sport"]
[null,null,null,null,null,null,null,null,null,null,null,"772200 Udlejning af videobånd og videodisks"]
[null,null,null,null,null,null,null,null,null,null,null,"772900 Udlejning og leasing af andre varer til personlig brug og husholdningsbrug i.a.n."]
[null,null,null,null,null,null,null,null,null,null,null,"773100 Udlejning og leasing af landbrugsmaskiner og -udstyr"]
[null,null,null,null,null,null,null,null,null,null,null,"773200 Udlejning og leasing af entreprenørmateriel"]
[null,null,null,null,null,null,null,null,null,null,null,"773300 Udlejning af kontormaskiner og -udstyr, computere og it-udstyr"]
[null,null,null,null,null,null,null,null,null,null,null,"773400 Udlejning og leasing af skibe og både"]
[null,null,null,null,null,null,null,null,null,null,null,"773500 Udlejning og leasing af luftfartøjer"]
[null,null,null,null,null,null,null,null,null,null,null,"773900 Udlejning og leasing af andet materiel, udstyr og andre materielle aktiver i.a.n."]
[null,null,null,null,null,null,null,null,null,null,null,"774000 Leasing af intellektuelle ejendomsrettigheder og lignende, dog ikke ophavsretsbeskyttede værker"]
[null,null,null,null,null,null,null,null,null,null,null,"781000 Arbejdsformidlingskontorer"]
[null,null,null,null,null,null,null,null,null,null,null,"782000 Vikarbureauer"]
[null,null,null,null,null,null,null,null,null,null,null,"783000 Anden personaleformidling"]
[null,null,null,null,null,null,null,null,null,null,null,"791100 Rejsebureauer"]
[null,null,null,null,null,null,null,null,null,null,null,"791200 Rejsearrangører"]
[null,null,null,null,null,null,null,null,null,null,null,"799000 Andre reservationstjenesteydelser og tjenesteydelser i forbindelse hermed"]
[null,null,null,null,null,null,null,null,null,null,null,"801000 Private vagt- og sikkerhedstjenester"]
[null,null,null,null,null,null,null,null,null,null,null,"802000 Serviceydelser i forbindelse med sikkerhedssystemer"]
[null,null,null,null,null,null,null,null,null,null,null,"803000 Overvågning"]
[null,null,null,null,null,null,null,null,null,null,null,"811000 Kombinerede serviceydelser"]
[null,null,null,null,null,null,null,null,null,null,null,"812100 Almindelig rengøring i bygninger"]
[null,null,null,null,null,null,null,null,null,null,null,"812210 Vinduespolering"]
[null,null,null,null,null,null,null,null,null,null,null,"812220 Skorstensfejning"]
[null,null,null,null,null,null,null,null,null,null,null,"812290 Anden rengøring af bygninger og rengøring af erhvervslokaler"]
[null,null,null,null,null,null,null,null,null,null,null,"812900 Andre rengøringsydelser"]
[null,null,null,null,null,null,null,null,null,null,null,"813000 Landskabspleje"]
[null,null,null,null,null,null,null,null,null,null,null,"821100 Kombinerede administrationsserviceydelser"]
[null,null,null,null,null,null,null,null,null,null,null,"821900 Fotokopiering, dokumentbehandling og anden specialiseret kontorservice"]
[null,null,null,null,null,null,null,null,null,null,null,"822000 Call centres virksomhed"]
[null,null,null,null,null,null,null,null,null,null,null,"823000 Organisering af kongresser, messer og udstillinger"]
[null,null,null,null,null,null,null,null,null,null,null,"829100 Inkassovirksomhed og kreditoplysning"]
[null,null,null,null,null,null,null,null,null,null,null,"829200 Pakkerier"]
[null,null,null,null,null,null,null,null,null,null,null,"829900 Anden forretningsservice i.a.n."]
[null,null,null,null,null,null,null,null,null,null,null,"841100 Generelle offentlige tjenester"]
[null,null,null,null,null,null,null,null,null,null,null,"841200 Administration af sundhedsvæsen, undervisning, kultur og sociale forhold undtagen social sikring"]
[null,null,null,null,null,null,null,null,null,null,null,"841300 Administration af og bidrag til erhvervsfremme"]
[null,null,null,null,null,null,null,null,null,null,null,"842100 Udenrigsanliggender"]
[null,null,null,null,null,null,null,null,null,null,null,"842200 Forsvar"]
[null,null,null,null,null,null,null,null,null,null,null,"842300 Domstole og fængselsvæsen"]
[null,null,null,null,null,null,null,null,null,null,null,"842400 Politi"]
[null,null,null,null,null,null,null,null,null,null,null,"842500 Brandvæsen"]
[null,null,null,null,null,null,null,null,null,null,null,"843000 Lovpligtig socialsikring mv."]
[null,null,null,null,null,null,null,null,null,null,null,"851000 Førskoleundervisning"]
[null,null,null,null,null,null,null,null,null,null,null,"852010 Folkeskoler o.lign."]
[null,null,null,null,null,null,null,null,null,null,null,"852020 Specialskoler for handicappede"]
[null,null,null,null,null,null,null,null,null,null,null,"853110 Ungdoms- og efterskoler"]
[null,null,null,null,null,null,null,null,null,null,null,"853120 Gymnasier, studenter- og HF-kurser"]
[null,null,null,null,null,null,null,null,null,null,null,"853200 Tekniske skoler og fagskoler"]
[null,null,null,null,null,null,null,null,null,null,null,"854100 Videregående uddannelser ikke på universitetsniveau"]
[null,null,null,null,null,null,null,null,null,null,null,"854200 Videregående uddannelser på universitetsniveau"]
[null,null,null,null,null,null,null,null,null,null,null,"855100 Undervisning inden for sport og fritid"]
[null,null,null,null,null,null,null,null,null,null,null,"855200 Undervisning i kulturelle discipliner"]
[null,null,null,null,null,null,null,null,null,null,null,"855300 Køreskoler"]
[null,null,null,null,null,null,null,null,null,null,null,"855900 Anden undervisning i.a.n."]
[null,null,null,null,null,null,null,null,null,null,null,"856000 Hjælpeydelser i forbindelse med undervisning"]
[null,null,null,null,null,null,null,null,null,null,null,"861000 Hospitaler"]
[null,null,null,null,null,null,null,null,null,null,null,"862100 Alment praktiserende læger"]
[null,null,null,null,null,null,null,null,null,null,null,"862200 Praktiserende speciallæger"]
[null,null,null,null,null,null,null,null,null,null,null,"862300 Praktiserende tandlæger"]
[null,null,null,null,null,null,null,null,null,null,null,"869010 Sundhedspleje, hjemmesygepleje og jordemødre mv."]
[null,null,null,null,null,null,null,null,null,null,null,"869020 Fysio- og ergoterapeuter"]
[null,null,null,null,null,null,null,null,null,null,null,"869030 Psykologisk rådgivning"]
[null,null,null,null,null,null,null,null,null,null,null,"869040 Kiropraktorer"]
[null,null,null,null,null,null,null,null,null,null,null,"869090 Sundhedsvæsen i øvrigt i.a.n."]
[null,null,null,null,null,null,null,null,null,null,null,"871010 Plejehjem"]
[null,null,null,null,null,null,null,null,null,null,null,"871020 Institutionsophold med sygepleje i.a.n."]
[null,null,null,null,null,null,null,null,null,null,null,"872010 Døgninstitutioner for personer med psykiske handicap"]
[null,null,null,null,null,null,null,null,null,null,null,"872020 Behandlingshjem for stofmisbrugere og alkoholskadede"]
[null,null,null,null,null,null,null,null,null,null,null,"873010 Døgninstitutioner for personer med fysisk handicap"]
[null,null,null,null,null,null,null,null,null,null,null,"873020 Beskyttede boliger o.l."]
[null,null,null,null,null,null,null,null,null,null,null,"879010 Døgninstitutioner for børn og unge"]
[null,null,null,null,null,null,null,null,null,null,null,"879020 Familiepleje"]
[null,null,null,null,null,null,null,null,null,null,null,"879090 Andre former for institutionsophold"]
[null,null,null,null,null,null,null,null,null,null,null,"881010 Hjemmehjælp"]
[null,null,null,null,null,null,null,null,null,null,null,"881020 Dagcentre mv."]
[null,null,null,null,null,null,null,null,null,null,null,"881030 Revalideringsinstitutioner"]
[null,null,null,null,null,null,null,null,null,null,null,"889110 Dagplejemødre"]
[null,null,null,null,null,null,null,null,null,null,null,"889120 Vuggestuer"]
[null,null,null,null,null,null,null,null,null,null,null,"889130 Børnehaver"]
[null,null,null,null,null,null,null,null,null,null,null,"889140 Skolefritidsordninger og fritidshjem"]
[null,null,null,null,null,null,null,null,null,null,null,"889150 Aldersintegrerede institutioner"]
[null,null,null,null,null,null,null,null,null,null,null,"889160 Fritids- og ungdomsklubber"]
[null,null,null,null,null,null,null,null,null,null,null,"889910 Foreninger, legater og fonde med sygdomsbekæmpende, sociale og velgørende formål"]
[null,null,null,null,null,null,null,null,null,null,null,"889920 Flygtninge- og asylcentre"]
[null,null,null,null,null,null,null,null,null,null,null,"889990 Andre sociale foranstaltninger uden institutionsophold i.a.n."]
[null,null,null,null,null,null,null,null,null,null,null,"900110 Teater- og koncertvirksomhed"]
[null,null,null,null,null,null,null,null,null,null,null,"900120 Selvstændigt udøvende scenekunstnere"]
[null,null,null,null,null,null,null,null,null,null,null,"900200 Hjælpeaktiviteter i forbindelse med scenekunst"]
[null,null,null,null,null,null,null,null,null,null,null,"900300 Kunstnerisk skaben"]
[null,null,null,null,null,null,null,null,null,null,null,"900400 Drift af teater- og koncertsale, kulturhuse mv."]
[null,null,null,null,null,null,null,null,null,null,null,"910110 Biblioteker"]
[null,null,null,null,null,null,null,null,null,null,null,"910120 Arkiver"]
[null,null,null,null,null,null,null,null,null,null,null,"910200 Museer"]
[null,null,null,null,null,null,null,null,null,null,null,"910300 Historiske monumenter og bygninger og lignende attraktioner"]
[null,null,null,null,null,null,null,null,null,null,null,"910400 Botaniske og zoologiske haver samt naturreservater"]
[null,null,null,null,null,null,null,null,null,null,null,"920000 Lotteri- og anden spillevirksomhed"]
[null,null,null,null,null,null,null,null,null,null,null,"931100 Drift af sportsanlæg"]
[null,null,null,null,null,null,null,null,null,null,null,"931200 Sportsklubber"]
[null,null,null,null,null,null,null,null,null,null,null,"931300 Fitnesscentre"]
[null,null,null,null,null,null,null,null,null,null,null,"931900 Andre sportsaktiviteter"]
[null,null,null,null,null,null,null,null,null,null,null,"932100 Forlystelsesparker o.l."]
[null,null,null,null,null,null,null,null,null,null,null,"932910 Lystbådehavne"]
[null,null,null,null,null,null,null,null,null,null,null,"932990 Andre forlystelser og fritidsaktiviteter"]
[null,null,null,null,null,null,null,null,null,null,null,"941100 Erhvervs- og arbejdsgiverorganisationer"]
[null,null,null,null,null,null,null,null,null,null,null,"941200 Faglige sammenslutninger"]
[null,null,null,null,null,null,null,null,null,null,null,"942000 Fagforeninger"]
[null,null,null,null,null,null,null,null,null,null,null,"949100 Religiøse institutioner og foreninger"]
[null,null,null,null,null,null,null,null,null,null,null,"949200 Politiske partier"]
[null,null,null,null,null,null,null,null,null,null,null,"949900 Andre organisationer og foreninger i.a.n."]
[null,null,null,null,null,null,null,null,null,null,null,"951100 Reparation af computere og ydre enheder"]
[null,null,null,null,null,null,null,null,null,null,null,"951200 Reparation af kommunikationsudstyr"]
[null,null,null,null,null,null,null,null,null,null,null,"952100 Reparation af forbrugerelektronik"]
[null,null,null,null,null,null,null,null,null,null,null,"952200 Reparation af husholdningsapparater og redskaber til hus og have"]
[null,null,null,null,null,null,null,null,null,null,null,"952300 Reparation af skotøj og lædervarer"]
[null,null,null,null,null,null,null,null,null,null,null,"952400 Reparation af møbler og boligudstyr"]
[null,null,null,null,null,null,null,null,null,null,null,"952500 Reparation af ure, smykker og guld- og sølvvarer"]
[null,null,null,null,null,null,null,null,null,null,null,"952900 Reparation af andre varer til personligt brug og husholdningsbrug"]
[null,null,null,null,null,null,null,null,null,null,null,"960110 Erhvervs- og institutionsvaskerier"]
[null,null,null,null,null,null,null,null,null,null,null,"960120 Renserier, selvbetjeningsvaskerier mv."]
[null,null,null,null,null,null,null,null,null,null,null,"960210 Frisørsaloner"]
[null,null,null,null,null,null,null,null,null,null,null,"960220 Skønheds- og hudpleje"]
[null,null,null,null,null,null,null,null,null,null,null,"960300 Bedemænd og begravelsesvæsen"]
[null,null,null,null,null,null,null,null,null,null,null,"960400 Aktiviteter vedrørende fysisk velvære"]
[null,null,null,null,null,null,null,null,null,null,null,"960900 Andre personlige serviceydelser i.a.n."]
[null,null,null,null,null,null,null,null,null,null,null,"970000 Husholdninger med ansat medhjælp"]
[null,null,null,null,null,null,null,null,null,null,null,"981000 Private husholdningers produktion af varer til eget brug, i.a.n."]
[null,null,null,null,null,null,null,null,null,null,null,"982000 Private husholdningers produktion af tjenesteydelser til eget brug, i.a.n."]
[null,null,null,null,null,null,null,null,null,null,null,"990000 Eksterritoriale organisationer og organer"]